Workbook

Sheet 地市透视表
A1: 地市 | B1: 资产条数 | C1: 资产原值（元） | D1: 资产净值（元） | E1: 净值/原值 | F1: 评估价（元）
A2: 金华 | B2: 94 | C2: 388406.17 | D2: 12622.12 | E2: =D2/C2 -> 3.25% | F2: 25222.34
A3: 嘉兴 | B3: 77 | C3: 684970.69 | D3: 219640.66 | E3: =D3/C3 -> 32.07% | F3: 25554.27
A4: 杭州 | B4: 212 | C4: 805025.94 | D4: 93969.38 | E4: =D4/C4 -> 11.67% | F4: 121828.27
A5: 合计 | B5: =SUM(B2:B4) -> 383 | C5: =SUM(C2:C4) -> 1878402.80 | D5: =SUM(D2:D4) -> 326232.16 | E5: =D5/C5 -> 17.37% | F5: =SUM(F2:F4) -> 172604.88

Sheet 汇总
A1: 地市 | B1: 拍卖批次 | C1: 资产类别名称（大类相同完整度不同的分行填报） | D1: 对应估值清单的分类描述 | E1: 计量单位 | F1: 资产数量 | G1: 总重量（kg） | H1: 完整度/出铜（铝）率（%） | I1: 最低转让单价（含税） | J1: 最低转让总价（含税） | K1: 备注 （主要配件缺失的需要注明）
A2: 金华 | B2: 第二十八批 | C2: 3P空调 | D2: 3匹室内外成套 | E2: 套 | F2: 18 | I2: 936 | J2: =F2*I2 -> 16848.00 | K2: 铜管
A3: 金华 | B3: 第二十八批 | C3: 壁挂空调 | D3: 2P及2P以下成套空调 | E3: 套 | F3: 4 | I3: 520 | J3: 2080.00 | K3: 铜管
A4: 金华 | B4: 第二十八批 | C4: 电线电缆 | D4: 铜缆类 | E4: 根 | F4: 5 | G4: 15 | H4: 50% | I4: 70510元/吨×出铜率 | J4: =70510/1000*H4*G4 -> 528.83
A5: 金华 | B5: 第二十八批 | C5: 动环监控 | D5: 动环监控 | E5: 个 | F5: 54 | G5: 189 | I5: 16 | J5: 864.00
A6: 金华 | B6: 第二十八批 | C6: 接地汇流排 | D6: 其他各类铁质为主的报废物资 | E6: 个 | F6: 2 | G6: 3 | I6: 2270元/吨 | J6: =2270/1000*G6 -> 6.81
A7: 金华 | B7: 第二十八批 | C7: 模块 | D7: 其他各类铁质为主的报废物资 | E7: 个 | F7: 2 | G7: 3 | I7: 2270元/吨 | J7: 6.81
A8: 金华 | B8: 第二十八批 | C8: 嵌入式开关电源 | D8: 其他各类铁质为主的报废物资 | E8: 个 | F8: 2 | G8: 40 | I8: 2270元/吨 | J8: 90.8 | K8: 模块
A9: 金华 | B9: 第二十八批 | C9: 走线架 | D9: 其他各类铁质为主的报废物资 | E9: 个 | F9: 1 | G9: 10 | I9: 2270元/吨 | J9: 22.7
A10: 金华 | B10: 第二十八批 | C10: 组合式开关电源 | D10: 组合开关电源柜 | E10: 个 | F10: 8 | G10: 320 | H10: 40% | I10: 997×完整度+198 | J10: =(997*H10+198)*F10 -> 4774.40 | K10: 模块
A11: 嘉兴 | B11: 第二十八批 | C11: 铜线 | D11: 铜缆类 | E11: 根 | F11: 2 | G11: 1.1 | H11: 23% | I11: 70510元/吨×出铜率 | J11: =70510/1000*H11*G11 -> 17.84 | K11: 称重
A12: 嘉兴 | B12: 第二十八批 | C12: 空调 | D12: 2P及2P以下成套空调 | E12: 台 | F12: 1 | I12: 520 | J12: =F12*I12 -> 520.00 | K12: 套用单价/含铜管
A13: 嘉兴 | B13: 第二十八批 | C13: 空调 | D13: 3匹室内外成套 | E13: 台 | F13: 24 | I13: 936 | J13: 22464.00 | K13: 套用单价/含铜管
A14: 嘉兴 | B14: 第二十八批 | C14: 监控 | D14: 动环监控 | E14: 个 | F14: 6 | I14: 16 | J14: 96.00 | K14: 套用单价
A15: 嘉兴 | B15: 第二十八批 | C15: 空调控制器 | D15: 其他各类铁质为主的报废物资 | E15: 个 | F15: 1 | G15: 0.3 | I15: 2270元/吨 | J15: =2270/1000*G15 -> 0.68 | K15: 称重
A16: 嘉兴 | B16: 第二十八批 | C16: 电表 | D16: 其他各类铁质为主的报废物资 | E16: 个 | F16: 3 | G16: 4.6 | I16: 2270元/吨 | J16: 10.44 | K16: 称重
A17: 嘉兴 | B17: 第二十八批 | C17: 交流配电箱 | D17: 配电箱类 | E17: 个 | F17: 3 | I17: 107 | J17: =F17*I17 -> 321.00 | K17: 套用单价
A18: 嘉兴 | B18: 第二十八批 | C18: 供电计量设备 | D18: 其他各类铁质为主的报废物资 | E18: 个 | F18: 1 | G18: 5.9 | I18: 2270元/吨 | J18: 13.39 | K18: 称重
A19: 嘉兴 | B19: 第二十八批 | C19: 传感器 | D19: 其他各类铁质为主的报废物资 | E19: 个 | F19: 1 | G19: 0.3 | I19: 2270元/吨 | J19: 0.68 | K19: 称重
A20: 嘉兴 | B20: 第二十八批 | C20: 模块 | D20: 其他各类铁质为主的报废物资 | E20: 个 | F20: 1 | G20: 2.4 | I20: 2270元/吨 | J20: 5.45 | K20: 称重
A21: 嘉兴 | B21: 第二十八批 | C21: 铝线 | D21: 铝缆类 | E21: 根 | F21: 28 | G21: 59.4 | H21: 23% | I21: 17090元/吨×出铝率 | J21: =17090/1000*H21*G21 -> 233.48 | K21: 称重
A22: 嘉兴 | B22: 第二十八批 | C22: 空调节能设备 | D22: 其他各类铁质为主的报废物资 | E22: 个 | F22: 1 | G22: 0.3 | I22: 2270元/吨 | J22: =2270/1000*G22 -> 0.68 | K22: 称重
A23: 嘉兴 | B23: 第二十八批 | C23: 开关电源 | D23: 其他各类铁质为主的报废物资 | E23: 架 | F23: 1 | G23: 25 | I23: 2270元/吨 | J23: 56.75 | K23: 称重
A24: 嘉兴 | B24: 第二十八批 | C24: 开关电源 | D24: 其他各类铁质为主的报废物资 | E24: 架 | F24: 1 | G24: 14 | I24: 2270元/吨 | J24: 31.78 | K24: 称重
A25: 嘉兴 | B25: 第二十八批 | C25: 综合架 | D25: 其他各类铁质为主的报废物资 | E25: 架 | F25: 2 | G25: 167 | I25: 2270元/吨 | J25: 379.09 | K25: 称重
A26: 嘉兴 | B26: 第二十八批 | C26: 空调 | D26: 5匹室内外成套 | E26: 台 | F26: 1 | I26: 1403 | J26: =F26*I26 -> 1403.00 | K26: 套用单价/含铜管
A27: 杭州 | B27: 第二十八批 | C27: 传感器 | D27: 其他铁质为主的报废物资 | E27: 个 | F27: 2 | G27: 1.264 | I27: 2270元/吨 | J27: =2270/1000*G27 -> 2.87
A28: 杭州 | B28: 第二十八批 | C28: 电表 | D28: 其他铁质为主的报废物资 | E28: 个 | F28: 2 | G28: 3 | I28: 2270元/吨 | J28: 6.81
A29: 杭州 | B29: 第二十八批 | C29: 电池架 | D29: 其他铁质为主的报废物资 | E29: 千克 | F29: 2987.5 | G29: 2987.5 | I29: 2270元/吨 | J29: 6781.63
A30: 杭州 | B30: 第二十八批 | C30: 铝缆 | D30: 铝缆类 | E30: 千克 | F30: 22 | G30: 22 | H30: 40% | I30: 17090元/吨×出铝率 | J30: =17090/1000*H30*G30 -> 150.39 | K30: 主要材质为铝
A31: 杭州 | B31: 第二十八批 | C31: 铜缆 | D31: 铜缆类 | E31: 千克 | F31: 3.5 | G31: 3.5 | H31: 22.50% | I31: 70510元/吨×出铜率 | J31: =70510/1000*H31*G31 -> 55.53 | K31: 主要材质为铜
A32: 杭州 | B32: 第二十八批 | C32: 断路器 | D32: 其他铁质为主的报废物资 | E32: 个 | F32: 5 | G32: 1.962 | I32: 2270元/吨 | J32: =2270/1000*G32 -> 4.45
A33: 杭州 | B33: 第二十八批 | C33: RRU架 | D33: 其他铁质为主的报废物资 | E33: 个 | F33: 3 | G33: 144 | I33: 2270元/吨 | J33: =2270/1000*G33 -> 326.88
A34: 杭州 | B34: 第二十八批 | C34: 分路计量 | D34: 配电箱类 | E34: 个 | F34: 2 | G34: 0.34 | I34: 107 | J34: =F34*I34 -> 214.00
A35: 杭州 | B35: 第二十八批 | C35: 机柜 | D35: 一体化机柜（风扇型） | E35: 个 | F35: 1 | G35: 0 | I35: 170 | J35: 170.00
A36: 杭州 | B36: 第二十八批 | C36: 机柜 | D36: 一体化机柜（风扇型） | E36: 个 | F36: 6 | G36: 0 | I36: 170 | J36: 1020.00
A37: 杭州 | B37: 第二十八批 | C37: 机柜 | D37: 一体化机柜（空调型） | E37: 个 | F37: 5 | G37: 0 | I37: 223.00 | J37: 1115.00 | K37: 其中有2个机柜拆分组件已合并处置
A38: 杭州 | B38: 第二十八批 | C38: 机柜 | D38: 交直流配电设备（落地式） | E38: 个 | F38: 1 | G38: 153 | H38: 25% | I38: 3410*完整度+2260 | J38: =(3410*H38+2260)/1000*G38 -> 476.21
A39: 杭州 | B39: 第二十八批 | C39: 机柜 | D39: 一体化机柜（风扇型） | E39: 个 | F39: 1 | G39: 0 | I39: 170 | J39: =F39*I39 -> 170.00
A40: 杭州 | B40: 第二十八批 | C40: 机柜 | D40: 一体化机柜（风扇型） | E40: 个 | F40: 1 | G40: 0 | I40: 170 | J40: 170.00
A41: 杭州 | B41: 第二十八批 | C41: 动环监控 | D41: 动环监控 | E41: 个 | F41: 11 | G41: 0 | I41: 16 | J41: 176.00 | K41: 纯主机无辅材
A42: 杭州 | B42: 第二十八批 | C42: 位置模块 | D42: 其他铁质为主的报废物资 | E42: 个 | F42: 2 | G42: 0.38 | I42: 2270元/吨 | J42: =2270/1000*G42 -> 0.86
A43: 杭州 | B43: 第二十八批 | C43: 交流计量箱 | D43: 配电箱类 | E43: 个 | F43: 2 | G43: 37.5 | I43: 107 | J43: =F43*I43 -> 214.00
A44: 杭州 | B44: 第二十八批 | C44: 交流配电箱 | D44: 配电箱类 | E44: 个 | F44: 2 | G44: 0 | I44: 107 | J44: 214.00
A45: 杭州 | B45: 第二十八批 | C45: 嵌入式开关电源 | D45: 其他铁质为主的报废物资 | E45: 架 | F45: 15 | G45: 240.5 | I45: 2270元/吨 | J45: =2270/1000*G45 -> 545.94
A46: 杭州 | B46: 第二十八批 | C46: 组合式开关电源 | D46: 组合开关电源柜 | E46: 架 | F46: 10 | G46: 0 | H46: 36.50% | I46: 997×完整度+198 | J46: =(997*H46+198)*F46 -> 5619.05
A47: 杭州 | B47: 第二十八批 | C47: 空调 | D47: 2P及2P以下成套空调 | E47: 台 | F47: 12 | G47: 0 | I47: 520 | J47: 6240.00
A48: 杭州 | B48: 第二十八批 | C48: 空调 | D48: 3匹室内外成套 | E48: 台 | F48: 81 | G48: 0 | I48: 936 | J48: 75816.00 | K48: 其中2台内机无内风机
A49: 杭州 | B49: 第二十八批 | C49: 空调控制器 | D49: 其他铁质为主的报废物资 | E49: 个 | F49: 3 | G49: 1.505 | I49: 2270元/吨 | J49: 3.42
A50: 杭州 | B50: 第二十八批 | C50: 智能通风设备 | D50: 其他铁质为主的报废物资 | E50: 个 | F50: 3 | G50: 24.5 | I50: 2270元/吨 | J50: 55.62
A51: 杭州 | B51: 第二十八批 | C51: 连接条 | D51: 铜缆类 | E51: 千克 | F51: 318.5 | G51: 318.5 | H51: 70% | I51: 70510元/吨×出铜率 | J51: =70510/1000*H51*G51 -> 15720.20 | K51: 主要材质为铜
A52: 杭州 | B52: 第二十八批 | C52: 电控锁 | D52: 其他铁质为主的报废物资 | E52: 个 | F52: 3 | G52: 6.5 | I52: 2270元/吨 | J52: =2270/1000*G52 -> 14.76
A53: 杭州 | B53: 第二十八批 | C53: 电源转换模块 | D53: 其他铁质为主的报废物资 | E53: 个 | F53: 1 | G53: 2.5 | I53: 2270元/吨 | J53: 5.68
A54: 杭州 | B54: 第二十八批 | C54: 整流模块 | D54: 其他铁质为主的报废物资 | E54: 个 | F54: 4 | G54: 9 | I54: 2270元/吨 | J54: 20.43
A55: 杭州 | B55: 第二十八批 | C55: 熔断器 | D55: 其他铁质为主的报废物资 | E55: 个 | F55: 2 | G55: 0.361 | I55: 2270元/吨 | J55: 0.82
A56: 杭州 | B56: 第二十八批 | C56: 铜管 | D56: 铜缆类 | E56: 千克 | F56: 132 | G56: 132 | H56: 70% | I56: 70510元/吨×出铜率 | J56: =70510/1000*H56*G56 -> 6515.12 | K56: 主要材质为铜
A57: 杭州 | B57: 第二十八批 | C57: 铜铁转换条 | D57: 其他铁质为主的报废物资 | E57: 根 | F57: 2 | G57: 1.151 | I57: 2270元/吨 | J57: =2270/1000*G57 -> 2.61

Sheet 金华
A1: 序号 | B1: 报废批复文号 | C1: 资产编号 | D1: 资产名称 | E1: 资产类别名称 | F1: 资产原值 （元，不含税） | G1: 累计折旧 | H1: 资产数量 | I1: 资产净值 （元，不含税） | J1: 计量单位 （个/吨/米等） | K1: 单节电池电压（2V/12V） | L1: 规格型号 | M1: 生产厂家 | N1: 站点名称 | O1: 站点编码 | P1: 县市 | Q1: 年份 | R1: 报废批次
A2: 1 | B2: 2024年8月19日总经理专题办公会议纪要 | C2: 330700317921 | D2: =VLOOKUP(C:C,'[1]2024B1-B6清单'!$A:$D,4,0) -> 普通空调柜式 | E2: =VLOOKUP(C:C,'[1]2024B1-B6清单'!$A:$E,5,0) -> 空调 | F2: =VLOOKUP(C:C,'[1]2024B1-B6清单'!$A:$X,24,0) -> 6734.84 | G2: =VLOOKUP(C:C,'[1]2024B1-B6清单'!$A:$Y,25,0) -> 6532.79 | H2: 1 | I2: =VLOOKUP(C:C,'[1]2024B1-B6清单'!$A:$Z,26,0) -> 202.05 | J2: 台 | L2: 3P | N2: =VLOOKUP(C:C,'[1]2024B1-B6清单'!$A:$P,16,0) -> 官清畈北 | O2: =VLOOKUP(C:C,'[1]2024B1-B6清单'!$A:$Q,17,0) -> 33078201000486 | P2: =VLOOKUP(C:C,'[1]2024B1-B6清单'!$A:$C,3,0) -> 武义 | Q2: 2024 | R2: 2024B6
A3: 2 | B3: 2024年8月19日总经理专题办公会议纪要 | C3: 330700173631 | D3: =VLOOKUP(C:C,'[1]2024B1-B6清单'!$A:$D,4,0) -> 专用空调 | E3: =VLOOKUP(C:C,'[1]2024B1-B6清单'!$A:$E,5,0) -> 空调 | F3: =VLOOKUP(C:C,'[1]2024B1-B6清单'!$A:$X,24,0) -> 2125.45 | G3: =VLOOKUP(C:C,'[1]2024B1-B6清单'!$A:$Y,25,0) -> 2061.69 | H3: 1 | I3: =VLOOKUP(C:C,'[1]2024B1-B6清单'!$A:$Z,26,0) -> 63.76 | J3: 台 | L3: 3P | N3: =VLOOKUP(C:C,'[1]2024B1-B6清单'!$A:$P,16,0) -> 义乌畈田王 | O3: =VLOOKUP(C:C,'[1]2024B1-B6清单'!$A:$Q,17,0) -> 330782908000000784 | P3: =VLOOKUP(C:C,'[1]2024B1-B6清单'!$A:$C,3,0) -> 义乌 | Q3: 2024 | R3: 2024B6
A4: 3 | B4: 2024年8月19日总经理专题办公会议纪要 | C4: 330700113004 | D4: =VLOOKUP(C:C,'[1]2024B1-B6清单'!$A:$D,4,0) -> 专用空调 | E4: =VLOOKUP(C:C,'[1]2024B1-B6清单'!$A:$E,5,0) -> 空调 | F4: =VLOOKUP(C:C,'[1]2024B1-B6清单'!$A:$X,24,0) -> 4970 | G4: =VLOOKUP(C:C,'[1]2024B1-B6清单'!$A:$Y,25,0) -> 4820.9 | H4: 1 | I4: =VLOOKUP(C:C,'[1]2024B1-B6清单'!$A:$Z,26,0) -> 149.1 | J4: 台 | L4: 3P | N4: =VLOOKUP(C:C,'[1]2024B1-B6清单'!$A:$P,16,0) -> 义乌南门街 | O4: =VLOOKUP(C:C,'[1]2024B1-B6清单'!$A:$Q,17,0) -> 330782908000001132 | P4: =VLOOKUP(C:C,'[1]2024B1-B6清单'!$A:$C,3,0) -> 义乌 | Q4: 2024 | R4: 2024B6
A5: 4 | B5: 2024年8月19日总经理专题办公会议纪要 | C5: 330700340097 | D5: =VLOOKUP(C:C,'[1]2024B1-B6清单'!$A:$D,4,0) -> 普通空调壁挂 | E5: =VLOOKUP(C:C,'[1]2024B1-B6清单'!$A:$E,5,0) -> 空调 | F5: =VLOOKUP(C:C,'[1]2024B1-B6清单'!$A:$X,24,0) -> 3693.29 | G5: =VLOOKUP(C:C,'[1]2024B1-B6清单'!$A:$Y,25,0) -> 3582.49 | H5: 1 | I5: =VLOOKUP(C:C,'[1]2024B1-B6清单'!$A:$Z,26,0) -> 110.8 | J5: 台 | L5: 3P | N5: =VLOOKUP(C:C,'[1]2024B1-B6清单'!$A:$P,16,0) -> 义乌南门街 | O5: =VLOOKUP(C:C,'[1]2024B1-B6清单'!$A:$Q,17,0) -> 330782908000001132 | P5: =VLOOKUP(C:C,'[1]2024B1-B6清单'!$A:$C,3,0) -> 义乌 | Q5: 2024 | R5: 2024B6
A6: 5 | B6: 2024年8月19日总经理专题办公会议纪要 | C6: 330700112916 | D6: =VLOOKUP(C:C,'[1]2024B1-B6清单'!$A:$D,4,0) -> 专用空调 | E6: =VLOOKUP(C:C,'[1]2024B1-B6清单'!$A:$E,5,0) -> 空调 | F6: =VLOOKUP(C:C,'[1]2024B1-B6清单'!$A:$X,24,0) -> 2447.26 | G6: =VLOOKUP(C:C,'[1]2024B1-B6清单'!$A:$Y,25,0) -> 2373.84 | H6: 1 | I6: =VLOOKUP(C:C,'[1]2024B1-B6清单'!$A:$Z,26,0) -> 73.42 | J6: 台 | L6: 3P | N6: =VLOOKUP(C:C,'[1]2024B1-B6清单'!$A:$P,16,0) -> 义乌上西陶二 | O6: =VLOOKUP(C:C,'[1]2024B1-B6清单'!$A:$Q,17,0) -> 330782908000001492 | P6: =VLOOKUP(C:C,'[1]2024B1-B6清单'!$A:$C,3,0) -> 义乌 | Q6: 2024 | R6: 2024B6
A7: 6 | B7: 2024年8月19日总经理专题办公会议纪要 | C7: 330700143513 | D7: =VLOOKUP(C:C,'[1]2024B1-B6清单'!$A:$D,4,0) -> 专用空调 | E7: =VLOOKUP(C:C,'[1]2024B1-B6清单'!$A:$E,5,0) -> 空调 | F7: =VLOOKUP(C:C,'[1]2024B1-B6清单'!$A:$X,24,0) -> 684 | G7: =VLOOKUP(C:C,'[1]2024B1-B6清单'!$A:$Y,25,0) -> 663.48 | H7: 1 | I7: =VLOOKUP(C:C,'[1]2024B1-B6清单'!$A:$Z,26,0) -> 20.52 | J7: 台 | L7: 3P | N7: =VLOOKUP(C:C,'[1]2024B1-B6清单'!$A:$P,16,0) -> 义乌苏溪东湖门 | O7: =VLOOKUP(C:C,'[1]2024B1-B6清单'!$A:$Q,17,0) -> 330782908000002293 | P7: =VLOOKUP(C:C,'[1]2024B1-B6清单'!$A:$C,3,0) -> 义乌 | Q7: 2024 | R7: 2024B6
A8: 7 | B8: 2024 年金华分公司第23次党委会会议纪要（金华铁塔党委会纪要〔2024〕第25期） | C8: 330700151232 | D8: =VLOOKUP(C:C,'[1]2024B1-B6清单'!$A:$D,4,0) -> 专用空调 | E8: =VLOOKUP(C:C,'[1]2024B1-B6清单'!$A:$E,5,0) -> 空调 | F8: =VLOOKUP(C:C,'[1]2024B1-B6清单'!$A:$X,24,0) -> 3613.5 | G8: =VLOOKUP(C:C,'[1]2024B1-B6清单'!$A:$Y,25,0) -> 3505.09 | H8: 1 | I8: =VLOOKUP(C:C,'[1]2024B1-B6清单'!$A:$Z,26,0) -> 108.41 | J8: 台 | L8: 3P | N8: =VLOOKUP(C:C,'[1]2024B1-B6清单'!$A:$P,16,0) -> 义乌苏溪开发区四 | O8: =VLOOKUP(C:C,'[1]2024B1-B6清单'!$A:$Q,17,0) -> 330782908000001015 | P8: =VLOOKUP(C:C,'[1]2024B1-B6清单'!$A:$C,3,0) -> 义乌 | Q8: 2024 | R8: 2024B4
A9: 8 | B9: 2024 年金华分公司第23次党委会会议纪要（金华铁塔党委会纪要〔2024〕第25期） | C9: 330700168919 | D9: =VLOOKUP(C:C,'[1]2024B1-B6清单'!$A:$D,4,0) -> 专用空调 | E9: =VLOOKUP(C:C,'[1]2024B1-B6清单'!$A:$E,5,0) -> 空调 | F9: =VLOOKUP(C:C,'[1]2024B1-B6清单'!$A:$X,24,0) -> 11360 | G9: =VLOOKUP(C:C,'[1]2024B1-B6清单'!$A:$Y,25,0) -> 11019.2 | H9: 1 | I9: =VLOOKUP(C:C,'[1]2024B1-B6清单'!$A:$Z,26,0) -> 340.8 | J9: 台 | L9: 3P | N9: =VLOOKUP(C:C,'[1]2024B1-B6清单'!$A:$P,16,0) -> 义乌苏溪开发区四 | O9: =VLOOKUP(C:C,'[1]2024B1-B6清单'!$A:$Q,17,0) -> 330782908000001015 | P9: =VLOOKUP(C:C,'[1]2024B1-B6清单'!$A:$C,3,0) -> 义乌 | Q9: 2024 | R9: 2024B4
A10: 9 | B10: 2024 年金华分公司第24次党委会会议纪要（金华铁塔党委会纪要〔2024〕第26期） | C10: 330700007976 | D10: =VLOOKUP(C:C,'[1]2024B1-B6清单'!$A:$D,4,0) -> 空调 | E10: =VLOOKUP(C:C,'[1]2024B1-B6清单'!$A:$E,5,0) -> 空调 | F10: =VLOOKUP(C:C,'[1]2024B1-B6清单'!$A:$X,24,0) -> 11012.44 | G10: =VLOOKUP(C:C,'[1]2024B1-B6清单'!$A:$Y,25,0) -> 10682.07 | H10: 1 | I10: =VLOOKUP(C:C,'[1]2024B1-B6清单'!$A:$Z,26,0) -> 330.37 | J10: 台 | L10: 3P | N10: =VLOOKUP(C:C,'[1]2024B1-B6清单'!$A:$P,16,0) -> 义乌张宅一村 | O10: =VLOOKUP(C:C,'[1]2024B1-B6清单'!$A:$Q,17,0) -> 33078200000085 | P10: =VLOOKUP(C:C,'[1]2024B1-B6清单'!$A:$C,3,0) -> 义乌 | Q10: 2024 | R10: 2024B5
A11: 10 | B11: 2024年8月19日总经理专题办公会议纪要 | C11: 330700121275 | D11: =VLOOKUP(C:C,'[1]2024B1-B6清单'!$A:$D,4,0) -> 专用空调 | E11: =VLOOKUP(C:C,'[1]2024B1-B6清单'!$A:$E,5,0) -> 空调 | F11: =VLOOKUP(C:C,'[1]2024B1-B6清单'!$A:$X,24,0) -> 1355.46 | G11: =VLOOKUP(C:C,'[1]2024B1-B6清单'!$A:$Y,25,0) -> 1314.8 | H11: 1 | I11: =VLOOKUP(C:C,'[1]2024B1-B6清单'!$A:$Z,26,0) -> 40.66 | J11: 台 | L11: 3P | N11: =VLOOKUP(C:C,'[1]2024B1-B6清单'!$A:$P,16,0) -> 义乌赵朱 | O11: =VLOOKUP(C:C,'[1]2024B1-B6清单'!$A:$Q,17,0) -> 330782908000001478 | P11: =VLOOKUP(C:C,'[1]2024B1-B6清单'!$A:$C,3,0) -> 义乌 | Q11: 2024 | R11: 2024B6
A12: 11 | B12: 2024年8月19日总经理专题办公会议纪要 | C12: 330700341526 | D12: =VLOOKUP(C:C,'[1]2024B1-B6清单'!$A:$D,4,0) -> 普通空调柜式 | E12: =VLOOKUP(C:C,'[1]2024B1-B6清单'!$A:$E,5,0) -> 空调 | F12: =VLOOKUP(C:C,'[1]2024B1-B6清单'!$A:$X,24,0) -> 6180.47 | G12: =VLOOKUP(C:C,'[1]2024B1-B6清单'!$A:$Y,25,0) -> 5995.06 | H12: 1 | I12: =VLOOKUP(C:C,'[1]2024B1-B6清单'!$A:$Z,26,0) -> 185.41 | J12: 台 | L12: 3P | N12: =VLOOKUP(C:C,'[1]2024B1-B6清单'!$A:$P,16,0) -> 义乌制证中心 | O12: =VLOOKUP(C:C,'[1]2024B1-B6清单'!$A:$Q,17,0) -> 330782908000000741 | P12: =VLOOKUP(C:C,'[1]2024B1-B6清单'!$A:$C,3,0) -> 义乌 | Q12: 2024 | R12: 2024B6
A13: 12 | B13: 2024年8月19日总经理专题办公会议纪要 | C13: 330700300934 | D13: =VLOOKUP(C:C,'[1]2024B1-B6清单'!$A:$D,4,0) -> 开关电源 | E13: =VLOOKUP(C:C,'[1]2024B1-B6清单'!$A:$E,5,0) -> 开关电源 | F13: =VLOOKUP(C:C,'[1]2024B1-B6清单'!$A:$X,24,0) -> 3810.75 | G13: =VLOOKUP(C:C,'[1]2024B1-B6清单'!$A:$Y,25,0) -> 3696.43 | H13: 1 | I13: =VLOOKUP(C:C,'[1]2024B1-B6清单'!$A:$Z,26,0) -> 114.32 | J13: 架 | L13: 组合式 | N13: =VLOOKUP(C:C,'[1]2024B1-B6清单'!$A:$P,16,0) -> 义乌枫溪 | O13: =VLOOKUP(C:C,'[1]2024B1-B6清单'!$A:$Q,17,0) -> 330782908000002657 | P13: =VLOOKUP(C:C,'[1]2024B1-B6清单'!$A:$C,3,0) -> 义乌 | Q13: 2024 | R13: 2024B6
A14: 13 | B14: 2024年8月19日总经理专题办公会议纪要 | C14: 330700143944 | D14: =VLOOKUP(C:C,'[1]2024B1-B6清单'!$A:$D,4,0) -> 开关电源 | E14: =VLOOKUP(C:C,'[1]2024B1-B6清单'!$A:$E,5,0) -> 开关电源 | F14: =VLOOKUP(C:C,'[1]2024B1-B6清单'!$A:$X,24,0) -> 14206.09 | G14: =VLOOKUP(C:C,'[1]2024B1-B6清单'!$A:$Y,25,0) -> 13779.91 | H14: 1 | I14: =VLOOKUP(C:C,'[1]2024B1-B6清单'!$A:$Z,26,0) -> 426.18 | J14: 架 | L14: 组合式 | N14: =VLOOKUP(C:C,'[1]2024B1-B6清单'!$A:$P,16,0) -> 义乌福田中央公园西 | O14: =VLOOKUP(C:C,'[1]2024B1-B6清单'!$A:$Q,17,0) -> 330782908000000937 | P14: =VLOOKUP(C:C,'[1]2024B1-B6清单'!$A:$C,3,0) -> 义乌 | Q14: 2024 | R14: 2024B6
A15: 14 | B15: 2024年8月19日总经理专题办公会议纪要 | C15: 330700319478 | D15: =VLOOKUP(C:C,'[1]2024B1-B6清单'!$A:$D,4,0) -> 开关电源 | E15: =VLOOKUP(C:C,'[1]2024B1-B6清单'!$A:$E,5,0) -> 开关电源 | F15: =VLOOKUP(C:C,'[1]2024B1-B6清单'!$A:$X,24,0) -> 8898.26 | G15: =VLOOKUP(C:C,'[1]2024B1-B6清单'!$A:$Y,25,0) -> 8631.31 | H15: 1 | I15: =VLOOKUP(C:C,'[1]2024B1-B6清单'!$A:$Z,26,0) -> 266.95 | J15: 架 | L15: 组合式 | N15: =VLOOKUP(C:C,'[1]2024B1-B6清单'!$A:$P,16,0) -> 义乌假日酒店 | O15: =VLOOKUP(C:C,'[1]2024B1-B6清单'!$A:$Q,17,0) -> 33078200000447 | P15: =VLOOKUP(C:C,'[1]2024B1-B6清单'!$A:$C,3,0) -> 义乌 | Q15: 2024 | R15: 2024B6
A16: 15 | B16: 2024年8月19日总经理专题办公会议纪要 | C16: 330700130479 | D16: =VLOOKUP(C:C,'[1]2024B1-B6清单'!$A:$D,4,0) -> 开关电源 | E16: =VLOOKUP(C:C,'[1]2024B1-B6清单'!$A:$E,5,0) -> 开关电源 | F16: =VLOOKUP(C:C,'[1]2024B1-B6清单'!$A:$X,24,0) -> 6854.69 | G16: =VLOOKUP(C:C,'[1]2024B1-B6清单'!$A:$Y,25,0) -> 6649.05 | H16: 1 | I16: =VLOOKUP(C:C,'[1]2024B1-B6清单'!$A:$Z,26,0) -> 205.64 | J16: 架 | L16: 组合式 | N16: =VLOOKUP(C:C,'[1]2024B1-B6清单'!$A:$P,16,0) -> 义乌苏溪马丁-2 | O16: =VLOOKUP(C:C,'[1]2024B1-B6清单'!$A:$Q,17,0) -> 330782908000002651 | P16: =VLOOKUP(C:C,'[1]2024B1-B6清单'!$A:$C,3,0) -> 义乌 | Q16: 2024 | R16: 2024B6
A17: 16 | B17: 2024年8月19日总经理专题办公会议纪要 | C17: 330700340481 | D17: =VLOOKUP(C:C,'[1]2024B1-B6清单'!$A:$D,4,0) -> 动力及环境监控单元 | E17: =VLOOKUP(C:C,'[1]2024B1-B6清单'!$A:$E,5,0) -> 动环 | F17: =VLOOKUP(C:C,'[1]2024B1-B6清单'!$A:$X,24,0) -> 2937.63 | G17: =VLOOKUP(C:C,'[1]2024B1-B6清单'!$A:$Y,25,0) -> 2849.5 | H17: 1 | I17: =VLOOKUP(C:C,'[1]2024B1-B6清单'!$A:$Z,26,0) -> 88.13 | J17: 个 | L17: 监控 | N17: =VLOOKUP(C:C,'[1]2024B1-B6清单'!$A:$P,16,0) -> 义乌江东金星 | O17: =VLOOKUP(C:C,'[1]2024B1-B6清单'!$A:$Q,17,0) -> 330782700000111884 | P17: =VLOOKUP(C:C,'[1]2024B1-B6清单'!$A:$C,3,0) -> 义乌 | Q17: 2024 | R17: 2024B6
A18: 17 | B18: 2024年8月19日总经理专题办公会议纪要 | C18: 330700377090 | D18: =VLOOKUP(C:C,'[1]2024B1-B6清单'!$A:$D,4,0) -> 动力及环境监控单元 | E18: =VLOOKUP(C:C,'[1]2024B1-B6清单'!$A:$E,5,0) -> 动环 | F18: =VLOOKUP(C:C,'[1]2024B1-B6清单'!$A:$X,24,0) -> 2671.62 | G18: =VLOOKUP(C:C,'[1]2024B1-B6清单'!$A:$Y,25,0) -> 2123.54 | H18: 1 | I18: =VLOOKUP(C:C,'[1]2024B1-B6清单'!$A:$Z,26,0) -> 548.08 | J18: 个 | L18: 监控 | N18: =VLOOKUP(C:C,'[1]2024B1-B6清单'!$A:$P,16,0) -> 义乌平畴欧迅 | O18: =VLOOKUP(C:C,'[1]2024B1-B6清单'!$A:$Q,17,0) -> 330782908000002522 | P18: =VLOOKUP(C:C,'[1]2024B1-B6清单'!$A:$C,3,0) -> 义乌 | Q18: 2024 | R18: 2024B6
A19: 18 | B19: 2024年8月19日总经理专题办公会议纪要 | C19: 330700323246 | D19: =VLOOKUP(C:C,'[1]2024B1-B6清单'!$A:$D,4,0) -> 动力及环境监控单元 | E19: =VLOOKUP(C:C,'[1]2024B1-B6清单'!$A:$E,5,0) -> 动环 | F19: =VLOOKUP(C:C,'[1]2024B1-B6清单'!$A:$X,24,0) -> 3854.7 | G19: =VLOOKUP(C:C,'[1]2024B1-B6清单'!$A:$Y,25,0) -> 3739.06 | H19: 1 | I19: =VLOOKUP(C:C,'[1]2024B1-B6清单'!$A:$Z,26,0) -> 115.64 | J19: 个 | L19: 监控 | N19: =VLOOKUP(C:C,'[1]2024B1-B6清单'!$A:$P,16,0) -> 义乌山口二北 | O19: =VLOOKUP(C:C,'[1]2024B1-B6清单'!$A:$Q,17,0) -> 330782010000000743 | P19: =VLOOKUP(C:C,'[1]2024B1-B6清单'!$A:$C,3,0) -> 义乌 | Q19: 2024 | R19: 2024B6
A20: 19 | B20: 2024年8月19日总经理专题办公会议纪要 | C20: 330700382118 | D20: =VLOOKUP(C:C,'[1]2024B1-B6清单'!$A:$D,4,0) -> 动力及环境监控单元 | E20: =VLOOKUP(C:C,'[1]2024B1-B6清单'!$A:$E,5,0) -> 动环 | F20: =VLOOKUP(C:C,'[1]2024B1-B6清单'!$A:$X,24,0) -> 2661.8 | G20: =VLOOKUP(C:C,'[1]2024B1-B6清单'!$A:$Y,25,0) -> 2079.88 | H20: 1 | I20: =VLOOKUP(C:C,'[1]2024B1-B6清单'!$A:$Z,26,0) -> 581.92 | J20: 个 | L20: 监控 | N20: =VLOOKUP(C:C,'[1]2024B1-B6清单'!$A:$P,16,0) -> 义乌苏溪颜村 | O20: =VLOOKUP(C:C,'[1]2024B1-B6清单'!$A:$Q,17,0) -> 330782908000000901 | P20: =VLOOKUP(C:C,'[1]2024B1-B6清单'!$A:$C,3,0) -> 义乌 | Q20: 2024 | R20: 2024B6
A21: 20 | B21: 2024年8月19日总经理专题办公会议纪要 | C21: 330700104608 | D21: =VLOOKUP(C:C,'[1]2024B1-B6清单'!$A:$D,4,0) -> 开关电源 | E21: =VLOOKUP(C:C,'[1]2024B1-B6清单'!$A:$E,5,0) -> 开关电源 | F21: =VLOOKUP(C:C,'[1]2024B1-B6清单'!$A:$X,24,0) -> 4664.16 | G21: =VLOOKUP(C:C,'[1]2024B1-B6清单'!$A:$Y,25,0) -> 4524.24 | H21: 1 | I21: =VLOOKUP(C:C,'[1]2024B1-B6清单'!$A:$Z,26,0) -> 139.92 | J21: 架 | L21: 嵌入式 | N21: =VLOOKUP(C:C,'[1]2024B1-B6清单'!$A:$P,16,0) -> 东阳石盆 | O21: =VLOOKUP(C:C,'[1]2024B1-B6清单'!$A:$Q,17,0) -> 330783908000000774 | P21: =VLOOKUP(C:C,'[1]2024B1-B6清单'!$A:$C,3,0) -> 东阳 | Q21: 2024 | R21: 2024B6
A22: 21 | B22: 2024 年金华分公司第24次党委会会议纪要（金华铁塔党委会纪要〔2024〕第26期） | C22: 330700302861 | D22: =VLOOKUP(C:C,'[1]2024B1-B6清单'!$A:$D,4,0) -> 开关电源 | E22: =VLOOKUP(C:C,'[1]2024B1-B6清单'!$A:$E,5,0) -> 开关电源 | F22: =VLOOKUP(C:C,'[1]2024B1-B6清单'!$A:$X,24,0) -> 7155.6 | G22: =VLOOKUP(C:C,'[1]2024B1-B6清单'!$A:$Y,25,0) -> 6940.93 | H22: 1 | I22: =VLOOKUP(C:C,'[1]2024B1-B6清单'!$A:$Z,26,0) -> 214.67 | J22: 架 | L22: 组合式 | N22: =VLOOKUP(C:C,'[1]2024B1-B6清单'!$A:$P,16,0) -> 永康河南-3 | O22: =VLOOKUP(C:C,'[1]2024B1-B6清单'!$A:$Q,17,0) -> 330784908000001412 | P22: =VLOOKUP(C:C,'[1]2024B1-B6清单'!$A:$C,3,0) -> 永康 | Q22: 2024 | R22: 2024B5
A23: 22 | B23: 2024 年金华分公司第24次党委会会议纪要（金华铁塔党委会纪要〔2024〕第26期） | C23: 330700105486 | D23: =VLOOKUP(C:C,'[1]2024B1-B6清单'!$A:$D,4,0) -> 开关电源 | E23: =VLOOKUP(C:C,'[1]2024B1-B6清单'!$A:$E,5,0) -> 开关电源 | F23: =VLOOKUP(C:C,'[1]2024B1-B6清单'!$A:$X,24,0) -> 8561.76 | G23: =VLOOKUP(C:C,'[1]2024B1-B6清单'!$A:$Y,25,0) -> 8304.91 | H23: 1 | I23: =VLOOKUP(C:C,'[1]2024B1-B6清单'!$A:$Z,26,0) -> 256.85 | J23: 架 | L23: 组合式 | N23: =VLOOKUP(C:C,'[1]2024B1-B6清单'!$A:$P,16,0) -> 永康华宝公司 | O23: =VLOOKUP(C:C,'[1]2024B1-B6清单'!$A:$Q,17,0) -> 330784908000000285 | P23: =VLOOKUP(C:C,'[1]2024B1-B6清单'!$A:$C,3,0) -> 永康 | Q23: 2024 | R23: 2024B5
A24: 23 | B24: 2024年8月19日总经理专题办公会议纪要 | C24: 330700117636 | D24: =VLOOKUP(C:C,'[1]2024B1-B6清单'!$A:$D,4,0) -> 开关电源 | E24: =VLOOKUP(C:C,'[1]2024B1-B6清单'!$A:$E,5,0) -> 开关电源 | F24: =VLOOKUP(C:C,'[1]2024B1-B6清单'!$A:$X,24,0) -> 9945.98 | G24: =VLOOKUP(C:C,'[1]2024B1-B6清单'!$A:$Y,25,0) -> 9647.6 | H24: 1 | I24: =VLOOKUP(C:C,'[1]2024B1-B6清单'!$A:$Z,26,0) -> 298.38 | J24: 架 | L24: 组合式 | N24: =VLOOKUP(C:C,'[1]2024B1-B6清单'!$A:$P,16,0) -> 永康三峰公司 | O24: =VLOOKUP(C:C,'[1]2024B1-B6清单'!$A:$Q,17,0) -> 330784908000001286 | P24: =VLOOKUP(C:C,'[1]2024B1-B6清单'!$A:$C,3,0) -> 永康 | Q24: 2024 | R24: 2024B6
A25: 24 | B25: 2024年8月19日总经理专题办公会议纪要 | C25: 330700134500 | D25: =VLOOKUP(C:C,'[1]2024B1-B6清单'!$A:$D,4,0) -> 专用空调 | E25: =VLOOKUP(C:C,'[1]2024B1-B6清单'!$A:$E,5,0) -> 空调 | F25: =VLOOKUP(C:C,'[1]2024B1-B6清单'!$A:$X,24,0) -> 4615.25 | G25: =VLOOKUP(C:C,'[1]2024B1-B6清单'!$A:$Y,25,0) -> 4476.79 | H25: 1 | I25: =VLOOKUP(C:C,'[1]2024B1-B6清单'!$A:$Z,26,0) -> 138.46 | J25: 台 | L25: 1.5P挂式 | N25: =VLOOKUP(C:C,'[1]2024B1-B6清单'!$A:$P,16,0) -> 东阳城市规划设计院 | O25: =VLOOKUP(C:C,'[1]2024B1-B6清单'!$A:$Q,17,0) -> 330783908000000938 | P25: =VLOOKUP(C:C,'[1]2024B1-B6清单'!$A:$C,3,0) -> 东阳 | Q25: 2024 | R25: 2024B6
A26: 25 | B26: 2024年8月19日总经理专题办公会议纪要 | C26: 330700113044 | D26: =VLOOKUP(C:C,'[1]2024B1-B6清单'!$A:$D,4,0) -> 专用空调 | E26: =VLOOKUP(C:C,'[1]2024B1-B6清单'!$A:$E,5,0) -> 空调 | F26: =VLOOKUP(C:C,'[1]2024B1-B6清单'!$A:$X,24,0) -> 103 | G26: =VLOOKUP(C:C,'[1]2024B1-B6清单'!$A:$Y,25,0) -> 99.91 | H26: 1 | I26: =VLOOKUP(C:C,'[1]2024B1-B6清单'!$A:$Z,26,0) -> 3.09 | J26: 台 | L26: 1.5P挂式 | N26: =VLOOKUP(C:C,'[1]2024B1-B6清单'!$A:$P,16,0) -> 东阳黄田畈-2 | O26: =VLOOKUP(C:C,'[1]2024B1-B6清单'!$A:$Q,17,0) -> 330783908000001336 | P26: =VLOOKUP(C:C,'[1]2024B1-B6清单'!$A:$C,3,0) -> 东阳 | Q26: 2024 | R26: 2024B6
A27: 26 | B27: 2024年8月19日总经理专题办公会议纪要 | C27: 330700340362 | D27: =VLOOKUP(C:C,'[1]2024B1-B6清单'!$A:$D,4,0) -> 动力及环境监控单元 | E27: =VLOOKUP(C:C,'[1]2024B1-B6清单'!$A:$E,5,0) -> 动环 | F27: =VLOOKUP(C:C,'[1]2024B1-B6清单'!$A:$X,24,0) -> 3617.21 | G27: =VLOOKUP(C:C,'[1]2024B1-B6清单'!$A:$Y,25,0) -> 3508.69 | H27: 1 | I27: =VLOOKUP(C:C,'[1]2024B1-B6清单'!$A:$Z,26,0) -> 108.52 | J27: 个 | L27: 监控 | N27: =VLOOKUP(C:C,'[1]2024B1-B6清单'!$A:$P,16,0) -> 永康安居苑 | O27: =VLOOKUP(C:C,'[1]2024B1-B6清单'!$A:$Q,17,0) -> 330784908000001454 | P27: =VLOOKUP(C:C,'[1]2024B1-B6清单'!$A:$C,3,0) -> 永康 | Q27: 2024 | R27: 2024B6
A28: 27 | B28: 2024年8月19日总经理专题办公会议纪要 | C28: 330700340350 | D28: =VLOOKUP(C:C,'[1]2024B1-B6清单'!$A:$D,4,0) -> 动力及环境监控单元 | E28: =VLOOKUP(C:C,'[1]2024B1-B6清单'!$A:$E,5,0) -> 动环 | F28: =VLOOKUP(C:C,'[1]2024B1-B6清单'!$A:$X,24,0) -> 3118.67 | G28: =VLOOKUP(C:C,'[1]2024B1-B6清单'!$A:$Y,25,0) -> 3025.11 | H28: 1 | I28: =VLOOKUP(C:C,'[1]2024B1-B6清单'!$A:$Z,26,0) -> 93.56 | J28: 个 | L28: 监控 | N28: =VLOOKUP(C:C,'[1]2024B1-B6清单'!$A:$P,16,0) -> 永康城西看守所 | O28: =VLOOKUP(C:C,'[1]2024B1-B6清单'!$A:$Q,17,0) -> 330784908000001448 | P28: =VLOOKUP(C:C,'[1]2024B1-B6清单'!$A:$C,3,0) -> 永康 | Q28: 2024 | R28: 2024B6
A29: 28 | B29: 2024年8月19日总经理专题办公会议纪要 | C29: 330700341416 | D29: =VLOOKUP(C:C,'[1]2024B1-B6清单'!$A:$D,4,0) -> 动力及环境监控单元 | E29: =VLOOKUP(C:C,'[1]2024B1-B6清单'!$A:$E,5,0) -> 动环 | F29: =VLOOKUP(C:C,'[1]2024B1-B6清单'!$A:$X,24,0) -> 3687 | G29: =VLOOKUP(C:C,'[1]2024B1-B6清单'!$A:$Y,25,0) -> 3576.39 | H29: 1 | I29: =VLOOKUP(C:C,'[1]2024B1-B6清单'!$A:$Z,26,0) -> 110.61 | J29: 个 | L29: 监控 | N29: =VLOOKUP(C:C,'[1]2024B1-B6清单'!$A:$P,16,0) -> 永康独松-2 | O29: =VLOOKUP(C:C,'[1]2024B1-B6清单'!$A:$Q,17,0) -> 330784908000001396 | P29: =VLOOKUP(C:C,'[1]2024B1-B6清单'!$A:$C,3,0) -> 永康 | Q29: 2024 | R29: 2024B6
A30: 29 | B30: 2024年8月19日总经理专题办公会议纪要 | C30: 330700339506 | D30: =VLOOKUP(C:C,'[1]2024B1-B6清单'!$A:$D,4,0) -> 动力及环境监控单元 | E30: =VLOOKUP(C:C,'[1]2024B1-B6清单'!$A:$E,5,0) -> 动环 | F30: =VLOOKUP(C:C,'[1]2024B1-B6清单'!$A:$X,24,0) -> 2527.8 | G30: =VLOOKUP(C:C,'[1]2024B1-B6清单'!$A:$Y,25,0) -> 2451.97 | H30: 1 | I30: =VLOOKUP(C:C,'[1]2024B1-B6清单'!$A:$Z,26,0) -> 75.83 | J30: 个 | L30: 监控 | N30: =VLOOKUP(C:C,'[1]2024B1-B6清单'!$A:$P,16,0) -> 永康方岩-2 | O30: =VLOOKUP(C:C,'[1]2024B1-B6清单'!$A:$Q,17,0) -> 330784908000001501 | P30: =VLOOKUP(C:C,'[1]2024B1-B6清单'!$A:$C,3,0) -> 永康 | Q30: 2024 | R30: 2024B6
A31: 30 | B31: 2024年8月19日总经理专题办公会议纪要 | C31: 330700339502 | D31: =VLOOKUP(C:C,'[1]2024B1-B6清单'!$A:$D,4,0) -> 动力及环境监控单元 | E31: =VLOOKUP(C:C,'[1]2024B1-B6清单'!$A:$E,5,0) -> 动环 | F31: =VLOOKUP(C:C,'[1]2024B1-B6清单'!$A:$X,24,0) -> 2527.8 | G31: =VLOOKUP(C:C,'[1]2024B1-B6清单'!$A:$Y,25,0) -> 2451.97 | H31: 1 | I31: =VLOOKUP(C:C,'[1]2024B1-B6清单'!$A:$Z,26,0) -> 75.83 | J31: 个 | L31: 监控 | N31: =VLOOKUP(C:C,'[1]2024B1-B6清单'!$A:$P,16,0) -> 永康金川-2 | O31: =VLOOKUP(C:C,'[1]2024B1-B6清单'!$A:$Q,17,0) -> 330784908000001535 | P31: =VLOOKUP(C:C,'[1]2024B1-B6清单'!$A:$C,3,0) -> 永康 | Q31: 2024 | R31: 2024B6
A32: 31 | B32: 2024年8月19日总经理专题办公会议纪要 | C32: 330700341006 | D32: =VLOOKUP(C:C,'[1]2024B1-B6清单'!$A:$D,4,0) -> 动力及环境监控单元 | E32: =VLOOKUP(C:C,'[1]2024B1-B6清单'!$A:$E,5,0) -> 动环 | F32: =VLOOKUP(C:C,'[1]2024B1-B6清单'!$A:$X,24,0) -> 2811.79 | G32: =VLOOKUP(C:C,'[1]2024B1-B6清单'!$A:$Y,25,0) -> 2727.44 | H32: 1 | I32: =VLOOKUP(C:C,'[1]2024B1-B6清单'!$A:$Z,26,0) -> 84.35 | J32: 个 | L32: 监控 | N32: =VLOOKUP(C:C,'[1]2024B1-B6清单'!$A:$P,16,0) -> 永康金温后郑南 | O32: =VLOOKUP(C:C,'[1]2024B1-B6清单'!$A:$Q,17,0) -> 330784500000000140 | P32: =VLOOKUP(C:C,'[1]2024B1-B6清单'!$A:$C,3,0) -> 永康 | Q32: 2024 | R32: 2024B6
A33: 32 | B33: 2024年8月19日总经理专题办公会议纪要 | C33: 330700339498 | D33: =VLOOKUP(C:C,'[1]2024B1-B6清单'!$A:$D,4,0) -> 动力及环境监控单元 | E33: =VLOOKUP(C:C,'[1]2024B1-B6清单'!$A:$E,5,0) -> 动环 | F33: =VLOOKUP(C:C,'[1]2024B1-B6清单'!$A:$X,24,0) -> 2527.8 | G33: =VLOOKUP(C:C,'[1]2024B1-B6清单'!$A:$Y,25,0) -> 2451.97 | H33: 1 | I33: =VLOOKUP(C:C,'[1]2024B1-B6清单'!$A:$Z,26,0) -> 75.83 | J33: 个 | L33: 监控 | N33: =VLOOKUP(C:C,'[1]2024B1-B6清单'!$A:$P,16,0) -> 永康荆山夏 | O33: =VLOOKUP(C:C,'[1]2024B1-B6清单'!$A:$Q,17,0) -> 330784908000001455 | P33: =VLOOKUP(C:C,'[1]2024B1-B6清单'!$A:$C,3,0) -> 永康 | Q33: 2024 | R33: 2024B6
A34: 33 | B34: 2024年8月19日总经理专题办公会议纪要 | C34: 330700324632 | D34: =VLOOKUP(C:C,'[1]2024B1-B6清单'!$A:$D,4,0) -> 动力及环境监控单元 | E34: =VLOOKUP(C:C,'[1]2024B1-B6清单'!$A:$E,5,0) -> 动环 | F34: =VLOOKUP(C:C,'[1]2024B1-B6清单'!$A:$X,24,0) -> 3722.53 | G34: =VLOOKUP(C:C,'[1]2024B1-B6清单'!$A:$Y,25,0) -> 3610.85 | H34: 1 | I34: =VLOOKUP(C:C,'[1]2024B1-B6清单'!$A:$Z,26,0) -> 111.68 | J34: 个 | L34: 监控 | N34: =VLOOKUP(C:C,'[1]2024B1-B6清单'!$A:$P,16,0) -> 永康龙川学校南 | O34: =VLOOKUP(C:C,'[1]2024B1-B6清单'!$A:$Q,17,0) -> 330784500000000101 | P34: =VLOOKUP(C:C,'[1]2024B1-B6清单'!$A:$C,3,0) -> 永康 | Q34: 2024 | R34: 2024B6
A35: 34 | B35: 2024年8月19日总经理专题办公会议纪要 | C35: 330700339511 | D35: =VLOOKUP(C:C,'[1]2024B1-B6清单'!$A:$D,4,0) -> 动力及环境监控单元 | E35: =VLOOKUP(C:C,'[1]2024B1-B6清单'!$A:$E,5,0) -> 动环 | F35: =VLOOKUP(C:C,'[1]2024B1-B6清单'!$A:$X,24,0) -> 2527.8 | G35: =VLOOKUP(C:C,'[1]2024B1-B6清单'!$A:$Y,25,0) -> 2451.97 | H35: 1 | I35: =VLOOKUP(C:C,'[1]2024B1-B6清单'!$A:$Z,26,0) -> 75.83 | J35: 个 | L35: 监控 | N35: =VLOOKUP(C:C,'[1]2024B1-B6清单'!$A:$P,16,0) -> 永康麻车店-2 | O35: =VLOOKUP(C:C,'[1]2024B1-B6清单'!$A:$Q,17,0) -> 330784908000001266 | P35: =VLOOKUP(C:C,'[1]2024B1-B6清单'!$A:$C,3,0) -> 永康 | Q35: 2024 | R35: 2024B6
A36: 35 | B36: 2024年8月19日总经理专题办公会议纪要 | C36: 330700341015 | D36: =VLOOKUP(C:C,'[1]2024B1-B6清单'!$A:$D,4,0) -> 动力及环境监控单元 | E36: =VLOOKUP(C:C,'[1]2024B1-B6清单'!$A:$E,5,0) -> 动环 | F36: =VLOOKUP(C:C,'[1]2024B1-B6清单'!$A:$X,24,0) -> 2811.79 | G36: =VLOOKUP(C:C,'[1]2024B1-B6清单'!$A:$Y,25,0) -> 2727.44 | H36: 1 | I36: =VLOOKUP(C:C,'[1]2024B1-B6清单'!$A:$Z,26,0) -> 84.35 | J36: 个 | L36: 监控 | N36: =VLOOKUP(C:C,'[1]2024B1-B6清单'!$A:$P,16,0) -> 永康前仓江滨路Y | O36: =VLOOKUP(C:C,'[1]2024B1-B6清单'!$A:$Q,17,0) -> 33078450000000000147 | P36: =VLOOKUP(C:C,'[1]2024B1-B6清单'!$A:$C,3,0) -> 永康 | Q36: 2024 | R36: 2024B6
A37: 36 | B37: 2024年8月19日总经理专题办公会议纪要 | C37: 330700351275 | D37: =VLOOKUP(C:C,'[1]2024B1-B6清单'!$A:$D,4,0) -> 动力及环境监控单元 | E37: =VLOOKUP(C:C,'[1]2024B1-B6清单'!$A:$E,5,0) -> 动环 | F37: =VLOOKUP(C:C,'[1]2024B1-B6清单'!$A:$X,24,0) -> 3168.38 | G37: =VLOOKUP(C:C,'[1]2024B1-B6清单'!$A:$Y,25,0) -> 3073.33 | H37: 1 | I37: =VLOOKUP(C:C,'[1]2024B1-B6清单'!$A:$Z,26,0) -> 95.05 | J37: 个 | L37: 监控 | N37: =VLOOKUP(C:C,'[1]2024B1-B6清单'!$A:$P,16,0) -> 永康桥下镇 | O37: =VLOOKUP(C:C,'[1]2024B1-B6清单'!$A:$Q,17,0) -> 330784908000001299 | P37: =VLOOKUP(C:C,'[1]2024B1-B6清单'!$A:$C,3,0) -> 永康 | Q37: 2024 | R37: 2024B6
A38: 37 | B38: 2024年8月19日总经理专题办公会议纪要 | C38: 330700343878 | D38: =VLOOKUP(C:C,'[1]2024B1-B6清单'!$A:$D,4,0) -> 动力及环境监控单元 | E38: =VLOOKUP(C:C,'[1]2024B1-B6清单'!$A:$E,5,0) -> 动环 | F38: =VLOOKUP(C:C,'[1]2024B1-B6清单'!$A:$X,24,0) -> 4184.05 | G38: =VLOOKUP(C:C,'[1]2024B1-B6清单'!$A:$Y,25,0) -> 4058.53 | H38: 1 | I38: =VLOOKUP(C:C,'[1]2024B1-B6清单'!$A:$Z,26,0) -> 125.52 | J38: 个 | L38: 监控 | N38: =VLOOKUP(C:C,'[1]2024B1-B6清单'!$A:$P,16,0) -> 永康山后卢 | O38: =VLOOKUP(C:C,'[1]2024B1-B6清单'!$A:$Q,17,0) -> 330784908000000624 | P38: =VLOOKUP(C:C,'[1]2024B1-B6清单'!$A:$C,3,0) -> 永康 | Q38: 2024 | R38: 2024B6
A39: 38 | B39: 2024年8月19日总经理专题办公会议纪要 | C39: 330700340413 | D39: =VLOOKUP(C:C,'[1]2024B1-B6清单'!$A:$D,4,0) -> 动力及环境监控单元 | E39: =VLOOKUP(C:C,'[1]2024B1-B6清单'!$A:$E,5,0) -> 动环 | F39: =VLOOKUP(C:C,'[1]2024B1-B6清单'!$A:$X,24,0) -> 2429.23 | G39: =VLOOKUP(C:C,'[1]2024B1-B6清单'!$A:$Y,25,0) -> 2356.35 | H39: 1 | I39: =VLOOKUP(C:C,'[1]2024B1-B6清单'!$A:$Z,26,0) -> 72.88 | J39: 个 | L39: 监控 | N39: =VLOOKUP(C:C,'[1]2024B1-B6清单'!$A:$P,16,0) -> 永康上徐店村 | O39: =VLOOKUP(C:C,'[1]2024B1-B6清单'!$A:$Q,17,0) -> 330784908000001486 | P39: =VLOOKUP(C:C,'[1]2024B1-B6清单'!$A:$C,3,0) -> 永康 | Q39: 2024 | R39: 2024B6
A40: 39 | B40: 2024年8月19日总经理专题办公会议纪要 | C40: 330700339478 | D40: =VLOOKUP(C:C,'[1]2024B1-B6清单'!$A:$D,4,0) -> 动力及环境监控单元 | E40: =VLOOKUP(C:C,'[1]2024B1-B6清单'!$A:$E,5,0) -> 动环 | F40: =VLOOKUP(C:C,'[1]2024B1-B6清单'!$A:$X,24,0) -> 2527.8 | G40: =VLOOKUP(C:C,'[1]2024B1-B6清单'!$A:$Y,25,0) -> 2451.97 | H40: 1 | I40: =VLOOKUP(C:C,'[1]2024B1-B6清单'!$A:$Z,26,0) -> 75.83 | J40: 个 | L40: 监控 | N40: =VLOOKUP(C:C,'[1]2024B1-B6清单'!$A:$P,16,0) -> 永康申亭-3 | O40: =VLOOKUP(C:C,'[1]2024B1-B6清单'!$A:$Q,17,0) -> 330784908000001536 | P40: =VLOOKUP(C:C,'[1]2024B1-B6清单'!$A:$C,3,0) -> 永康 | Q40: 2024 | R40: 2024B6
A41: 40 | B41: 2024年8月19日总经理专题办公会议纪要 | C41: 330700340364 | D41: =VLOOKUP(C:C,'[1]2024B1-B6清单'!$A:$D,4,0) -> 动力及环境监控单元 | E41: =VLOOKUP(C:C,'[1]2024B1-B6清单'!$A:$E,5,0) -> 动环 | F41: =VLOOKUP(C:C,'[1]2024B1-B6清单'!$A:$X,24,0) -> 3573.44 | G41: =VLOOKUP(C:C,'[1]2024B1-B6清单'!$A:$Y,25,0) -> 3466.24 | H41: 1 | I41: =VLOOKUP(C:C,'[1]2024B1-B6清单'!$A:$Z,26,0) -> 107.2 | J41: 个 | L41: 监控 | N41: =VLOOKUP(C:C,'[1]2024B1-B6清单'!$A:$P,16,0) -> 永康石雅-2 | O41: =VLOOKUP(C:C,'[1]2024B1-B6清单'!$A:$Q,17,0) -> 330784908000001476 | P41: =VLOOKUP(C:C,'[1]2024B1-B6清单'!$A:$C,3,0) -> 永康 | Q41: 2024 | R41: 2024B6
A42: 41 | B42: 2024年8月19日总经理专题办公会议纪要 | C42: 330700343716 | D42: =VLOOKUP(C:C,'[1]2024B1-B6清单'!$A:$D,4,0) -> 动力及环境监控单元 | E42: =VLOOKUP(C:C,'[1]2024B1-B6清单'!$A:$E,5,0) -> 动环 | F42: =VLOOKUP(C:C,'[1]2024B1-B6清单'!$A:$X,24,0) -> 5578.23 | G42: =VLOOKUP(C:C,'[1]2024B1-B6清单'!$A:$Y,25,0) -> 5410.88 | H42: 1 | I42: =VLOOKUP(C:C,'[1]2024B1-B6清单'!$A:$Z,26,0) -> 167.35 | J42: 个 | L42: 监控 | N42: =VLOOKUP(C:C,'[1]2024B1-B6清单'!$A:$P,16,0) -> 永康仙陵 | O42: =VLOOKUP(C:C,'[1]2024B1-B6清单'!$A:$Q,17,0) -> 33078400000054 | P42: =VLOOKUP(C:C,'[1]2024B1-B6清单'!$A:$C,3,0) -> 永康 | Q42: 2024 | R42: 2024B6
A43: 42 | B43: 2024年8月19日总经理专题办公会议纪要 | C43: 330700330089 | D43: =VLOOKUP(C:C,'[1]2024B1-B6清单'!$A:$D,4,0) -> 动力及环境监控单元 | E43: =VLOOKUP(C:C,'[1]2024B1-B6清单'!$A:$E,5,0) -> 动环 | F43: =VLOOKUP(C:C,'[1]2024B1-B6清单'!$A:$X,24,0) -> 11576.75 | G43: =VLOOKUP(C:C,'[1]2024B1-B6清单'!$A:$Y,25,0) -> 11229.45 | H43: 1 | I43: =VLOOKUP(C:C,'[1]2024B1-B6清单'!$A:$Z,26,0) -> 347.3 | J43: 个 | L43: 监控 | N43: =VLOOKUP(C:C,'[1]2024B1-B6清单'!$A:$P,16,0) -> 永康晏塘搬迁 | O43: =VLOOKUP(C:C,'[1]2024B1-B6清单'!$A:$Q,17,0) -> 330784500000000127 | P43: =VLOOKUP(C:C,'[1]2024B1-B6清单'!$A:$C,3,0) -> 永康 | Q43: 2024 | R43: 2024B6
A44: 43 | B44: 2024年8月19日总经理专题办公会议纪要 | C44: 330700339494 | D44: =VLOOKUP(C:C,'[1]2024B1-B6清单'!$A:$D,4,0) -> 动力及环境监控单元 | E44: =VLOOKUP(C:C,'[1]2024B1-B6清单'!$A:$E,5,0) -> 动环 | F44: =VLOOKUP(C:C,'[1]2024B1-B6清单'!$A:$X,24,0) -> 2527.8 | G44: =VLOOKUP(C:C,'[1]2024B1-B6清单'!$A:$Y,25,0) -> 2451.97 | H44: 1 | I44: =VLOOKUP(C:C,'[1]2024B1-B6清单'!$A:$Z,26,0) -> 75.83 | J44: 个 | L44: 监控 | N44: =VLOOKUP(C:C,'[1]2024B1-B6清单'!$A:$P,16,0) -> 永康姚塘村 | O44: =VLOOKUP(C:C,'[1]2024B1-B6清单'!$A:$Q,17,0) -> 330784908000001439 | P44: =VLOOKUP(C:C,'[1]2024B1-B6清单'!$A:$C,3,0) -> 永康 | Q44: 2024 | R44: 2024B6
A45: 44 | B45: 2024年8月19日总经理专题办公会议纪要 | C45: 330700340151 | D45: =VLOOKUP(C:C,'[1]2024B1-B6清单'!$A:$D,4,0) -> 动力及环境监控单元 | E45: =VLOOKUP(C:C,'[1]2024B1-B6清单'!$A:$E,5,0) -> 动环 | F45: =VLOOKUP(C:C,'[1]2024B1-B6清单'!$A:$X,24,0) -> 2937.63 | G45: =VLOOKUP(C:C,'[1]2024B1-B6清单'!$A:$Y,25,0) -> 2849.5 | H45: 1 | I45: =VLOOKUP(C:C,'[1]2024B1-B6清单'!$A:$Z,26,0) -> 88.13 | J45: 个 | L45: 监控 | N45: =VLOOKUP(C:C,'[1]2024B1-B6清单'!$A:$P,16,0) -> 永康应店-2 | O45: =VLOOKUP(C:C,'[1]2024B1-B6清单'!$A:$Q,17,0) -> 330784908000001345 | P45: =VLOOKUP(C:C,'[1]2024B1-B6清单'!$A:$C,3,0) -> 永康 | Q45: 2024 | R45: 2024B6
A46: 45 | B46: 2024年8月19日总经理专题办公会议纪要 | C46: 330700339513 | D46: =VLOOKUP(C:C,'[1]2024B1-B6清单'!$A:$D,4,0) -> 动力及环境监控单元 | E46: =VLOOKUP(C:C,'[1]2024B1-B6清单'!$A:$E,5,0) -> 动环 | F46: =VLOOKUP(C:C,'[1]2024B1-B6清单'!$A:$X,24,0) -> 2527.8 | G46: =VLOOKUP(C:C,'[1]2024B1-B6清单'!$A:$Y,25,0) -> 2451.97 | H46: 1 | I46: =VLOOKUP(C:C,'[1]2024B1-B6清单'!$A:$Z,26,0) -> 75.83 | J46: 个 | L46: 监控 | N46: =VLOOKUP(C:C,'[1]2024B1-B6清单'!$A:$P,16,0) -> 永康俞溪头 | O46: =VLOOKUP(C:C,'[1]2024B1-B6清单'!$A:$Q,17,0) -> 330784908000001437 | P46: =VLOOKUP(C:C,'[1]2024B1-B6清单'!$A:$C,3,0) -> 永康 | Q46: 2024 | R46: 2024B6
A47: 46 | B47: 2024年8月19日总经理专题办公会议纪要 | C47: 330700324739 | D47: =VLOOKUP(C:C,'[1]2024B1-B6清单'!$A:$D,4,0) -> 动力及环境监控单元 | E47: =VLOOKUP(C:C,'[1]2024B1-B6清单'!$A:$E,5,0) -> 动环 | F47: =VLOOKUP(C:C,'[1]2024B1-B6清单'!$A:$X,24,0) -> 3824.45 | G47: =VLOOKUP(C:C,'[1]2024B1-B6清单'!$A:$Y,25,0) -> 3709.72 | H47: 1 | I47: =VLOOKUP(C:C,'[1]2024B1-B6清单'!$A:$Z,26,0) -> 114.73 | J47: 个 | L47: 监控 | N47: =VLOOKUP(C:C,'[1]2024B1-B6清单'!$A:$P,16,0) -> 永康芝英游溪塘村西 | O47: =VLOOKUP(C:C,'[1]2024B1-B6清单'!$A:$Q,17,0) -> 330784500000000124 | P47: =VLOOKUP(C:C,'[1]2024B1-B6清单'!$A:$C,3,0) -> 永康 | Q47: 2024 | R47: 2024B6
A48: 47 | B48: 2024年8月19日总经理专题办公会议纪要 | C48: 330700325265 | D48: =VLOOKUP(C:C,'[1]2024B1-B6清单'!$A:$D,4,0) -> 动环监控设备FSU | E48: =VLOOKUP(C:C,'[1]2024B1-B6清单'!$A:$E,5,0) -> 动环 | F48: =VLOOKUP(C:C,'[1]2024B1-B6清单'!$A:$X,24,0) -> 9066.1 | G48: =VLOOKUP(C:C,'[1]2024B1-B6清单'!$A:$Y,25,0) -> 8794.12 | H48: 1 | I48: =VLOOKUP(C:C,'[1]2024B1-B6清单'!$A:$Z,26,0) -> 271.98 | J48: 个 | L48: 监控 | N48: =VLOOKUP(C:C,'[1]2024B1-B6清单'!$A:$P,16,0) -> 永康舟山杨溪王村 | O48: =VLOOKUP(C:C,'[1]2024B1-B6清单'!$A:$Q,17,0) -> 330784500000000004 | P48: =VLOOKUP(C:C,'[1]2024B1-B6清单'!$A:$C,3,0) -> 永康 | Q48: 2024 | R48: 2024B6
A49: 48 | B49: 2024年8月19日总经理专题办公会议纪要 | C49: 330700129394 | D49: =VLOOKUP(C:C,'[1]2024B1-B6清单'!$A:$D,4,0) -> 开关电源 | E49: =VLOOKUP(C:C,'[1]2024B1-B6清单'!$A:$E,5,0) -> 开关电源 | F49: =VLOOKUP(C:C,'[1]2024B1-B6清单'!$A:$X,24,0) -> 1627.6 | G49: =VLOOKUP(C:C,'[1]2024B1-B6清单'!$A:$Y,25,0) -> 1578.77 | H49: 1 | I49: =VLOOKUP(C:C,'[1]2024B1-B6清单'!$A:$Z,26,0) -> 48.83 | J49: 架 | L49: 嵌入式 | N49: =VLOOKUP(C:C,'[1]2024B1-B6清单'!$A:$P,16,0) -> 浦江玉山 | O49: =VLOOKUP(C:C,'[1]2024B1-B6清单'!$A:$Q,17,0) -> 330726908000000043 | P49: =VLOOKUP(C:C,'[1]2024B1-B6清单'!$A:$C,3,0) -> 浦江 | Q49: 2024 | R49: 2024B6
A50: 49 | B50: 2024年8月19日总经理专题办公会议纪要 | C50: 330700319001 | D50: =VLOOKUP(C:C,'[1]2024B1-B6清单'!$A:$D,4,0) -> 开关电源 | E50: =VLOOKUP(C:C,'[1]2024B1-B6清单'!$A:$E,5,0) -> 开关电源 | F50: =VLOOKUP(C:C,'[1]2024B1-B6清单'!$A:$X,24,0) -> 8233.64 | G50: =VLOOKUP(C:C,'[1]2024B1-B6清单'!$A:$Y,25,0) -> 7986.63 | H50: 1 | I50: =VLOOKUP(C:C,'[1]2024B1-B6清单'!$A:$Z,26,0) -> 247.01 | J50: 架 | L50: 组合式 | N50: =VLOOKUP(C:C,'[1]2024B1-B6清单'!$A:$P,16,0) -> 浦江檀溪镇王灵村 | O50: =VLOOKUP(C:C,'[1]2024B1-B6清单'!$A:$Q,17,0) -> 33072600000065 | P50: =VLOOKUP(C:C,'[1]2024B1-B6清单'!$A:$C,3,0) -> 浦江 | Q50: 2024 | R50: 2024B6
A51: 50 | B51: 2024年8月19日总经理专题办公会议纪要 | C51: 330700148248 | D51: =VLOOKUP(C:C,'[1]2024B1-B6清单'!$A:$D,4,0) -> 专用空调 | E51: =VLOOKUP(C:C,'[1]2024B1-B6清单'!$A:$E,5,0) -> 空调 | F51: =VLOOKUP(C:C,'[1]2024B1-B6清单'!$A:$X,24,0) -> 552.65 | G51: =VLOOKUP(C:C,'[1]2024B1-B6清单'!$A:$Y,25,0) -> 536.07 | H51: 1 | I51: =VLOOKUP(C:C,'[1]2024B1-B6清单'!$A:$Z,26,0) -> 16.58 | J51: 台 | L51: 2P | N51: =VLOOKUP(C:C,'[1]2024B1-B6清单'!$A:$P,16,0) -> 浦江大楼 | O51: =VLOOKUP(C:C,'[1]2024B1-B6清单'!$A:$Q,17,0) -> 330726908000000527 | P51: =VLOOKUP(C:C,'[1]2024B1-B6清单'!$A:$C,3,0) -> 浦江 | Q51: 2024 | R51: 2024B6
A52: 51 | B52: 2024年8月19日总经理专题办公会议纪要 | C52: 330700151943 | D52: =VLOOKUP(C:C,'[1]2024B1-B6清单'!$A:$D,4,0) -> 专用空调 | E52: =VLOOKUP(C:C,'[1]2024B1-B6清单'!$A:$E,5,0) -> 空调 | F52: =VLOOKUP(C:C,'[1]2024B1-B6清单'!$A:$X,24,0) -> 231.75 | G52: =VLOOKUP(C:C,'[1]2024B1-B6清单'!$A:$Y,25,0) -> 224.8 | H52: 1 | I52: =VLOOKUP(C:C,'[1]2024B1-B6清单'!$A:$Z,26,0) -> 6.95 | J52: 台 | L52: 2P | N52: =VLOOKUP(C:C,'[1]2024B1-B6清单'!$A:$P,16,0) -> 浦江塘下 | O52: =VLOOKUP(C:C,'[1]2024B1-B6清单'!$A:$Q,17,0) -> 330726908000000498 | P52: =VLOOKUP(C:C,'[1]2024B1-B6清单'!$A:$C,3,0) -> 浦江 | Q52: 2024 | R52: 2024B6
A53: 52 | B53: 2024年8月19日总经理专题办公会议纪要 | C53: 330700112802 | D53: =VLOOKUP(C:C,'[1]2024B1-B6清单'!$A:$D,4,0) -> 专用空调 | E53: =VLOOKUP(C:C,'[1]2024B1-B6清单'!$A:$E,5,0) -> 空调 | F53: =VLOOKUP(C:C,'[1]2024B1-B6清单'!$A:$X,24,0) -> 3176.98 | G53: =VLOOKUP(C:C,'[1]2024B1-B6清单'!$A:$Y,25,0) -> 3081.67 | H53: 1 | I53: =VLOOKUP(C:C,'[1]2024B1-B6清单'!$A:$Z,26,0) -> 95.31 | J53: 台 | L53: 3P | N53: =VLOOKUP(C:C,'[1]2024B1-B6清单'!$A:$P,16,0) -> 浦江百炼 | O53: =VLOOKUP(C:C,'[1]2024B1-B6清单'!$A:$Q,17,0) -> 330726908000000534 | P53: =VLOOKUP(C:C,'[1]2024B1-B6清单'!$A:$C,3,0) -> 浦江 | Q53: 2024 | R53: 2024B6
A54: 53 | B54: 2024年8月19日总经理专题办公会议纪要 | C54: 330700151223 | D54: =VLOOKUP(C:C,'[1]2024B1-B6清单'!$A:$D,4,0) -> 专用空调 | E54: =VLOOKUP(C:C,'[1]2024B1-B6清单'!$A:$E,5,0) -> 空调 | F54: =VLOOKUP(C:C,'[1]2024B1-B6清单'!$A:$X,24,0) -> 2034.36 | G54: =VLOOKUP(C:C,'[1]2024B1-B6清单'!$A:$Y,25,0) -> 1973.33 | H54: 1 | I54: =VLOOKUP(C:C,'[1]2024B1-B6清单'!$A:$Z,26,0) -> 61.03 | J54: 台 | L54: 3P | N54: =VLOOKUP(C:C,'[1]2024B1-B6清单'!$A:$P,16,0) -> 浦江班班大道-2 | O54: =VLOOKUP(C:C,'[1]2024B1-B6清单'!$A:$Q,17,0) -> 330726908000000179 | P54: =VLOOKUP(C:C,'[1]2024B1-B6清单'!$A:$C,3,0) -> 浦江 | Q54: 2024 | R54: 2024B6
A55: 54 | B55: 2024年8月19日总经理专题办公会议纪要 | C55: 330700148350 | D55: =VLOOKUP(C:C,'[1]2024B1-B6清单'!$A:$D,4,0) -> 专用空调 | E55: =VLOOKUP(C:C,'[1]2024B1-B6清单'!$A:$E,5,0) -> 空调 | F55: =VLOOKUP(C:C,'[1]2024B1-B6清单'!$A:$X,24,0) -> 4828 | G55: =VLOOKUP(C:C,'[1]2024B1-B6清单'!$A:$Y,25,0) -> 4683.16 | H55: 1 | I55: =VLOOKUP(C:C,'[1]2024B1-B6清单'!$A:$Z,26,0) -> 144.84 | J55: 台 | L55: 3P | N55: =VLOOKUP(C:C,'[1]2024B1-B6清单'!$A:$P,16,0) -> 浦江财富名座 | O55: =VLOOKUP(C:C,'[1]2024B1-B6清单'!$A:$Q,17,0) -> 330726908000000346 | P55: =VLOOKUP(C:C,'[1]2024B1-B6清单'!$A:$C,3,0) -> 浦江 | Q55: 2024 | R55: 2024B6
A56: 55 | B56: 2024年8月19日总经理专题办公会议纪要 | C56: 330700319938 | D56: =VLOOKUP(C:C,'[1]2024B1-B6清单'!$A:$D,4,0) -> 空调 | E56: =VLOOKUP(C:C,'[1]2024B1-B6清单'!$A:$E,5,0) -> 空调 | F56: =VLOOKUP(C:C,'[1]2024B1-B6清单'!$A:$X,24,0) -> 8184.76 | G56: =VLOOKUP(C:C,'[1]2024B1-B6清单'!$A:$Y,25,0) -> 7939.22 | H56: 1 | I56: =VLOOKUP(C:C,'[1]2024B1-B6清单'!$A:$Z,26,0) -> 245.54 | J56: 台 | L56: 3P | N56: =VLOOKUP(C:C,'[1]2024B1-B6清单'!$A:$P,16,0) -> 浦江后叶村 | O56: =VLOOKUP(C:C,'[1]2024B1-B6清单'!$A:$Q,17,0) -> 33072600000220 | P56: =VLOOKUP(C:C,'[1]2024B1-B6清单'!$A:$C,3,0) -> 浦江 | Q56: 2024 | R56: 2024B6
A57: 56 | B57: 2024年8月19日总经理专题办公会议纪要 | C57: 330700108878 | D57: =VLOOKUP(C:C,'[1]2024B1-B6清单'!$A:$D,4,0) -> 专用空调 | E57: =VLOOKUP(C:C,'[1]2024B1-B6清单'!$A:$E,5,0) -> 空调 | F57: =VLOOKUP(C:C,'[1]2024B1-B6清单'!$A:$X,24,0) -> 4435.4 | G57: =VLOOKUP(C:C,'[1]2024B1-B6清单'!$A:$Y,25,0) -> 4302.34 | H57: 1 | I57: =VLOOKUP(C:C,'[1]2024B1-B6清单'!$A:$Z,26,0) -> 133.06 | J57: 台 | L57: 3P | N57: =VLOOKUP(C:C,'[1]2024B1-B6清单'!$A:$P,16,0) -> 浦江黄宅中学 | O57: =VLOOKUP(C:C,'[1]2024B1-B6清单'!$A:$Q,17,0) -> 330726908000000248 | P57: =VLOOKUP(C:C,'[1]2024B1-B6清单'!$A:$C,3,0) -> 浦江 | Q57: 2024 | R57: 2024B6
A58: 57 | B58: 2024年8月19日总经理专题办公会议纪要 | C58: 330700131792 | D58: =VLOOKUP(C:C,'[1]2024B1-B6清单'!$A:$D,4,0) -> 专用空调 | E58: =VLOOKUP(C:C,'[1]2024B1-B6清单'!$A:$E,5,0) -> 空调 | F58: =VLOOKUP(C:C,'[1]2024B1-B6清单'!$A:$X,24,0) -> 5222.06 | G58: =VLOOKUP(C:C,'[1]2024B1-B6清单'!$A:$Y,25,0) -> 5065.4 | H58: 1 | I58: =VLOOKUP(C:C,'[1]2024B1-B6清单'!$A:$Z,26,0) -> 156.66 | J58: 台 | L58: 3P | N58: =VLOOKUP(C:C,'[1]2024B1-B6清单'!$A:$P,16,0) -> 浦江牧童鞋业 | O58: =VLOOKUP(C:C,'[1]2024B1-B6清单'!$A:$Q,17,0) -> 330726908000000380 | P58: =VLOOKUP(C:C,'[1]2024B1-B6清单'!$A:$C,3,0) -> 浦江 | Q58: 2024 | R58: 2024B6
A59: 58 | B59: 2024年8月19日总经理专题办公会议纪要 | C59: 330700147993 | D59: =VLOOKUP(C:C,'[1]2024B1-B6清单'!$A:$D,4,0) -> 专用空调 | E59: =VLOOKUP(C:C,'[1]2024B1-B6清单'!$A:$E,5,0) -> 空调 | F59: =VLOOKUP(C:C,'[1]2024B1-B6清单'!$A:$X,24,0) -> 257.5 | G59: =VLOOKUP(C:C,'[1]2024B1-B6清单'!$A:$Y,25,0) -> 249.77 | H59: 1 | I59: =VLOOKUP(C:C,'[1]2024B1-B6清单'!$A:$Z,26,0) -> 7.73 | J59: 台 | L59: 3P | N59: =VLOOKUP(C:C,'[1]2024B1-B6清单'!$A:$P,16,0) -> 浦江牧童鞋业 | O59: =VLOOKUP(C:C,'[1]2024B1-B6清单'!$A:$Q,17,0) -> 330726908000000380 | P59: =VLOOKUP(C:C,'[1]2024B1-B6清单'!$A:$C,3,0) -> 浦江 | Q59: 2024 | R59: 2024B6
A60: 59 | B60: 2024年8月19日总经理专题办公会议纪要 | C60: 330700340190 | D60: =VLOOKUP(C:C,'[1]2024B1-B6清单'!$A:$D,4,0) -> 动力及环境监控单元 | E60: =VLOOKUP(C:C,'[1]2024B1-B6清单'!$A:$E,5,0) -> 动环 | F60: =VLOOKUP(C:C,'[1]2024B1-B6清单'!$A:$X,24,0) -> 2413.68 | G60: =VLOOKUP(C:C,'[1]2024B1-B6清单'!$A:$Y,25,0) -> 2341.27 | H60: 1 | I60: =VLOOKUP(C:C,'[1]2024B1-B6清单'!$A:$Z,26,0) -> 72.41 | J60: 个 | L60: 动力及环境监控单元 | N60: =VLOOKUP(C:C,'[1]2024B1-B6清单'!$A:$P,16,0) -> 浦江白马浦东 | O60: =VLOOKUP(C:C,'[1]2024B1-B6清单'!$A:$Q,17,0) -> 330726908000000674 | P60: =VLOOKUP(C:C,'[1]2024B1-B6清单'!$A:$C,3,0) -> 浦江 | Q60: 2024 | R60: 2024B6
A61: 60 | B61: 2024年8月19日总经理专题办公会议纪要 | C61: 330700318688 | D61: =VLOOKUP(C:C,'[1]2024B1-B6清单'!$A:$D,4,0) -> 动环监控设备 | E61: =VLOOKUP(C:C,'[1]2024B1-B6清单'!$A:$E,5,0) -> 动环 | F61: =VLOOKUP(C:C,'[1]2024B1-B6清单'!$A:$X,24,0) -> 4839.17 | G61: =VLOOKUP(C:C,'[1]2024B1-B6清单'!$A:$Y,25,0) -> 4693.99 | H61: 1 | I61: =VLOOKUP(C:C,'[1]2024B1-B6清单'!$A:$Z,26,0) -> 145.18 | J61: 个 | L61: 动力及环境监控单元 | N61: =VLOOKUP(C:C,'[1]2024B1-B6清单'!$A:$P,16,0) -> 浦江曹街 | O61: =VLOOKUP(C:C,'[1]2024B1-B6清单'!$A:$Q,17,0) -> 330726908000000879 | P61: =VLOOKUP(C:C,'[1]2024B1-B6清单'!$A:$C,3,0) -> 浦江 | Q61: 2024 | R61: 2024B6
A62: 61 | B62: 2024年8月19日总经理专题办公会议纪要 | C62: 330700340067 | D62: =VLOOKUP(C:C,'[1]2024B1-B6清单'!$A:$D,4,0) -> 动力及环境监控单元 | E62: =VLOOKUP(C:C,'[1]2024B1-B6清单'!$A:$E,5,0) -> 动环 | F62: =VLOOKUP(C:C,'[1]2024B1-B6清单'!$A:$X,24,0) -> 2837.54 | G62: =VLOOKUP(C:C,'[1]2024B1-B6清单'!$A:$Y,25,0) -> 2752.41 | H62: 1 | I62: =VLOOKUP(C:C,'[1]2024B1-B6清单'!$A:$Z,26,0) -> 85.13 | J62: 个 | L62: 动力及环境监控单元 | N62: =VLOOKUP(C:C,'[1]2024B1-B6清单'!$A:$P,16,0) -> 浦江城北安置区 | O62: =VLOOKUP(C:C,'[1]2024B1-B6清单'!$A:$Q,17,0) -> 330726908000000638 | P62: =VLOOKUP(C:C,'[1]2024B1-B6清单'!$A:$C,3,0) -> 浦江 | Q62: 2024 | R62: 2024B6
A63: 62 | B63: 2024年8月19日总经理专题办公会议纪要 | C63: 330700340072 | D63: =VLOOKUP(C:C,'[1]2024B1-B6清单'!$A:$D,4,0) -> 动力及环境监控单元 | E63: =VLOOKUP(C:C,'[1]2024B1-B6清单'!$A:$E,5,0) -> 动环 | F63: =VLOOKUP(C:C,'[1]2024B1-B6清单'!$A:$X,24,0) -> 2455.71 | G63: =VLOOKUP(C:C,'[1]2024B1-B6清单'!$A:$Y,25,0) -> 2382.04 | H63: 1 | I63: =VLOOKUP(C:C,'[1]2024B1-B6清单'!$A:$Z,26,0) -> 73.67 | J63: 个 | L63: 动力及环境监控单元 | N63: =VLOOKUP(C:C,'[1]2024B1-B6清单'!$A:$P,16,0) -> 浦江大畈郑家 | O63: =VLOOKUP(C:C,'[1]2024B1-B6清单'!$A:$Q,17,0) -> 330726908000000773 | P63: =VLOOKUP(C:C,'[1]2024B1-B6清单'!$A:$C,3,0) -> 浦江 | Q63: 2024 | R63: 2024B6
A64: 63 | B64: 2024年8月19日总经理专题办公会议纪要 | C64: 330700352753 | D64: =VLOOKUP(C:C,'[1]2024B1-B6清单'!$A:$D,4,0) -> 动力及环境监控单元 | E64: =VLOOKUP(C:C,'[1]2024B1-B6清单'!$A:$E,5,0) -> 动环 | F64: =VLOOKUP(C:C,'[1]2024B1-B6清单'!$A:$X,24,0) -> 3673.49 | G64: =VLOOKUP(C:C,'[1]2024B1-B6清单'!$A:$Y,25,0) -> 3563.29 | H64: 1 | I64: =VLOOKUP(C:C,'[1]2024B1-B6清单'!$A:$Z,26,0) -> 110.2 | J64: 个 | L64: 动力及环境监控单元 | N64: =VLOOKUP(C:C,'[1]2024B1-B6清单'!$A:$P,16,0) -> 浦江杭坪2 | O64: =VLOOKUP(C:C,'[1]2024B1-B6清单'!$A:$Q,17,0) -> 330726908000000860 | P64: =VLOOKUP(C:C,'[1]2024B1-B6清单'!$A:$C,3,0) -> 浦江 | Q64: 2024 | R64: 2024B6
A65: 64 | B65: 2024年8月19日总经理专题办公会议纪要 | C65: 330700341856 | D65: =VLOOKUP(C:C,'[1]2024B1-B6清单'!$A:$D,4,0) -> 动力及环境监控单元 | E65: =VLOOKUP(C:C,'[1]2024B1-B6清单'!$A:$E,5,0) -> 动环 | F65: =VLOOKUP(C:C,'[1]2024B1-B6清单'!$A:$X,24,0) -> 3474.75 | G65: =VLOOKUP(C:C,'[1]2024B1-B6清单'!$A:$Y,25,0) -> 3370.51 | H65: 1 | I65: =VLOOKUP(C:C,'[1]2024B1-B6清单'!$A:$Z,26,0) -> 104.24 | J65: 个 | L65: 动力及环境监控单元 | N65: =VLOOKUP(C:C,'[1]2024B1-B6清单'!$A:$P,16,0) -> 浦江后芦金二 | O65: =VLOOKUP(C:C,'[1]2024B1-B6清单'!$A:$Q,17,0) -> 330726908000000276 | P65: =VLOOKUP(C:C,'[1]2024B1-B6清单'!$A:$C,3,0) -> 浦江 | Q65: 2024 | R65: 2024B6
A66: 65 | B66: 2024年8月19日总经理专题办公会议纪要 | C66: 330700319939 | D66: =VLOOKUP(C:C,'[1]2024B1-B6清单'!$A:$D,4,0) -> 动环监控设备 | E66: =VLOOKUP(C:C,'[1]2024B1-B6清单'!$A:$E,5,0) -> 动环 | F66: =VLOOKUP(C:C,'[1]2024B1-B6清单'!$A:$X,24,0) -> 5062.24 | G66: =VLOOKUP(C:C,'[1]2024B1-B6清单'!$A:$Y,25,0) -> 4910.37 | H66: 1 | I66: =VLOOKUP(C:C,'[1]2024B1-B6清单'!$A:$Z,26,0) -> 151.87 | J66: 个 | L66: 动力及环境监控单元 | N66: =VLOOKUP(C:C,'[1]2024B1-B6清单'!$A:$P,16,0) -> 浦江后叶村 | O66: =VLOOKUP(C:C,'[1]2024B1-B6清单'!$A:$Q,17,0) -> 33072600000220 | P66: =VLOOKUP(C:C,'[1]2024B1-B6清单'!$A:$C,3,0) -> 浦江 | Q66: 2024 | R66: 2024B6
A67: 66 | B67: 2024年8月19日总经理专题办公会议纪要 | C67: 330700315893 | D67: =VLOOKUP(C:C,'[1]2024B1-B6清单'!$A:$D,4,0) -> 动环监控设备 无线通信模块 | E67: =VLOOKUP(C:C,'[1]2024B1-B6清单'!$A:$E,5,0) -> 动环 | F67: =VLOOKUP(C:C,'[1]2024B1-B6清单'!$A:$X,24,0) -> 3959.39 | G67: =VLOOKUP(C:C,'[1]2024B1-B6清单'!$A:$Y,25,0) -> 3840.61 | H67: 1 | I67: =VLOOKUP(C:C,'[1]2024B1-B6清单'!$A:$Z,26,0) -> 118.78 | J67: 个 | L67: 动力及环境监控单元 | N67: =VLOOKUP(C:C,'[1]2024B1-B6清单'!$A:$P,16,0) -> 浦江花桥3 | O67: =VLOOKUP(C:C,'[1]2024B1-B6清单'!$A:$Q,17,0) -> 33072600000063 | P67: =VLOOKUP(C:C,'[1]2024B1-B6清单'!$A:$C,3,0) -> 浦江 | Q67: 2024 | R67: 2024B6
A68: 67 | B68: 2024年8月19日总经理专题办公会议纪要 | C68: 330700340051 | D68: =VLOOKUP(C:C,'[1]2024B1-B6清单'!$A:$D,4,0) -> 动力及环境监控单元 | E68: =VLOOKUP(C:C,'[1]2024B1-B6清单'!$A:$E,5,0) -> 动环 | F68: =VLOOKUP(C:C,'[1]2024B1-B6清单'!$A:$X,24,0) -> 2455.71 | G68: =VLOOKUP(C:C,'[1]2024B1-B6清单'!$A:$Y,25,0) -> 2382.04 | H68: 1 | I68: =VLOOKUP(C:C,'[1]2024B1-B6清单'!$A:$Z,26,0) -> 73.67 | J68: 个 | L68: 动力及环境监控单元 | N68: =VLOOKUP(C:C,'[1]2024B1-B6清单'!$A:$P,16,0) -> 浦江花桥林坞口 | O68: =VLOOKUP(C:C,'[1]2024B1-B6清单'!$A:$Q,17,0) -> 330726908000000689 | P68: =VLOOKUP(C:C,'[1]2024B1-B6清单'!$A:$C,3,0) -> 浦江 | Q68: 2024 | R68: 2024B6
A69: 68 | B69: 2024年8月19日总经理专题办公会议纪要 | C69: 330700309939 | D69: =VLOOKUP(C:C,'[1]2024B1-B6清单'!$A:$D,4,0) -> 动环监控设备 无线通信模块 | E69: =VLOOKUP(C:C,'[1]2024B1-B6清单'!$A:$E,5,0) -> 动环 | F69: =VLOOKUP(C:C,'[1]2024B1-B6清单'!$A:$X,24,0) -> 4008.78 | G69: =VLOOKUP(C:C,'[1]2024B1-B6清单'!$A:$Y,25,0) -> 3888.52 | H69: 1 | I69: =VLOOKUP(C:C,'[1]2024B1-B6清单'!$A:$Z,26,0) -> 120.26 | J69: 个 | L69: 动力及环境监控单元 | N69: =VLOOKUP(C:C,'[1]2024B1-B6清单'!$A:$P,16,0) -> 浦江花山村 | O69: =VLOOKUP(C:C,'[1]2024B1-B6清单'!$A:$Q,17,0) -> 33072600000129 | P69: =VLOOKUP(C:C,'[1]2024B1-B6清单'!$A:$C,3,0) -> 浦江 | Q69: 2024 | R69: 2024B6
A70: 69 | B70: 2024年8月19日总经理专题办公会议纪要 | C70: 330700339797 | D70: =VLOOKUP(C:C,'[1]2024B1-B6清单'!$A:$D,4,0) -> 动力及环境监控单元 | E70: =VLOOKUP(C:C,'[1]2024B1-B6清单'!$A:$E,5,0) -> 动环 | F70: =VLOOKUP(C:C,'[1]2024B1-B6清单'!$A:$X,24,0) -> 3543.99 | G70: =VLOOKUP(C:C,'[1]2024B1-B6清单'!$A:$Y,25,0) -> 3437.67 | H70: 1 | I70: =VLOOKUP(C:C,'[1]2024B1-B6清单'!$A:$Z,26,0) -> 106.32 | J70: 个 | L70: 动力及环境监控单元 | N70: =VLOOKUP(C:C,'[1]2024B1-B6清单'!$A:$P,16,0) -> 浦江花山村 | O70: =VLOOKUP(C:C,'[1]2024B1-B6清单'!$A:$Q,17,0) -> 33072600000129 | P70: =VLOOKUP(C:C,'[1]2024B1-B6清单'!$A:$C,3,0) -> 浦江 | Q70: 2024 | R70: 2024B6
A71: 70 | B71: 2024年8月19日总经理专题办公会议纪要 | C71: 330700341649 | D71: =VLOOKUP(C:C,'[1]2024B1-B6清单'!$A:$D,4,0) -> 动力及环境监控单元 | E71: =VLOOKUP(C:C,'[1]2024B1-B6清单'!$A:$E,5,0) -> 动环 | F71: =VLOOKUP(C:C,'[1]2024B1-B6清单'!$A:$X,24,0) -> 2925.06 | G71: =VLOOKUP(C:C,'[1]2024B1-B6清单'!$A:$Y,25,0) -> 2837.31 | H71: 1 | I71: =VLOOKUP(C:C,'[1]2024B1-B6清单'!$A:$Z,26,0) -> 87.75 | J71: 个 | L71: 动力及环境监控单元 | N71: =VLOOKUP(C:C,'[1]2024B1-B6清单'!$A:$P,16,0) -> 浦江黄方村 | O71: =VLOOKUP(C:C,'[1]2024B1-B6清单'!$A:$Q,17,0) -> 330726908000000182 | P71: =VLOOKUP(C:C,'[1]2024B1-B6清单'!$A:$C,3,0) -> 浦江 | Q71: 2024 | R71: 2024B6
A72: 71 | B72: 2024年8月19日总经理专题办公会议纪要 | C72: 330700340226 | D72: =VLOOKUP(C:C,'[1]2024B1-B6清单'!$A:$D,4,0) -> 动力及环境监控单元 | E72: =VLOOKUP(C:C,'[1]2024B1-B6清单'!$A:$E,5,0) -> 动环 | F72: =VLOOKUP(C:C,'[1]2024B1-B6清单'!$A:$X,24,0) -> 2527.8 | G72: =VLOOKUP(C:C,'[1]2024B1-B6清单'!$A:$Y,25,0) -> 2451.97 | H72: 1 | I72: =VLOOKUP(C:C,'[1]2024B1-B6清单'!$A:$Z,26,0) -> 75.83 | J72: 个 | L72: 动力及环境监控单元 | N72: =VLOOKUP(C:C,'[1]2024B1-B6清单'!$A:$P,16,0) -> 浦江黄宅百汇创业园 | O72: =VLOOKUP(C:C,'[1]2024B1-B6清单'!$A:$Q,17,0) -> 330726908000000848 | P72: =VLOOKUP(C:C,'[1]2024B1-B6清单'!$A:$C,3,0) -> 浦江 | Q72: 2024 | R72: 2024B6
A73: 72 | B73: 2024年8月19日总经理专题办公会议纪要 | C73: 330700341598 | D73: =VLOOKUP(C:C,'[1]2024B1-B6清单'!$A:$D,4,0) -> 动力及环境监控单元 | E73: =VLOOKUP(C:C,'[1]2024B1-B6清单'!$A:$E,5,0) -> 动环 | F73: =VLOOKUP(C:C,'[1]2024B1-B6清单'!$A:$X,24,0) -> 2925.06 | G73: =VLOOKUP(C:C,'[1]2024B1-B6清单'!$A:$Y,25,0) -> 2837.31 | H73: 1 | I73: =VLOOKUP(C:C,'[1]2024B1-B6清单'!$A:$Z,26,0) -> 87.75 | J73: 个 | L73: 动力及环境监控单元 | N73: =VLOOKUP(C:C,'[1]2024B1-B6清单'!$A:$P,16,0) -> 浦江刘笙 | O73: =VLOOKUP(C:C,'[1]2024B1-B6清单'!$A:$Q,17,0) -> 330726908000000147 | P73: =VLOOKUP(C:C,'[1]2024B1-B6清单'!$A:$C,3,0) -> 浦江 | Q73: 2024 | R73: 2024B6
A74: 73 | B74: 2024年8月19日总经理专题办公会议纪要 | C74: 330700340088 | D74: =VLOOKUP(C:C,'[1]2024B1-B6清单'!$A:$D,4,0) -> 动力及环境监控单元 | E74: =VLOOKUP(C:C,'[1]2024B1-B6清单'!$A:$E,5,0) -> 动环 | F74: =VLOOKUP(C:C,'[1]2024B1-B6清单'!$A:$X,24,0) -> 2527.8 | G74: =VLOOKUP(C:C,'[1]2024B1-B6清单'!$A:$Y,25,0) -> 2451.97 | H74: 1 | I74: =VLOOKUP(C:C,'[1]2024B1-B6清单'!$A:$Z,26,0) -> 75.83 | J74: 个 | L74: 动力及环境监控单元 | N74: =VLOOKUP(C:C,'[1]2024B1-B6清单'!$A:$P,16,0) -> 浦江蒙山 | O74: =VLOOKUP(C:C,'[1]2024B1-B6清单'!$A:$Q,17,0) -> 330726908000000943 | P74: =VLOOKUP(C:C,'[1]2024B1-B6清单'!$A:$C,3,0) -> 浦江 | Q74: 2024 | R74: 2024B6
A75: 74 | B75: 2024年8月19日总经理专题办公会议纪要 | C75: 330700341900 | D75: =VLOOKUP(C:C,'[1]2024B1-B6清单'!$A:$D,4,0) -> 动力及环境监控单元 | E75: =VLOOKUP(C:C,'[1]2024B1-B6清单'!$A:$E,5,0) -> 动环 | F75: =VLOOKUP(C:C,'[1]2024B1-B6清单'!$A:$X,24,0) -> 2925.06 | G75: =VLOOKUP(C:C,'[1]2024B1-B6清单'!$A:$Y,25,0) -> 2837.31 | H75: 1 | I75: =VLOOKUP(C:C,'[1]2024B1-B6清单'!$A:$Z,26,0) -> 87.75 | J75: 个 | L75: 动力及环境监控单元 | N75: =VLOOKUP(C:C,'[1]2024B1-B6清单'!$A:$P,16,0) -> 浦江平安巧溪 | O75: =VLOOKUP(C:C,'[1]2024B1-B6清单'!$A:$Q,17,0) -> 330726700000087200 | P75: =VLOOKUP(C:C,'[1]2024B1-B6清单'!$A:$C,3,0) -> 浦江 | Q75: 2024 | R75: 2024B6
A76: 75 | B76: 2024年8月19日总经理专题办公会议纪要 | C76: 330700335771 | D76: =VLOOKUP(C:C,'[1]2024B1-B6清单'!$A:$D,4,0) -> 动力及环境监控单元 | E76: =VLOOKUP(C:C,'[1]2024B1-B6清单'!$A:$E,5,0) -> 动环 | F76: =VLOOKUP(C:C,'[1]2024B1-B6清单'!$A:$X,24,0) -> 3007 | G76: =VLOOKUP(C:C,'[1]2024B1-B6清单'!$A:$Y,25,0) -> 2916.79 | H76: 1 | I76: =VLOOKUP(C:C,'[1]2024B1-B6清单'!$A:$Z,26,0) -> 90.21 | J76: 个 | L76: 动力及环境监控单元 | N76: =VLOOKUP(C:C,'[1]2024B1-B6清单'!$A:$P,16,0) -> 浦江浦东村 | O76: =VLOOKUP(C:C,'[1]2024B1-B6清单'!$A:$Q,17,0) -> 33072600000132 | P76: =VLOOKUP(C:C,'[1]2024B1-B6清单'!$A:$C,3,0) -> 浦江 | Q76: 2024 | R76: 2024B6
A77: 76 | B77: 2024年8月19日总经理专题办公会议纪要 | C77: 330700340237 | D77: =VLOOKUP(C:C,'[1]2024B1-B6清单'!$A:$D,4,0) -> 动力及环境监控单元 | E77: =VLOOKUP(C:C,'[1]2024B1-B6清单'!$A:$E,5,0) -> 动环 | F77: =VLOOKUP(C:C,'[1]2024B1-B6清单'!$A:$X,24,0) -> 2925.06 | G77: =VLOOKUP(C:C,'[1]2024B1-B6清单'!$A:$Y,25,0) -> 2837.31 | H77: 1 | I77: =VLOOKUP(C:C,'[1]2024B1-B6清单'!$A:$Z,26,0) -> 87.75 | J77: 个 | L77: 动力及环境监控单元 | N77: =VLOOKUP(C:C,'[1]2024B1-B6清单'!$A:$P,16,0) -> 浦江前吴毛家 | O77: =VLOOKUP(C:C,'[1]2024B1-B6清单'!$A:$Q,17,0) -> 330726908000000644 | P77: =VLOOKUP(C:C,'[1]2024B1-B6清单'!$A:$C,3,0) -> 浦江 | Q77: 2024 | R77: 2024B6
A78: 77 | B78: 2024年8月19日总经理专题办公会议纪要 | C78: 330700318979 | D78: =VLOOKUP(C:C,'[1]2024B1-B6清单'!$A:$D,4,0) -> 动环监控设备 | E78: =VLOOKUP(C:C,'[1]2024B1-B6清单'!$A:$E,5,0) -> 动环 | F78: =VLOOKUP(C:C,'[1]2024B1-B6清单'!$A:$X,24,0) -> 4914.26 | G78: =VLOOKUP(C:C,'[1]2024B1-B6清单'!$A:$Y,25,0) -> 4766.83 | H78: 1 | I78: =VLOOKUP(C:C,'[1]2024B1-B6清单'!$A:$Z,26,0) -> 147.43 | J78: 个 | L78: 动力及环境监控单元 | N78: =VLOOKUP(C:C,'[1]2024B1-B6清单'!$A:$P,16,0) -> 浦江三雅店村 | O78: =VLOOKUP(C:C,'[1]2024B1-B6清单'!$A:$Q,17,0) -> 33072600000133 | P78: =VLOOKUP(C:C,'[1]2024B1-B6清单'!$A:$C,3,0) -> 浦江 | Q78: 2024 | R78: 2024B6
A79: 78 | B79: 2024年8月19日总经理专题办公会议纪要 | C79: 330700335713 | D79: =VLOOKUP(C:C,'[1]2024B1-B6清单'!$A:$D,4,0) -> 动力及环境监控单元 | E79: =VLOOKUP(C:C,'[1]2024B1-B6清单'!$A:$E,5,0) -> 动环 | F79: =VLOOKUP(C:C,'[1]2024B1-B6清单'!$A:$X,24,0) -> 2962.32 | G79: =VLOOKUP(C:C,'[1]2024B1-B6清单'!$A:$Y,25,0) -> 2873.45 | H79: 1 | I79: =VLOOKUP(C:C,'[1]2024B1-B6清单'!$A:$Z,26,0) -> 88.87 | J79: 个 | L79: 动力及环境监控单元 | N79: =VLOOKUP(C:C,'[1]2024B1-B6清单'!$A:$P,16,0) -> 浦江上童山 | O79: =VLOOKUP(C:C,'[1]2024B1-B6清单'!$A:$Q,17,0) -> 330726908000000361 | P79: =VLOOKUP(C:C,'[1]2024B1-B6清单'!$A:$C,3,0) -> 浦江 | Q79: 2024 | R79: 2024B6
A80: 79 | B80: 2024年8月19日总经理专题办公会议纪要 | C80: 330700335419 | D80: =VLOOKUP(C:C,'[1]2024B1-B6清单'!$A:$D,4,0) -> 动环监控设备FSU | E80: =VLOOKUP(C:C,'[1]2024B1-B6清单'!$A:$E,5,0) -> 动环 | F80: =VLOOKUP(C:C,'[1]2024B1-B6清单'!$A:$X,24,0) -> 7778.77 | G80: =VLOOKUP(C:C,'[1]2024B1-B6清单'!$A:$Y,25,0) -> 7545.41 | H80: 1 | I80: =VLOOKUP(C:C,'[1]2024B1-B6清单'!$A:$Z,26,0) -> 233.36 | J80: 个 | L80: 动力及环境监控单元 | N80: =VLOOKUP(C:C,'[1]2024B1-B6清单'!$A:$P,16,0) -> 浦江狮岩 | O80: =VLOOKUP(C:C,'[1]2024B1-B6清单'!$A:$Q,17,0) -> 330726908000000516 | P80: =VLOOKUP(C:C,'[1]2024B1-B6清单'!$A:$C,3,0) -> 浦江 | Q80: 2024 | R80: 2024B6
A81: 80 | B81: 2024年8月19日总经理专题办公会议纪要 | C81: 330700340199 | D81: =VLOOKUP(C:C,'[1]2024B1-B6清单'!$A:$D,4,0) -> 动力及环境监控单元 | E81: =VLOOKUP(C:C,'[1]2024B1-B6清单'!$A:$E,5,0) -> 动环 | F81: =VLOOKUP(C:C,'[1]2024B1-B6清单'!$A:$X,24,0) -> 2925.06 | G81: =VLOOKUP(C:C,'[1]2024B1-B6清单'!$A:$Y,25,0) -> 2837.31 | H81: 1 | I81: =VLOOKUP(C:C,'[1]2024B1-B6清单'!$A:$Z,26,0) -> 87.75 | J81: 个 | L81: 动力及环境监控单元 | N81: =VLOOKUP(C:C,'[1]2024B1-B6清单'!$A:$P,16,0) -> 浦江石马-2 | O81: =VLOOKUP(C:C,'[1]2024B1-B6清单'!$A:$Q,17,0) -> 330726908000000585 | P81: =VLOOKUP(C:C,'[1]2024B1-B6清单'!$A:$C,3,0) -> 浦江 | Q81: 2024 | R81: 2024B6
A82: 81 | B82: 2024年8月19日总经理专题办公会议纪要 | C82: 330700319955 | D82: =VLOOKUP(C:C,'[1]2024B1-B6清单'!$A:$D,4,0) -> 动环监控设备 | E82: =VLOOKUP(C:C,'[1]2024B1-B6清单'!$A:$E,5,0) -> 动环 | F82: =VLOOKUP(C:C,'[1]2024B1-B6清单'!$A:$X,24,0) -> 3702.84 | G82: =VLOOKUP(C:C,'[1]2024B1-B6清单'!$A:$Y,25,0) -> 3591.75 | H82: 1 | I82: =VLOOKUP(C:C,'[1]2024B1-B6清单'!$A:$Z,26,0) -> 111.09 | J82: 个 | L82: 动力及环境监控单元 | N82: =VLOOKUP(C:C,'[1]2024B1-B6清单'!$A:$P,16,0) -> 浦江先锋村 | O82: =VLOOKUP(C:C,'[1]2024B1-B6清单'!$A:$Q,17,0) -> 33072600000230 | P82: =VLOOKUP(C:C,'[1]2024B1-B6清单'!$A:$C,3,0) -> 浦江 | Q82: 2024 | R82: 2024B6
A83: 82 | B83: 2024年8月19日总经理专题办公会议纪要 | C83: 330700342870 | D83: =VLOOKUP(C:C,'[1]2024B1-B6清单'!$A:$D,4,0) -> 动力及环境监控单元 | E83: =VLOOKUP(C:C,'[1]2024B1-B6清单'!$A:$E,5,0) -> 动环 | F83: =VLOOKUP(C:C,'[1]2024B1-B6清单'!$A:$X,24,0) -> 19057.6 | G83: =VLOOKUP(C:C,'[1]2024B1-B6清单'!$A:$Y,25,0) -> 18485.87 | H83: 1 | I83: =VLOOKUP(C:C,'[1]2024B1-B6清单'!$A:$Z,26,0) -> 571.73 | J83: 个 | L83: 动力及环境监控单元 | N83: =VLOOKUP(C:C,'[1]2024B1-B6清单'!$A:$P,16,0) -> 浦江新关村 | O83: =VLOOKUP(C:C,'[1]2024B1-B6清单'!$A:$Q,17,0) -> 33072600000020 | P83: =VLOOKUP(C:C,'[1]2024B1-B6清单'!$A:$C,3,0) -> 浦江 | Q83: 2024 | R83: 2024B6
A84: 83 | B84: 2024年8月19日总经理专题办公会议纪要 | C84: 330700340070 | D84: =VLOOKUP(C:C,'[1]2024B1-B6清单'!$A:$D,4,0) -> 动力及环境监控单元 | E84: =VLOOKUP(C:C,'[1]2024B1-B6清单'!$A:$E,5,0) -> 动环 | F84: =VLOOKUP(C:C,'[1]2024B1-B6清单'!$A:$X,24,0) -> 2937.63 | G84: =VLOOKUP(C:C,'[1]2024B1-B6清单'!$A:$Y,25,0) -> 2849.5 | H84: 1 | I84: =VLOOKUP(C:C,'[1]2024B1-B6清单'!$A:$Z,26,0) -> 88.13 | J84: 个 | L84: 动力及环境监控单元 | N84: =VLOOKUP(C:C,'[1]2024B1-B6清单'!$A:$P,16,0) -> 浦江新浦中 | O84: =VLOOKUP(C:C,'[1]2024B1-B6清单'!$A:$Q,17,0) -> 330726908000000108 | P84: =VLOOKUP(C:C,'[1]2024B1-B6清单'!$A:$C,3,0) -> 浦江 | Q84: 2024 | R84: 2024B6
A85: 84 | B85: 2024年8月19日总经理专题办公会议纪要 | C85: 330700340045 | D85: =VLOOKUP(C:C,'[1]2024B1-B6清单'!$A:$D,4,0) -> 动力及环境监控单元 | E85: =VLOOKUP(C:C,'[1]2024B1-B6清单'!$A:$E,5,0) -> 动环 | F85: =VLOOKUP(C:C,'[1]2024B1-B6清单'!$A:$X,24,0) -> 2455.71 | G85: =VLOOKUP(C:C,'[1]2024B1-B6清单'!$A:$Y,25,0) -> 2382.04 | H85: 1 | I85: =VLOOKUP(C:C,'[1]2024B1-B6清单'!$A:$Z,26,0) -> 73.67 | J85: 个 | L85: 动力及环境监控单元 | N85: =VLOOKUP(C:C,'[1]2024B1-B6清单'!$A:$P,16,0) -> 浦江虞宅马岭脚-2 | O85: =VLOOKUP(C:C,'[1]2024B1-B6清单'!$A:$Q,17,0) -> 330726908000000686 | P85: =VLOOKUP(C:C,'[1]2024B1-B6清单'!$A:$C,3,0) -> 浦江 | Q85: 2024 | R85: 2024B6
A86: 85 | B86: 2024年8月19日总经理专题办公会议纪要 | C86: 330700329399 | D86: =VLOOKUP(C:C,'[1]2024B1-B6清单'!$A:$D,4,0) -> 动力及环境监控单元 | E86: =VLOOKUP(C:C,'[1]2024B1-B6清单'!$A:$E,5,0) -> 动环 | F86: =VLOOKUP(C:C,'[1]2024B1-B6清单'!$A:$X,24,0) -> 6507.78 | G86: =VLOOKUP(C:C,'[1]2024B1-B6清单'!$A:$Y,25,0) -> 6312.55 | H86: 1 | I86: =VLOOKUP(C:C,'[1]2024B1-B6清单'!$A:$Z,26,0) -> 195.23 | J86: 个 | L86: 动力及环境监控单元 | N86: =VLOOKUP(C:C,'[1]2024B1-B6清单'!$A:$P,16,0) -> 浦江郑宅水晶集聚园区 | O86: =VLOOKUP(C:C,'[1]2024B1-B6清单'!$A:$Q,17,0) -> 33072601000432 | P86: =VLOOKUP(C:C,'[1]2024B1-B6清单'!$A:$C,3,0) -> 浦江 | Q86: 2024 | R86: 2024B6
A87: 86 | B87: 2024年8月19日总经理专题办公会议纪要 | C87: 330700342869 | D87: =VLOOKUP(C:C,'[1]2024B1-B6清单'!$A:$D,4,0) -> 动力及环境监控单元 | E87: =VLOOKUP(C:C,'[1]2024B1-B6清单'!$A:$E,5,0) -> 动环 | F87: =VLOOKUP(C:C,'[1]2024B1-B6清单'!$A:$X,24,0) -> 18972.36 | G87: =VLOOKUP(C:C,'[1]2024B1-B6清单'!$A:$Y,25,0) -> 18403.19 | H87: 1 | I87: =VLOOKUP(C:C,'[1]2024B1-B6清单'!$A:$Z,26,0) -> 569.17 | J87: 个 | L87: 动力及环境监控单元 | N87: =VLOOKUP(C:C,'[1]2024B1-B6清单'!$A:$P,16,0) -> 浦江朱宅二 | O87: =VLOOKUP(C:C,'[1]2024B1-B6清单'!$A:$Q,17,0) -> 33072600000021 | P87: =VLOOKUP(C:C,'[1]2024B1-B6清单'!$A:$C,3,0) -> 浦江 | Q87: 2024 | R87: 2024B6
A88: 87 | B88: / | C88: 330700316649ZLMK01 | D88: 模块 | E88: 模块 | H88: 1 | J88: 个 | L88: 整流模块ZXD3000 | N88: 东阳横店下朱村 | O88: 330783500000000148 | P88: 东阳 | Q88: 2024
A89: 88 | B89: / | C89: 330700316649ZLMK02 | D89: 模块 | E89: 模块 | H89: 1 | J89: 个 | L89: 整流模块ZXD3000 | N89: 东阳横店下朱村 | O89: 330783500000000148 | P89: 东阳 | Q89: 2024
A90: 89 | B90: / | C90: 无 | D90: 电线电缆 | E90: 电线电缆 | H90: 1 | J90: 根 | L90: 25方铜线2米/根 | N90: 东阳南马大仁 | O90: 330783908000000338 | P90: 东阳 | Q90: 2024
A91: 90 | B91: / | C91: 无 | D91: 电线电缆 | E91: 电线电缆 | H91: 1 | J91: 根 | L91: 35方铜线3米/根 | N91: 东阳横店下朱村 | O91: 330783500000000148 | P91: 东阳 | Q91: 2024
A92: 91 | B92: / | C92: 无 | D92: 电线电缆 | E92: 电线电缆 | H92: 1 | J92: 根 | L92: 70方铜线3米/根 | N92: 东阳横店下朱村 | O92: 330783500000000148 | P92: 东阳 | Q92: 2024
A93: 92 | B93: / | C93: 无 | D93: 电线电缆 | E93: 电线电缆 | H93: 2 | J93: 根 | L93: 95方铜线2米/根 | N93: 东阳横店下朱村 | O93: 330783500000000148 | P93: 东阳 | Q93: 2024
A94: 93 | B94: / | C94: 无 | D94: 走线架 | E94: 走线架 | H94: 1 | J94: 个 | L94: 走线架 | N94: 东阳横店下朱村 | O94: 330783500000000148 | P94: 东阳 | Q94: 2024
A95: 94 | B95: / | C95: 无 | D95: 铜牌 | E95: 铜牌 | H95: 2 | J95: 段 | L95: 铜牌 | N95: 东阳横店下朱村 | O95: 330783500000000148 | P95: 东阳 | Q95: 2024

Sheet 嘉兴
A1: 序号 | B1: 报废批复文号 | C1: 资产编号 | D1: 资产名称 | E1: 资产原值 （元，不含税） | F1: 资产净值 （元，不含税） | G1: 累计折旧 | H1: 资产数量 | I1: 计量单位 （个/吨/米等） | J1: 单节电池电压（2V/12V） | K1: 规格型号 | L1: 生产厂家 | M1: 站点名称 | N1: 站点编码 | O1: 批号 | P1: 备注
A2: 1 | B2: 嘉兴铁塔党委会纪要〔2024〕第12期 | C2: 330400341372 | D2: 交流配电箱 | E2: 2710.8 | F2: 117.91 | G2: 2592.89 | H2: 1 | I2: 个 | J2: / | K2: 不详 | L2: 省邮电 | M2: 海宁江南世家34幢 | N2: 330481500000001859 | O2: 省邮电*不详*交流配电箱*海宁江南世家34幢*330481500000001859**330400341372*整治*废旧
A3: 2 | B3: 嘉兴铁塔党委会纪要〔2024〕第12期 | C3: 330400112571 | D3: 交流配电柜 | E3: 13806.53 | F3: 414.2 | G3: 13392.33 | H3: 1 | I3: 个 | J3: / | K3: 不详 | L3: 浙江宝气 | M3: 海宁飞浪仪表厂 | N3: 330481908000000887 | O3: 浙江宝气*不详*交流配电箱*海宁飞浪仪表厂*330481908000000887**330400112571*整治*废旧
A4: 3 | B4: 嘉兴铁塔党委会纪要〔2024〕第12期 | C4: 330400356546 | D4: 交流配电箱 | E4: 1898.27 | F4: 517.3 | G4: 1380.97 | H4: 1 | I4: 个 | J4: / | K4: DPJ01-800x600x250 | L4: 通鼎宽带 | M4: 海宁荷叶村海新桥 | N4: 330481500000002002 | O4: 通鼎宽带*DPJ01-800x600x250*交流配电箱*海宁荷叶村海新桥*330481500000002002**330400356546*拆站*废旧
A5: 4 | B5: 嘉兴铁塔党委会纪要〔2024〕第12期 | C5: 330400316600 | D5: 壁挂式开关电源 | E5: 9965.35 | F5: 298.96 | G5: 9666.39 | H5: 1 | I5: 架 | J5: / | K5: 63A/2Px1 | L5: 无 | M5: 平湖伊思佳企业 | N5: 33048201000032 | O5: 无*63A/2Px1*壁挂式开关电源*平湖伊思佳企业*33048201000032**330400316600*拆站*利旧
A6: 5 | B6: 嘉兴铁塔党委会纪要〔2024〕第12期 | C6: 330400360035 | D6: 普通空调柜式 | E6: 3659.14 | F6: 1144.96 | G6: 2514.18 | H6: 1 | I6: 台 | J6: / | K6: KFR-75W/15S 3匹 | L6: 华凌 | M6: 桐乡电力营业厅-2 | N6: 330483908000000226 | O6: 华凌*KFR-75W/15S 3匹*空调*桐乡电力营业厅-2*330483908000000226**330400360035**废旧
A7: 6 | B7: 嘉兴铁塔党委会纪要〔2024〕第12期 | C7: 3304005400 | D7: 普通空调机 | E7: 6583.88 | F7: 197.52 | G7: 6386.36 | H7: 1 | I7: 台 | J7: / | K7: KF-72LW/SN-JZ1(R2)（3P带铜管）* | L7: 广东美的 | M7: 桐乡义马-3 | N7: 330483908000000465 | O7: 广东美的*普通空调*KF-72LW/SN-JZ1(R2)（3P带铜管）*桐乡义马-3*330483908000000465**3304005400*置换*废旧
A8: 7 | B8: 嘉兴铁塔党委会纪要〔2024〕第12期 | C8: 3304005209 | D8: 专用空调 | E8: 462.43 | F8: 13.87 | G8: 448.56 | H8: 1 | I8: 台 | J8: / | K8: KF-72LW/TSUS-N2（3P带铜管） | L8: 海信 | M8: 桐乡崇福老芝村南浜 | N8: 33048301000523 | O8: 海信*专用空调*KF-72LW/TSUS-N2（3P带铜管）*桐乡崇福老芝村南浜*33048301000523**3304005209*置换*废旧
A9: 8 | B9: 嘉兴铁塔党委会纪要〔2024〕第12期 | C9: 3304006963 | D9: 通用空调 | E9: 7978.47 | F9: 239.35 | G9: 7739.12 | H9: 1 | I9: 台 | J9: / | K9: KF-75LW/SUTK-N23匹 | L9: 广东科龙 | M9: 平湖花园工业区 | N9: 330482908000000701 | O9: 广东科龙*KF-75LW/SUTK-N23匹*普通空调*平湖花园工业区*330482908000000701**3304006963*拆站*废旧
A10: 9 | B10: 嘉兴铁塔党委会纪要〔2024〕第12期 | C10: 330400328546 | D10: 普通空调柜式 | E10: 6958.35 | F10: 208.75 | G10: 6749.6 | H10: 1 | I10: 台 | J10: / | K10: KF-72LW/S-JZ1(D2)3匹 | L10: 美的 | M10: 平湖全塘勤益塑料 | N10: 330482908000000091 | O10: 美的*KF-72LW/S-JZ1(D2)3匹*普通空调*平湖全塘勤益塑料*330482908000000091**330400328546*拆站*废旧
A11: 10 | B11: 嘉兴铁塔党委会纪要〔2024〕第12期 | C11: 330400116463 | D11: 普通空调-松下 | E11: 892.5 | F11: 26.78 | G11: 865.72 | H11: 1 | I11: 台 | J11: / | K11: KF-73LW/19Y23匹 | L11: 松下 | M11: 平湖大润发超市 | N11: 330482908000000519 | O11: 松下*KF-73LW/19Y23匹*普通空调*平湖大润发超市*330482908000000519**330400116463*拆站*废旧
A12: 11 | B12: 嘉兴铁塔党委会纪要〔2024〕第12期 | C12: 330400315467 | D12: 普通空调柜式 | E12: 6460.54 | F12: 193.82 | G12: 6266.72 | H12: 1 | I12: 台 | J12: / | K12: KF-72L/TSUS-N2（3p带铜管） | L12: 海信 | M12: 桐乡恒兴艺饰公司-2 | N12: 330483908000000222 | O12: 海信*KF-72L/TSUS-N2（3p带铜管）*普通空调柜式*桐乡恒兴艺饰公司-2*330483908000000222**330400315467*拆站*废旧
A13: 12 | B13: 嘉兴铁塔党委会纪要〔2024〕第10期 | C13: 330400312330 | D13: 普通空调柜式 | E13: 6168.99 | F13: 185.07 | G13: 5983.92 | H13: 1 | I13: 台 | J13: / | K13: KF-72LW/S-JZ1(D2)3P含铜管 | L13: 美的 | M13: 海盐吕冢 | N13: 330424908000000407 | O13: 美的*KF-72LW/S-JZ1(D2)3P含铜管*空调*海盐吕冢*330424908000000407**330400312330*拆站*废旧
A14: 13 | B14: 嘉兴铁塔党委会纪要〔2024〕第10期 | C14: 330400133616 | D14: 专用空调 | E14: 201 | F14: 6.03 | G14: 194.97 | H14: 1 | I14: 台 | J14: / | K14: KF-72LW/HV10S(5)3P含铜管 | L14: 华菱 | M14: 海盐元通老街 | N14: 330424908000000121 | O14: 华菱*KF-72LW/HV10S(5)3P含铜管*空调*海盐元通老街*330424908000000121**330400133616*拆站*废旧
A15: 14 | B15: 嘉兴铁塔党委会纪要〔2024〕第10期 | C15: 330400107545 | D15: 专用空调 | E15: 4158 | F15: 124.74 | G15: 4033.26 | H15: 1 | I15: 台 | J15: / | K15: KF-120LW/35T(02)5P含铜管 | L15: 海信 | M15: 海盐秦山方家山 | N15: 330424908000000299 | O15: 海信*KF-120LW/35T(02)5P含铜管*空调*海盐秦山方家山*330424908000000299**330400107545*拆站*废旧
A16: 15 | B16: 嘉兴铁塔党委会纪要〔2024〕第10期 | C16: 330400107546 | D16: 专用空调 | E16: 1335.52 | F16: 40.07 | G16: 1295.45 | H16: 1 | I16: 台 | J16: / | K16: KF-72LW/TSUS-N23P含铜管 | L16: 海信 | M16: 海盐秦山方家山 | N16: 330424908000000299 | O16: 海信*KF-72LW/TSUS-N23P含铜管*空调*海盐秦山方家山*330424908000000299**330400107546*拆站*废旧
A17: 16 | B17: 嘉兴铁塔党委会纪要〔2024〕第12期 | C17: 330400115443 | D17: 专用空调 | E17: 201 | F17: 6.03 | G17: 194.97 | H17: 1 | I17: 台 | J17: / | K17: KF-72LW-HV10S(5)3P含铜管 | L17: 华凌 | M17: 海盐高竹工业区 | N17: 330424908000000104 | O17: 华凌*KF-72LW-HV10S(5)3P含铜管*空调*海盐高竹工业区*330424908000000104**330400115443*拆站*废旧
A18: 17 | B18: 嘉兴铁塔党委会纪要〔2024〕第12期 | C18: 330400116532 | D18: 通用空调-通用空调 | E18: 103 | F18: 3.09 | G18: 99.91 | H18: 1 | I18: 台 | J18: / | K18: KF-72LW/TSUS-N23P含铜管 | L18: 海信 | M18: 海盐楞子港 | N18: 33042401000308 | O18: 海信*KF-72LW/TSUS-N23P含铜管*空调*海盐楞子港*33042401000308**330400116532*拆站*废旧
A19: 18 | B19: 嘉兴铁塔党委会纪要〔2024〕第12期 | C19: 330400115486 | D19: 专用空调 | E19: 4328.24 | F19: 129.85 | G19: 4198.39 | H19: 1 | I19: 台 | J19: / | K19: KF-75LW/SUT-N23P含铜管 | L19: 海信 | M19: 海盐国防训练中心 | N19: 330424908000000118 | O19: 海信*KF-75LW/SUT-N23P含铜管*空调*海盐国防训练中心*330424908000000118**330400115486*拆站*废旧
A20: 19 | B20: 嘉兴铁塔党委会纪要〔2024〕第12期 | C20: 330400115102 | D20: 专用空调 | E20: 5825.33 | F20: 174.76 | G20: 5650.57 | H20: 1 | I20: 台 | J20: / | K20: KF-72LW-TSUS-N23P含铜管 | L20: 海信 | M20: 海盐驾校报名处（铁塔） | N20: 330424500000000085 | O20: 海信*KF-72LW-TSUS-N23P含铜管*空调*海盐驾校报名处（铁塔）*330424500000000085**330400115102*拆站*废旧
A21: 20 | B21: 嘉兴铁塔党委会纪要〔2024〕第12期 | C21: 330400140614 | D21: 专用空调 | E21: 7459.52 | F21: 223.79 | G21: 7235.73 | H21: 1 | I21: 台 | J21: / | K21: KF-75LW-SUT-N23P含铜管 | L21: 海信 | M21: 海盐澉浦边际 | N21: 330424908000000038 | O21: 海信*KF-75LW-SUT-N23P含铜管*空调*海盐澉浦边际*330424908000000038**330400140614*拆站*废旧
A22: 21 | B22: 嘉兴铁塔党委会纪要〔2024〕第12期 | C22: 330400133613 | D22: 专用空调 | E22: 1023.27 | F22: 30.7 | G22: 992.57 | H22: 1 | I22: 台 | J22: / | K22: KF-72LW-HV10S(5)3P含铜管 | L22: 华菱 | M22: 海盐西塘桥大连实德 | N22: 330424908000000017 | O22: 华菱*KF-72LW-HV10S(5)3P含铜管*空调*海盐西塘桥大连实德*330424908000000017**330400133613*拆站*废旧
A23: 22 | B23: 嘉兴铁塔党委会纪要〔2024〕第12期 | C23: 330400318842 | D23: 普通空调壁挂 | E23: 4249.96 | F23: 127.5 | G23: 4122.46 | H23: 1 | I23: 台 | J23: / | K23: KF-50GW/UT-N32P含铜管 | L23: 海信 | M23: 海盐通元马坊弄搬迁 | N23: 330482500000000151 | O23: 海信*KF-50GW/UT-N32P含铜管*空调*海盐通元马坊弄搬迁*330482500000000151**330400318842*拆站*废旧
A24: 23 | B24: 嘉兴铁塔党委会纪要〔2024〕第12期 | C24: 330400140594 | D24: 普通空调机 | E24: 5225.67 | F24: 156.77 | G24: 5068.9 | H24: 1 | I24: 台 | J24: / | K24: 3P含铜管 | L24: 三洋 | M24: 海盐元通泥桥-2 | N24: 330424908000000495 | O24: 三洋*不详3P含铜管*空调*海盐元通泥桥-2*330424908000000495**330400140594*拆站*废旧
A25: 24 | B25: 嘉兴铁塔党委会纪要〔2024〕第12期 | C25: 330400115538 | D25: 空调-普通空调× | E25: 257.5 | F25: 7.73 | G25: 249.77 | H25: 1 | I25: 台 | J25: / | K25: KF-72LW/SN-JZ1(R2)3P含铜管 | L25: 美的 | M25: 海盐元通泥桥-2 | N25: 330424908000000495 | O25: 美的*KF-72LW/SN-JZ1(R2)3P含铜管*空调*海盐元通泥桥-2*330424908000000495**330400115538*拆站*废旧
A26: 25 | B26: 嘉兴铁塔党委会纪要〔2024〕第12期 | C26: 330400116732 | D26: 普通空调机 | E26: 5225.67 | F26: 156.77 | G26: 5068.9 | H26: 1 | I26: 台 | J26: / | K26: KF-72LW/SN-JZ1(R2)3P含铜管 | L26: 美的 | M26: 海盐佳湖纸业 | N26: 330424908000000455 | O26: 美的*KF-72LW/SN-JZ1(R2)3P含铜管*空调*海盐佳湖纸业*330424908000000455**330400116732*拆站*废旧
A27: 26 | B27: 嘉兴铁塔党委会纪要〔2024〕第12期 | C27: 330400312860 | D27: 空调 | E27: 7204.9 | F27: 216.15 | G27: 6988.75 | H27: 1 | I27: 台 | J27: / | K27: KF-72LW/SN-JZ1(R2)3P含铜管 | L27: 美的 | M27: 海盐百步横港得胜小区南 | N27: 33042400000048 | O27: 美的*KF-72LW/SN-JZ1(R2)3P含铜管*空调*海盐百步横港得胜小区南*33042400000048**330400312860*拆站*废旧
A28: 27 | B28: 嘉兴铁塔党委会纪要〔2024〕第10期 | C28: 330400133644 | D28: 专用空调 | E28: 4824.69 | F28: 144.74 | G28: 4679.95 | H28: 1 | I28: 台 | J28: / | K28: KF75LW含铜管3p | L28: 海信 | M28: 嘉兴新塍来龙桥村 | N28: 330411908000000056 | O28: 海信*KF75LW含铜管3p*专用空调*嘉兴新塍来龙桥村*330411908000000056**330400133644*拆站*废旧
A29: 28 | B29: 嘉兴铁塔党委会纪要〔2024〕第10期 | C29: 330400133643 | D29: 专用空调 | E29: 1750.5 | F29: 52.52 | G29: 1697.98 | H29: 1 | I29: 台 | J29: / | K29: KF71W含铜管3p | L29: 大金 | M29: 嘉兴新塍来龙桥村 | N29: 330411908000000056 | O29: 大金*KF71W含铜管3p*专用空调*嘉兴新塍来龙桥村*330411908000000056**330400133643*拆站*废旧
A30: 29 | B30: 嘉兴铁塔党委会纪要〔2024〕第12期 | C30: 330400360729 | D30: 配套机架/机柜 | E30: 1878.27 | F30: 747.62 | G30: 1130.65 | H30: 1 | I30: 台 | J30: / | K30: 2米综合柜 | L30: 隆兴 | M30: 海宁飞浪仪表厂 | N30: 330481908000000887 | O30: 隆兴*2米综合柜*综合柜*海宁飞浪仪表厂*330481908000000887**330400360729*整治*废旧
A31: 30 | B31: 嘉兴铁塔党委会纪要〔2024〕第12期 | C31: 330400329010 | D31: 配套机架/机柜 | E31: 755.95 | F31: 22.68 | G31: 733.27 | H31: 1 | I31: 台 | J31: / | K31: 配套综合柜整机配套综合柜体（2000x600x600mm） | L31: 隆兴 | M31: 海宁军民村南 | N31: 330481500000000428 | O31: 隆兴*配套综合柜整机配套综合柜体（2000x600x600mm）*配套机架/机柜*海宁军民村南*330481500000000428**330400329010*拆站*废旧
A32: 31 | B32: 嘉兴铁塔党委会纪要〔2024〕第12期 | C32: 330400331321 | D32: 供电计量设备 | E32: 1011.73 | F32: 103.92 | G32: 907.81 | H32: 1 | I32: 个 | J32: / | K32: 不详 | L32: 威胜 | M32: 海宁飞浪仪表厂 | N32: 330481908000000887 | O32: 威胜*不详*电表*海宁飞浪仪表厂*330481908000000887**330400331321*整治*废旧
A33: 32 | B33: 嘉兴铁塔党委会纪要〔2024〕第12期 | C33: 330400374006 | D33: 电源扩容资产 | E33: 601.3 | F33: 260.74 | G33: 340.56 | H33: 1 | I33: 个 | J33: / | K33: 低压智能电表三相四路 | L33: 不详 | M33: 嘉兴秀湖公园西 | N33: 330411500010001743 | O33: *低压智能电表三相四路*电表*嘉兴秀湖公园西*330411500010001743**330400374006*拆站*废旧
A34: 33 | B34: 嘉兴铁塔党委会纪要〔2024〕第10期 | C34: 330400360990 | D34: 电力引入扩容资产 | E34: 1003.59 | F34: 614.31 | G34: 389.28 | H34: 1 | I34: 个 | J34: / | K34: 供电计量设备低压智能电表三相单路远程抄表 | L34: 无 | M34: 嘉兴新荣服饰 | N34: 330411908000000157 | O34: 无*供电计量设备低压智能电表三相单路远程抄表*电表*嘉兴新荣服饰*330411908000000157**330400360990*拆站*废旧
A35: 34 | B35: 嘉兴铁塔党委会纪要〔2024〕第12期 | C35: 330400360643 | D35: 整流模块 | E35: 1175.18 | F35: 383.63 | G35: 791.55 | H35: 1 | I35: 个 | J35: / | K35: R48-2900U | L35: 艾默生 | M35: 嘉善魏塘工业园二 | N35: 330421908000000040 | O35: 艾默生*R48-2900U*整流模块*嘉善魏塘工业园二*330421908000000040**330400360643*拆站*废旧
A36: 35 | B36: 嘉兴铁塔党委会纪要〔2024〕第12期 | C36: 330400310104 | D36: 外市电引入 | E36: 2723.9 | F36: 440.7 | G36: 2283.2 | H36: 1 | I36: 根 | J36: / | K36: 2x35方铝1.8kg | L36: 无 | M36: L桐乡东恒家纺 | N36: 330483500000000252 | O36: 不详*2x35方铝1.8kg*铝线根*L桐乡东恒家纺*330483500000000252**330400310104*拆站*废旧
A37: 36 | B37: 嘉兴铁塔党委会纪要〔2024〕第12期 | C37: 330400351130 | D37: 外市电引入 | E37: 27364.83 | F37: 14212.05 | G37: 13152.78 | H37: 1 | I37: 根 | J37: / | K37: 2x35方铝1.3kg | L37: 无 | M37: 桐乡同力机械西 | N37: 330483906000035429 | O37: 不详*2x35方铝1.3kg*铝线根*桐乡同力机械西*330483906000035429**330400351130*拆站*废旧
A38: 37 | B38: 嘉兴铁塔党委会纪要〔2024〕第12期 | C38: 330400362619 | D38: 外市电引入 | E38: 16152.59 | F38: 9287.74 | G38: 6864.85 | H38: 1 | I38: 根 | J38: / | K38: 4x35方铝3.9kg | L38: 无 | M38: 桐乡西南工业园 | N38: 33048300000452 | O38: 不详*4x35方铝3.9kg*铝线根*桐乡西南工业园*33048300000452**330400362619*拆站*废旧
A39: 38 | B39: 嘉兴铁塔党委会纪要〔2024〕第12期 | C39: 330400379704 | D39: 外市电引入 | E39: 2039.59 | F39: 1444.59 | G39: 595 | H39: 1 | I39: 根 | J39: / | K39: 4x35方铝4.1kg | L39: 无 | M39: 桐乡凤翔东路 | N39: 33048300000441 | O39: 不详*4x35方铝4.1kg*铝线根*桐乡凤翔东路*33048300000441**330400379704*拆站*废旧
A40: 39 | B40: 嘉兴铁塔党委会纪要〔2024〕第12期 | C40: 330400360727 | D40: 外市电引入 | E40: 2363.54 | F40: 1339.26 | G40: 1024.28 | H40: 1 | I40: 根 | J40: / | K40: 4x35铝1kg | L40: 无 | M40: 海宁飞浪仪表厂 | N40: 330481908000000887 | O40: 无*4x35铝1KG*铝线根*海宁飞浪仪表厂*330481908000000887**330400360727*整治*废旧
A41: 40 | B41: 嘉兴铁塔党委会纪要〔2024〕第12期 | C41: 330400363383 | D41: 电力引入扩容资产 | E41: 541.55 | F41: 331.31 | G41: 210.24 | H41: 1 | I41: 根 | J41: / | K41: 4x35方铝1.1kg | L41: 无 | M41: 嘉善康脉精机 | N41: 330421906000035387 | O41: 不祥*4x35方铝1.1KG*铝线*嘉善康脉精机*330421906000035387**330400363383*拆站*废旧
A42: 41 | B42: 嘉兴铁塔党委会纪要〔2024〕第12期 | C42: 330400001363 | D42: 外市电引入 | E42: 31693.36 | F42: 1914.39 | G42: 29778.97 | H42: 1 | I42: 根 | J42: / | K42: 4x35方铝1.9kg | L42: 无 | M42: 嘉善杨庙大王椰 | N42: 33042100000058 | O42: 不祥*4x35方铝1.9KG*铝线*嘉善杨庙大王椰*33042100000058**330400001363*拆站*废旧
A43: 42 | B43: 嘉兴铁塔党委会纪要〔2024〕第12期 | C43: 330400354366 | D43: 外市电引入 | E43: 1891.46 | F43: 997.43 | G43: 894.03 | H43: 1 | I43: 根 | J43: / | K43: 4x35方铝1.6kg | L43: 无 | M43: 嘉善宾馆 | N43: 330421908000000627 | O43: 不祥*4x35方铝1.6KG*铝线*嘉善宾馆*330421908000000627**330400354366*拆站*废旧
A44: 43 | B44: 嘉兴铁塔党委会纪要〔2024〕第12期 | C44: 330400309006 | D44: 外市电引入 | E44: 67136.35 | F44: 11126.68 | G44: 56009.67 | H44: 1 | I44: 根 | J44: / | K44: 4x35方铝1.7kg | L44: 无 | M44: 嘉善善西公路蒋家门 | N44: 330421500000000164 | O44: 不祥*4x35方铝1.7KG*铝线*嘉善善西公路蒋家门*330421500000000164**330400309006*拆站*废旧
A45: 44 | B45: 嘉兴铁塔党委会纪要〔2024〕第12期 | C45: 330400300509 | D45: 外市电资产 | E45: 22738.45 | F45: 2652.79 | G45: 20085.66 | H45: 1 | I45: 根 | J45: / | K45: 4x35方铝1.2kg | L45: 无 | M45: 嘉善大舜东伦纽扣 | N45: 330421908000000767 | O45: 不祥*4x35方铝1.2KG*铝线*嘉善大舜东伦纽扣*330421908000000767**330400300509*拆站*废旧
A46: 45 | B46: 嘉兴铁塔党委会纪要〔2024〕第12期 | C46: 330400301523 | D46: 外市电资产 | E46: 33806.58 | F46: 3944.15 | G46: 29862.43 | H46: 1 | I46: 根 | J46: / | K46: 4x35方铝1.3kg | L46: 无 | M46: 嘉善姚庄万泰特钢 | N46: 330421906000035214 | O46: 不祥*4x35方铝1.3KG*铝线*嘉善姚庄万泰特钢*330421906000035214**330400301523*拆站*废旧
A47: 46 | B47: 嘉兴铁塔党委会纪要〔2024〕第12期 | C47: 330400373654 | D47: 外市电引入 | E47: 31257.63 | F47: 20562.36 | G47: 10695.27 | H47: 1 | I47: 根 | J47: / | K47: 4x35铝1.2kg | L47: 无 | M47: 嘉善天凝开发区东 | N47: 330421500000000061 | O47: 无*4x35铝1.2KG*铝线根*嘉善天凝开发区东*330421500000000061**330400373654*拆站*废旧
A48: 47 | B48: 嘉兴铁塔党委会纪要〔2024〕第12期 | C48: 330400379360 | D48: 外市电引入 | E48: 25955 | F48: 18384.85 | G48: 7570.15 | H48: 1 | I48: 根 | J48: / | K48: 4x35铝1.7kg | L48: 无 | M48: 嘉善西塘祥符荡度假村 | N48: 330421500000001719 | O48: 无*4x35铝1.7KG*铝线根*嘉善西塘祥符荡度假村*330421500000001719**330400379360*拆站*废旧
A49: 48 | B49: 嘉兴铁塔党委会纪要〔2024〕第12期 | C49: 330400307287 | D49: 外市电引入 | E49: 7576.29 | F49: 1131.01 | G49: 6445.28 | H49: 1 | I49: 根 | J49: / | K49: 4x35铝1.6kg | L49: 无 | M49: 嘉善金大地产业园 | N49: 330421908000000653 | O49: 无*4x35铝1.6KG*铝线根*嘉善金大地产业园*330421908000000653**330400307287*拆站*废旧
A50: 49 | B50: 嘉兴铁塔党委会纪要〔2024〕第12期 | C50: 330400396979 | D50: 外市电引入 | E50: 24860 | F50: 20494.78 | G50: 4365.22 | H50: 1 | I50: 根 | J50: / | K50: 4x35铝2.5kg | L50: 无 | M50: 平湖卡玛乔箱包（铁塔） | N50: 330482500000000081 | O50: 无*4x35铝2.5KG*铝线根*平湖卡玛乔箱包（铁塔）*330482500000000081**330400396979*拆 站*废旧
A51: 50 | B51: 嘉兴铁塔党委会纪要〔2024〕第12期 | C51: 330400362134 | D51: 外市电引入 | E51: 10225.67 | F51: 5364.13 | G51: 4861.54 | H51: 1 | I51: 根 | J51: / | K51: 4x16铝3.1kg | L51: 无 | M51: 桐乡朝锦服饰（铁塔） | N51: 330483500000000236 | O51: 不详*4x16铝3.1kg*铝线根*桐乡朝锦服饰（铁塔）*330483500000000236**330400362134*拆站*废旧
A52: 51 | B52: 嘉兴铁塔党委会纪要〔2024〕第12期 | C52: 330400356548 | D52: 外市电引入 | E52: 34111.66 | F52: 18453.26 | G52: 15658.4 | H52: 1 | I52: 根 | J52: / | K52: 4x35铝3.8Kkg | L52: 无 | M52: 海宁荷叶村海新桥 | N52: 330481500000002002 | O52: 无*4x35铝3.8KG*铝线根*海宁荷叶村海新桥*330481500000002002**330400356548*拆站*废旧
A53: 52 | B53: 嘉兴铁塔党委会纪要〔2024〕第10期 | C53: 330400359943 | D53: 外市电引入 | E53: 3533.05 | F53: 2031.61 | G53: 1501.44 | H53: 1 | I53: 根 | J53: / | K53: 2x35铝2.5kg | L53: 无 | M53: 桐乡濮院盛隆服饰 | N53: 330483500000001459 | O53: 不详*2x35方铝2.5kg*铝线根*桐乡濮院盛隆服饰*330483500000001459**330400359943*拆站*废旧
A54: 53 | B54: 嘉兴铁塔党委会纪要〔2024〕第12期 | C54: 330400334390 | D54: 外市电引入 | E54: 10187.66 | F54: 3330.2 | G54: 6857.46 | H54: 1 | I54: 根 | J54: / | K54: 4x35铝1.8kg | L54: 无 | M54: 海宁马桥水泥厂北 | N54: 330481600000000552 | O54: 无*4x35铝1.8KG*铝线根*海宁马桥水泥厂北*330481600000000552**330400334390*拆站*废旧
A55: 54 | B55: 嘉兴铁塔党委会纪要〔2024〕第10期 | C55: 330400003093 | D55: 外市电引入 | E55: 53289.49 | F55: 4742.92 | G55: 48546.57 | H55: 1 | I55: 根 | J55: / | K55: 4x35铝1.9kg | L55: 无 | M55: 嘉兴佳瑞思喷织 | N55: 33041101000175 | O55: 无*4x35铝1.9KG*铝线根*嘉兴佳瑞思喷织*33041101000175**330400003093*拆站*废旧
A56: 55 | B56: 嘉兴铁塔党委会纪要〔2024〕第10期 | C56: 330400375979 | D56: 外市电引入 | E56: 19504.17 | F56: 13805.24 | G56: 5698.93 | H56: 1 | I56: 根 | J56: / | K56: 4x35铝2.3kg | L56: 无 | M56: 嘉兴东明实业南 | N56: 330411500010001765 | O56: 无*4x35铝2.3KG*铝线根*嘉兴东明实业南*330411500010001765**330400375979*拆站*废旧
A57: 56 | B57: 嘉兴铁塔党委会纪要〔2024〕第10期 | C57: 330400381102 | D57: 外市电引入 | E57: 15865.99 | F57: 11767.17 | G57: 4098.82 | H57: 1 | I57: 根 | J57: / | K57: 4x35铝3.4kg | L57: 无 | M57: 嘉兴油车港麟栖公园 | N57: 330411500010001822 | O57: 无*4x35铝3.4KG*铝线根*嘉兴油车港麟栖公园*330411500010001822**330400381102*拆站*废旧
A58: 57 | B58: 嘉兴铁塔党委会纪要〔2024〕第10期 | C58: 330400320816 | D58: 外市电引入 | E58: 5568.02 | F58: 971.18 | G58: 4596.84 | H58: 1 | I58: 根 | J58: / | K58: 4x35铝2.1kg | L58: 无 | M58: 嘉兴油车港天星如意湾西 | N58: 330411500000000173 | O58: 无*4x35铝2.1KG*铝线根*嘉兴油车港天星如意湾西*330411500000000173**330400320816*拆站*废旧
A59: 58 | B59: 嘉兴铁塔党委会纪要〔2024〕第10期 | C59: 330400370273 | D59: 外市电引入 | E59: 24696.97 | F59: 16246.74 | G59: 8450.23 | H59: 1 | I59: 根 | J59: / | K59: 4x35铝1.9kg | L59: 无 | M59: 嘉兴吉祥大桥 | N59: 330411500010001748 | O59: 无*4x35铝1.9KG*铝线根*嘉兴吉祥大桥*330411500010001748**330400370273*拆站*废旧
A60: 59 | B60: 嘉兴铁塔党委会纪要〔2024〕第10期 | C60: 330400393772 | D60: 外市电引入 | E60: 8728.1 | F60: 7195.55 | G60: 1532.55 | H60: 1 | I60: 根 | J60: / | K60: 4x35铝2.2kg | L60: 无 | M60: 嘉兴吉祥大桥 | N60: 330411500010001748 | O60: 无*4x35铝2.2KG*铝线根*嘉兴吉祥大桥*330411500010001748**330400393772*拆站*废旧
A61: 60 | B61: 嘉兴铁塔党委会纪要〔2024〕第10期 | C61: 330400370343 | D61: 外市电引入 | E61: 2418.78 | F61: 1545.01 | G61: 873.77 | H61: 1 | I61: 根 | J61: / | K61: 4x35铝1.6kg | L61: 无 | M61: 嘉兴良友 | N61: 330411908000000219 | O61: 无*4x35铝1.6KG*铝线根*嘉兴良友*330411908000000219**330400370343*拆站*废旧
A62: 61 | B62: 嘉兴铁塔党委会纪要〔2024〕第12期 | C62: 330400360777 | D62: 动力及环境监控单元 | E62: 6209.74 | F62: 2451.03 | G62: 3758.71 | H62: 1 | I62: 个 | J62: / | K62: DJ-05C | L62: 无 | M62: 嘉兴三水湾垃圾中转站（铁塔） | N62: 330402500000000239 | O62: 无*DJ-05C*监控*嘉兴三水湾垃圾中转站（铁塔）*330402500000000239**330400360777**废旧
A63: 62 | B63: 嘉兴铁塔党委会纪要〔2024〕第12期 | C63: 330400323767 | D63: 动力及环境监控单元 | E63: 3380.38 | F63: 101.41 | G63: 3278.97 | H63: 1 | I63: 个 | J63: / | K63: 主设备室内型成套设备 | L63: 中兴 | M63: 海宁飞浪仪表厂 | N63: 330481908000000887 | O63: 中兴*主设备室内型成套设备*动力及环境监控单元*海宁飞浪仪表厂*330481908000000887**330400323767*整治*废旧
A64: 63 | B64: 嘉兴铁塔党委会纪要〔2024〕第12期 | C64: 330400341371 | D64: 动力及环境监控单元 | E64: 4065.58 | F64: 176.83 | G64: 3888.75 | H64: 1 | I64: 个 | J64: / | K64: 主设备室内型成套设备基本配置模型 | L64: 无 | M64: 海宁江南世家34幢 | N64: 330481500000001859 | O64: 无*主设备室内型成套设备基本配置模型*动力及环境监控单元*海宁江南世家34幢*330481500000001859**330400341371*整治*废旧
A65: 64 | B65: 嘉兴铁塔党委会纪要〔2024〕第12期 | C65: 330400104115 | D65: 动环监控设备 | E65: 216.48 | F65: 6.49 | G65: 209.99 | H65: 1 | I65: 个 | J65: / | K65: DJ-A100 | L65: 大光明 | M65: 平湖卡玛乔箱包（铁塔） | N65: 330482500000000081 | O65: 大光明*DJ-A100*动环监控设备*平湖卡玛乔箱包（铁塔）*330482500000000081**330400104115*拆 站*废旧
A66: 65 | B66: 嘉兴铁塔党委会纪要〔2024〕第12期 | C66: 330400356545 | D66: 动力及环境监控单元 | E66: 3460.37 | F66: 942.89 | G66: 2517.48 | H66: 1 | I66: 个 | J66: / | K66: ZNVEISUAV3 | L66: 力维智联 | M66: 海宁荷叶村海新桥 | N66: 330481500000002002 | O66: 力维智联*ZNVEISUAV3*动力及环境监控单元*海宁荷叶村海新桥*330481500000002002**330400356545*拆站*废旧
A67: 66 | B67: 嘉兴铁塔党委会纪要〔2024〕第12期 | C67: 330400133709 | D67: 空调节能设备 | E67: 942.33 | F67: 28.27 | G67: 914.06 | H67: 1 | I67: 个 | J67: / | K67: 空调节能设备 | L67: 杭州秦歌科技 | M67: 海盐劳动局 | N67: 330424908000000587 | O67: 杭州秦歌科技*空调节能设备*WEC节能控制器*海盐劳动局*330424908000000587**330400133709*拆站*废旧
A68: 67 | B68: 嘉兴铁塔党委会纪要〔2024〕第12期 | C68: 330400388118 | D68: 供电计量设备 | E68: 562.91 | F68: 453.71 | G68: 109.2 | H68: 1 | I68: 个 | J68: / | K68: 不详 | L68: 恒古 | M68: 海宁飞浪仪表厂 | N68: 330481908000000887 | O68: 恒古*不详*空调控制器*海宁飞浪仪表厂*330481908000000887**330400388118*整治*废旧
A69: 68 | B69: 嘉兴铁塔党委会纪要〔2024〕第12期 | C69: 330400388171 | D69: 供电计量设备 | E69: 562.91 | F69: 453.71 | G69: 109.2 | H69: 1 | I69: 个 | J69: / | K69: 电流型输入200A/输出4-20mA | L69: 无 | M69: 嘉兴水榭花都9栋 | N69: 330400908000000614 | O69: 无*电流型输入200A/输出4-20mA*霍尔传感器*嘉兴水榭花都9栋*330400908000000614**330400388171*拆站*废旧
A70: 69 | B70: 嘉兴铁塔党委会纪要〔2024〕第12期 | C70: 330400386577 | D70: 交流计量箱-4回路-三相交流-室外型-含浪涌保护器-内置智能电表 | E70: 4902.96 | F70: 3185.62 | G70: 1717.34 | H70: 1 | I70: 个 | J70: / | K70: 4回路-三相交流-室外型-含浪涌保护器-内置智能电表 | L70: 无 | M70: 海宁盐官观音桥铁塔 | N70: 330481500000000203 | O70: 无*4回路-三相交流-室外型-含浪涌保护器-内置智能电表*交流计量箱*海宁盐官观音桥铁塔*330481500000000203**330400386577*拆站*利旧
A71: 70 | B71: 嘉兴铁塔党委会纪要〔2024〕第12期 | C71: 330400379362 | D71: 基站机房扩容资产 | E71: 2390.92 | F71: 2128.1 | G71: 262.82 | H71: 1 | I71: 根 | J71: / | K71: 1x16铜0.3kg | L71: 无 | M71: 嘉善西塘祥符荡度假村 | N71: 330421500000001719 | O71: 无*1x16铜0.3KG*铜线根*嘉善西塘祥符荡度假村*330421500000001719**330400379362*拆站*废旧
A72: 71 | B72: 嘉兴铁塔党委会纪要〔2024〕第12期 | C72: 330400384950 | D72: 基站机房扩容资产 | E72: 202.21 | F72: 182.03 | G72: 20.18 | H72: 1 | I72: 根 | J72: / | K72: 1x25铜0.8kg | L72: 无 | M72: 嘉兴秀湖公园西 | N72: 330411500010001743 | O72: 无*1x25铜0.8kg*铜线*嘉兴秀湖公园西*330411500010001743**330400384950*拆站*废旧
A73: 72 | B73: 嘉兴铁塔党委会纪要〔2024〕第12期 | C73: 330400107449 | D73: 专用空调 | E73: 219 | F73: 6.57 | G73: 212.43 | H73: 1 | I73: 台 | J73: / | K73: KF-75LW/SUT-N23P含铜管 | L73: 海信 | M73: 卜院斯威特 | N73: 330483500000000197 | O73: 海信（山东）*KF-75LW/SUT-N23p*专用空调*卜院斯威特*330483500000000197**330400107449*拆站*废旧
A74: 73 | B74: 嘉兴铁塔党委会纪要〔2024〕第12期 | C74: 330400369925 | D74: 外市电引入 | E74: 2153 | F74: 1341.95 | G74: 811.05 | H74: 1 | I74: 根 | J74: / | K74: 3X16+1X10铝2.1kg | L74: 无 | M74: 桐乡濮院雪莲伊梦 | N74: 330483908000000014 | O74: 不详*3X16+1X10铝2.1KG*铝线根*桐乡濮院雪莲伊梦*330483908000000014**330400369925*拆站*废旧
A75: 74 | B75: 嘉兴铁塔党委会纪要〔2024〕第12期 | C75: 330400301020 | D75: 外市电资产 | E75: 26193.25 | F75: 3055.85 | G75: 23137.4 | H75: 1 | I75: 根 | J75: / | K75: 4x35铝2.8kg | L75: 无 | M75: 卜院斯威特 | N75: 330483500000000197 | O75: 不详*4x35铝2.8kg*铝线根*卜院斯威特*330483500000000197**330400301020*拆站*废旧
A76: 75 | B76: 嘉兴铁塔党委会纪要〔2024〕第10期 | C76: 330400360334 | D76: 嵌入式开关电源 | E76: 11734.9 | F76: 3990.53 | G76: 7744.37 | H76: 1 | I76: 架 | J76: / | K76: DUMC-48/50H | L76: 动力源 | M76: 嘉善星光灿烂（铁塔） | N76: 330421500000000135 | O76: 动力源*DUMC-48/50H*嵌入式开关电源*嘉善星光灿烂（铁塔）*330421500000000135**330400360334*拆站*废旧
A77: 76 | B77: 嘉兴铁塔党委会纪要〔2024〕第12期 | C77: 330400107763 | D77: 专用空调 | E77: 1315.88 | F77: 39.48 | G77: 1276.4 | H77: 1 | I77: 台 | J77: / | K77: KF-72LW/JHS(2)3匹 | L77: 广州华凌 | M77: 平湖新埭航管所 | N77: 330482908000000327 | O77: 广州华凌*KF-72LW/JHS(2)3匹*普通空调*平湖新埭航管所*330482908000000327**330400107763*拆站*废旧
A78: 77 | B78: 嘉兴铁塔党委会纪要〔2024〕第10期 | C78: 330400327160 | D78: 动力及环境监控单元 | E78: 2882.15 | F78: 86.46 | G78: 2795.69 | H78: 1 | I78: 个 | J78: / | K78: DTM-2830 | L78: 大光明 | M78: 嘉善姚庄桃园路 | N78: 330421908000000038 | O78: 大光明*DTM-2830*动力及环境监控单元*嘉善姚庄桃园路*330421908000000038**330400327160*拆站*废旧

Sheet 杭州
A1: 序号 | B1: 报废批复文号 | C1: 资产编号 | D1: 资产名称 | E1: 资产类别名称 | F1: 资产原值 （元，不含税） | G1: 资产净值 （元，不含税） | H1: 累计折旧 | I1: 资产数量 | J1: 计量单位 | K1: 单节电池电压 | L1: 规格型号 | M1: 生产厂家 | N1: 站点名称 | O1: 站点编码 | P1: 备注 | Q1: 中通库K3编号 | R1: 报废批复文号（省公司） | S1: 对应估值清单的分类描述(人工调整资产名称） | T1: 资产类别名称 | U1: 物资称重（kg) | V1: 完整度/出铜（铝）率 | W1: 计量方式 | X1: 计量单位
A2: 1 | B2: 杭州市分公司2023年第三次党委会纪要-杭州铁塔党委会纪要〔2023〕第3期 | C2: 330100317969 | D2: 传感器 | E2: 传感器 | F2: 556.21 | G2: 461.71 | H2: 94.5 | I2: 1 | J2: 个 | L2: 霍尔传感器 | M2: 无 | N2: 杭州宏利石材 | O2: 330104908000000607 | Q2: 无*霍尔传感器**杭州宏利石材*330104908000000607*0.264kg*330100317969*批*废旧 | S2: 传感器 | T2: 传感器 | U2: 0.264 | W2: 称重计量后套用价格 | X2: 个
A3: 2 | B3: 杭州市分公司2023年第三次党委会纪要-杭州铁塔党委会纪要〔2023〕第3期 | C3: 330100208364 | D3: 传感器 | E3: 传感器 | F3: 2417.16 | G3: 235.33 | H3: 2181.83 | I3: 1 | J3: 个 | L3: 监控传感器 | M3: 无 | N3: 杭州康桥焊接基站 | O3: 330105908000000416 | Q3: 无*监控传感器**杭州康桥焊接基站*330105908000000416*1kg*330100208364*批*废旧 | S3: 传感器 | T3: 传感器 | U3: 1.000 | W3: 称重计量后套用价格 | X3: 个
A4: 3 | B4: 杭州市分公司2023年第三次党委会纪要-杭州铁塔党委会纪要〔2023〕第3期 | C4: 330100301968 | D4: 电表 | E4: 电表 | F4: 966 | G4: 747.32 | H4: 218.68 | I4: 1 | J4: 个 | L4: 智能电表 | M4: 无 | N4: 杭州下沙斯莱特泵业 | O4: 330104906000014161 | Q4: 无*智能电表**杭州下沙斯莱特泵业*330104906000014161*1.5kg*330100301968*批*废旧 | S4: 电表 | T4: 电表 | U4: 1.500 | W4: 称重计量后套用价格 | X4: 个
A5: 4 | B5: 杭州市分公司2023年第三次党委会纪要-杭州铁塔党委会纪要〔2023〕第3期 | C5: 330100301969 | D5: 电表 | E5: 电表 | F5: 966 | G5: 747.32 | H5: 218.68 | I5: 1 | J5: 个 | L5: 智能电表 | M5: 无 | N5: 下沙斯莱特泵业 | O5: 330104908000001376 | Q5: 无*智能电表**下沙斯莱特泵业*330104908000001376*1.5kg*330100301969*批*废旧 | S5: 电表 | T5: 电表 | U5: 1.500 | W5: 称重计量后套用价格 | X5: 个
A6: 5 | C6: 配件 | D6: 电池架 | E6: 电池架 | I6: 266.5 | J6: 千克 | L6: 电池架 | M6: 无 | N6: 十方-萧山 | O6: 无 | Q6: 无*电池架**十方-萧山*无*266.5kg*330100234867等17个资产配件*批*废旧 | S6: 电池架 | T6: 电池架 | U6: 266.500 | W6: 称重计量后套用价格 | X6: 千克
A7: 6 | C7: 配件 | D7: 电池架 | E7: 电池架 | I7: 492 | J7: 千克 | L7: 电池架 | M7: 无 | N7: 方大-西湖余杭 | O7: 无 | Q7: 无*电池架**方大-西湖余杭*无*492kg*330100223994等24个资产配件*批*废旧 | S7: 电池架 | T7: 电池架 | U7: 492.000 | W7: 称重计量后套用价格 | X7: 千克
A8: 7 | C8: 配件 | D8: 电池架 | E8: 电池架 | I8: 187.5 | J8: 千克 | L8: 电池架 | M8: 无 | N8: 十方-拱墅钱塘 | O8: 无 | Q8: 无*电池架**十方-拱墅钱塘*无*187.5kg*330100179945等9个资产配件*批*废旧 | S8: 电池架 | T8: 电池架 | U8: 187.500 | W8: 称重计量后套用价格 | X8: 千克
A9: 8 | C9: 配件 | D9: 电池架 | E9: 电池架 | I9: 213 | J9: 千克 | L9: 电池架 | M9: 无 | N9: 十方-上城 | O9: 无 | Q9: 无*电池架**十方-上城*无*213kg*330100137845等18个资产配件*批*废旧 | S9: 电池架 | T9: 电池架 | U9: 213.000 | W9: 称重计量后套用价格 | X9: 千克
A10: 9 | C10: 配件 | D10: 电池架 | E10: 电池架 | I10: 1071.5 | J10: 千克 | L10: 电池架 | M10: 无 | N10: 十方-萧山配件 | O10: 无 | Q10: 无*电池架**十方-萧山配件*无*1071.5kg*330100209688等41个资产配件*批*废旧 | S10: 电池架 | T10: 电池架 | U10: 1071.500 | W10: 称重计量后套用价格 | X10: 千克
A11: 10 | C11: 配件 | D11: 电池架 | E11: 电池架 | I11: 335.5 | J11: 千克 | L11: 电池架 | M11: 无 | N11: 依网-淳安 | O11: 无 | Q11: 无*电池架**依网-淳安*无*335.5kg*330100161701等17个资产配件*批*废旧 | S11: 电池架 | T11: 电池架 | U11: 335.500 | W11: 称重计量后套用价格 | X11: 千克
A12: 11 | C12: 配件 | D12: 电池架 | E12: 电池架 | I12: 421.5 | J12: 千克 | L12: 电池架 | M12: 无 | N12: 依网-建德 | O12: 无 | Q12: 无*电池架**依网-建德*无*421.5kg*330100168032等12个资产配件*批*废旧 | S12: 电池架 | T12: 电池架 | U12: 421.500 | W12: 称重计量后套用价格 | X12: 千克
A13: 12 | B13: 杭州市分公司2024年第四次党委会纪要-杭州铁塔党委会纪要(2024)第6期 | C13: 330100321773 | D13: 电缆 | E13: 电缆 | F13: 9202.42 | G13: 6825.03 | H13: 2377.39 | I13: 6 | J13: 千克 | L13: 铝缆-4芯 | M13: 无 | N13: 杭州蓝孔雀宾馆 | O13: 330105908000000445 | P13: 出铝率40% | Q13: 无*铝缆-4芯*出铝率40%*杭州蓝孔雀宾馆*330105908000000445*6kg*330100321773*批*废旧 | S13: 铝缆 | T13: 铝缆类 | U13: 6.000 | V13: 出铝率40% | W13: 称重及出铝率计量后套用价格 | X13: 千克
A14: 13 | B14: 杭州市分公司2024年第二十六次党委会纪要-杭州铁塔党委会纪要(2024)第28期 | C14: 330100132460 | D14: 电缆 | E14: 电缆 | F14: 2402.06 | G14: 363.28 | H14: 2038.78 | I14: 5.3 | J14: 千克 | L14: 铝缆-4芯 | M14: 无 | N14: 杭州东篱会所 | O14: 330102908000000138 | P14: 出铝率40% | Q14: 无*铝缆-4芯*出铝率40%*杭州东篱会所*330102908000000138*5.3kg*330100132460*批*废旧 | S14: 铝缆 | T14: 铝缆类 | U14: 5.300 | V14: 出铝率40% | W14: 称重及出铝率计量后套用价格 | X14: 千克
A15: 14 | B15: 杭州市分公司2024年第二十六次党委会纪要-杭州铁塔党委会纪要(2024)第28期 | C15: 330100425104 | D15: 电缆 | E15: 电缆 | F15: 39904.15 | G15: 35236.37 | H15: 4667.78 | I15: 5.3 | J15: 千克 | L15: 铝缆-4芯 | M15: 无 | N15: 杭州东篱会所 | O15: 330102908000000138 | P15: 出铝率40% | Q15: 无*铝缆-4芯*出铝率40%*杭州东篱会所*330102908000000138*5.3kg*330100425104*批*废旧 | S15: 铝缆 | T15: 铝缆类 | U15: 5.300 | V15: 出铝率40% | W15: 称重及出铝率计量后套用价格 | X15: 千克
A16: 15 | B16: 杭州市分公司2024年第二十六次党委会纪要-杭州铁塔党委会纪要(2024)第28期 | C16: 330100418433 | D16: 电缆 | E16: 电缆 | F16: 2994.2 | G16: 2595 | H16: 399.2 | I16: 5.4 | J16: 千克 | L16: 铝缆-4芯 | M16: 无 | N16: 杭州横塘村十组 | O16: 330103908000000376 | P16: 出铝率40% | Q16: 无*铝缆-4芯*出铝率40%*杭州横塘村十组*330103908000000376*5.4kg*330100418433*批*废旧 | S16: 铝缆 | T16: 铝缆类 | U16: 5.400 | V16: 出铝率40% | W16: 称重及出铝率计量后套用价格 | X16: 千克
A17: 16 | B17: 杭州市分公司2023年第二十二次党委会纪要-杭州铁塔党委会纪要〔2023〕第22期 | C17: 330100141864 | D17: 电缆 | E17: 电缆 | F17: 5887.77 | G17: 1509.29 | H17: 4378.48 | I17: 2 | J17: 千克 | L17: 铜缆-1芯 | M17: 无 | N17: 杭州优派制衣 | O17: 330105908000000138 | P17: 出铜率22.5% | Q17: 无*铜缆-1芯*出铜率22.5%*杭州优派制衣*330105908000000138*2kg*330100141864*批*废旧 | S17: 铜缆 | T17: 铜缆类 | U17: 2.000 | V17: 出铜率22.5% | W17: 称重及出铜率计量后套用价格 | X17: 千克
A18: 17 | B18: 杭州市分公司2024年第四次党委会纪要-杭州铁塔党委会纪要(2024)第6期 | C18: 330100110524 | D18: 电缆 | E18: 电缆 | F18: 1659.92 | G18: 358.34 | H18: 1301.58 | I18: 1.5 | J18: 千克 | L18: 铜缆-1芯 | M18: 无 | N18: 萧山荣星村 | O18: 330109908000000806 | P18: 出铜率22.5% | Q18: 无*铜缆-1芯*出铜率22.5%*萧山荣星村*330109908000000806*1.5kg*330100110524*批*废旧 | S18: 铜缆 | T18: 铜缆类 | U18: 1.500 | V18: 出铜率22.5% | W18: 称重及出铜率计量后套用价格 | X18: 千克
A19: 18 | B19: 杭州市分公司2023年第三次党委会纪要-杭州铁塔党委会纪要〔2023〕第3期 | C19: 330100260154 | D19: 断路器 | E19: 断路器 | F19: 1095 | G19: 601.77 | H19: 493.23 | I19: 1 | J19: 个 | M19: 无 | N19: 金一社区搬迁 | O19: 330109500000000784 | Q19: 无***金一社区搬迁*330109500000000784*0.098kg*330100260154*批*废旧 | S19: 断路器 | T19: 断路器 | U19: 0.098 | W19: 称重计量后套用价格 | X19: 个
A20: 19 | B20: 杭州市分公司2023年第三次党委会纪要-杭州铁塔党委会纪要〔2023〕第3期 | C20: 330100283411 | D20: 断路器 | E20: 断路器 | F20: 4180.93 | G20: 2350.69 | H20: 1830.24 | I20: 1 | J20: 个 | M20: 无 | N20: 七间头 | O20: 330109500000000388 | Q20: 无***七间头*330109500000000388*0.098kg*330100283411*批*废旧 | S20: 断路器 | T20: 断路器 | U20: 0.098 | W20: 称重计量后套用价格 | X20: 个
A21: 20 | B21: 杭州市分公司2023年第三次党委会纪要-杭州铁塔党委会纪要〔2023〕第3期 | C21: 330100302720 | D21: 断路器 | E21: 断路器 | F21: 1.3 | G21: 0.74 | H21: 0.56 | I21: 1 | J21: 个 | M21: 无 | N21: 七间头 | O21: 330109500000000388 | Q21: 无***七间头*330109500000000388*0.103kg*330100302720*批*废旧 | S21: 断路器 | T21: 断路器 | U21: 0.103 | W21: 称重计量后套用价格 | X21: 个
A22: 21 | B22: 杭州市分公司2024年第四次党委会纪要-杭州铁塔党委会纪要(2024)第6期 | C22: 330100282963 | D22: 断路器 | E22: 断路器 | F22: 930.12 | G22: 479.45 | H22: 450.67 | I22: 1 | J22: 个 | M22: 无 | N22: 萧山湘湖科创园 | O22: 330109500000000712 | Q22: 无***萧山湘湖科创园*330109500000000712*0.163kg*330100282963*批*废旧 | S22: 断路器 | T22: 断路器 | U22: 0.163 | W22: 称重计量后套用价格 | X22: 个
A23: 22 | B23: 杭州市分公司2024年第二十六次党委会纪要-杭州铁塔党委会纪要(2024)第28期 | C23: 330100287829 | D23: 断路器 | E23: 断路器 | F23: 414.78 | G23: 118.74 | H23: 296.04 | I23: 1 | J23: 个 | M23: 无 | N23: 杭州江干石桥装饰材料中心 | O23: 330103908000000264 | Q23: 无***杭州江干石桥装饰材料中心*330103908000000264*1.5kg*330100287829*批*废旧 | S23: 断路器 | T23: 断路器 | U23: 1.500 | W23: 称重计量后套用价格 | X23: 个
A24: 23 | B24: 杭州市分公司2022年第三十二次党委会纪要-杭州铁塔党委会纪要〔2022〕第32期 | C24: 330100230563 | D24: 废旧RRU架 | E24: 废旧RRU架 | F24: 1636.79 | G24: 468.13 | H24: 1168.66 | I24: 1 | J24: 个 | L24: 室内型 | M24: 无 | N24: 杭州福兴丝绸厂 | O24: 330104908000000671 | Q24: 无*室内型**杭州福兴丝绸厂*330104908000000671*47kg*330100230563*批*废旧 | R24: 浙江铁塔财务〔2022〕76号 | S24: 室内型RRU架 | T24: RRU架 | U24: 47.000 | W24: 称重计量后套用价格 | X24: 个
A25: 24 | B25: 杭州市分公司2023年第三次党委会纪要-杭州铁塔党委会纪要〔2023〕第3期 | C25: 330100230348 | D25: 废旧RRU架 | E25: 废旧RRU架 | F25: 1636.79 | G25: 424.03 | H25: 1212.76 | I25: 1 | J25: 个 | L25: 室内型 | M25: 无 | N25: 杭州宏利石材 | O25: 330104908000000607 | Q25: 无*室内型**杭州宏利石材*330104908000000607*48kg*330100230348*批*废旧 | S25: 室内型RRU架 | T25: RRU架 | U25: 48.000 | W25: 称重计量后套用价格 | X25: 个
A26: 25 | B26: 杭州市分公司2024年第四次党委会纪要-杭州铁塔党委会纪要(2024)第6期 | C26: 330100209329 | D26: 废旧RRU架 | E26: 废旧RRU架 | F26: 1317.89 | G26: 39.54 | H26: 1278.35 | I26: 1 | J26: 个 | L26: 室内型 | M26: 无 | N26: 萧山湘湖科创园 | O26: 330109500000000712 | Q26: 无*室内型**萧山湘湖科创园*330109500000000712*49kg*330100209329*批*废旧 | S26: 室内型RRU架 | T26: RRU架 | U26: 49.000 | W26: 称重计量后套用价格 | X26: 个
A27: 26 | B27: 杭州市分公司2023年第三次党委会纪要-杭州铁塔党委会纪要〔2023〕第3期 | C27: 330100250688 | D27: 供电计量设备 | E27: 供电计量设备 | F27: 460.98 | G27: 282.03 | H27: 178.95 | I27: 1 | J27: 个 | L27: 分路计量 | M27: 无 | N27: 七间头 | O27: 330109500000000388 | Q27: 无*分路计量**七间头*330109500000000388*0.168kg*330100250688*批*废旧 | S27: 分路计量 | T27: 分路计量 | U27: 0.168 | W27: 直接套用单价 | X27: 个
A28: 27 | B28: 杭州市分公司2023年第三次党委会纪要-杭州铁塔党委会纪要〔2023〕第3期 | C28: 330100251197 | D28: 供电计量设备 | E28: 供电计量设备 | F28: 460.98 | G28: 282.03 | H28: 178.95 | I28: 1 | J28: 个 | L28: 分路计量 | M28: 无 | N28: 七间头 | O28: 330109500000000388 | Q28: 无*分路计量**七间头*330109500000000388*0.172kg*330100251197*批*废旧 | S28: 分路计量 | T28: 分路计量 | U28: 0.172 | W28: 直接套用单价 | X28: 个
A29: 28 | B29: 杭州市分公司2024年第十一次党委会纪要-杭州铁塔党委会纪要(2024)第13期 | C29: 330100268565 | D29: 机柜 | E29: 机柜 | F29: 1689.09 | G29: 483.58 | H29: 1205.51 | I29: 1 | J29: 个 | L29: 配套机架/机柜 | M29: 无 | N29: 萧山荣星村 | O29: 330109908000000806 | Q29: 无*配套机架/机柜**萧山荣星村*330109908000000806**330100268565*批*废旧 | S29: 机柜 | T29: 机柜 | W29: 直接套用单价 | X29: 个
A30: 29 | B30: 杭州市分公司2024年第二十六次党委会纪要-杭州铁塔党委会纪要(2024)第28期 | C30: 330100217170_1_2 | D30: 机柜 | E30: 机柜 | F30: 6973.17 | G30: 209.19 | H30: 6763.98 | I30: 1 | J30: 个 | L30: 一体化机柜（风扇型） | M30: 无 | N30: 萧山鸿达路与高新七路交叉口凯达文具周边区域 | O30: 330109500000000347 | Q30: 无*一体化机柜（风扇型）**萧山鸿达路与高新七路交叉口凯达文具周边区域*330109500000000347**330100217170_1_2**废旧 | S30: 一体化机柜（风扇型） | T30: 机柜 | W30: 直接套用单价 | X30: 个
A31: 30 | B31: 杭州市分公司2024年第二十六次党委会纪要-杭州铁塔党委会纪要(2024)第28期 | C31: 330100008337_2 | D31: 机柜 | E31: 机柜 | F31: 5090.06 | G31: 152.7 | H31: 4937.36 | I31: 1 | J31: 个 | L31: 一体化机柜（风扇型） | M31: 无 | N31: 萧山金城路东南网架大楼 | O31: 330109500000000281 | Q31: 无*一体化机柜（风扇型）**萧山金城路东南网架大楼*330109500000000281**330100008337_2**废旧 | S31: 一体化机柜（风扇型） | T31: 机柜 | W31: 直接套用单价 | X31: 个
A32: 31 | B32: 杭州市分公司2024年第二十六次党委会纪要-杭州铁塔党委会纪要(2024)第28期 | C32: 330100009091 | D32: 机柜 | E32: 机柜 | F32: 10013.58 | G32: 300.41 | H32: 9713.17 | I32: 1 | J32: 个 | L32: 一体化机柜（风扇型） | M32: 无 | N32: 萧山双圩5组 | O32: 330109908000000401 | Q32: 无*一体化机柜（风扇型）**萧山双圩5组*330109908000000401**330100009091*批*废旧 | S32: 一体化机柜（风扇型） | T32: 机柜 | W32: 直接套用单价 | X32: 个
A33: 32 | B33: 杭州市分公司2024年第二十六次党委会纪要-杭州铁塔党委会纪要(2024)第28期 | C33: 330100160915 | D33: 机柜 | E33: 机柜 | F33: 9087.18 | G33: 272.62 | H33: 8814.56 | I33: 1 | J33: 个 | L33: 一体化机柜（风扇型） | M33: 无 | N33: 萧山双圩5组 | O33: 330109908000000401 | Q33: 无*一体化机柜（风扇型）**萧山双圩5组*330109908000000401**330100160915*批*废旧 | S33: 一体化机柜（风扇型） | T33: 机柜 | W33: 直接套用单价 | X33: 个
A34: 33 | B34: 杭州市分公司2024年第二十六次党委会纪要-杭州铁塔党委会纪要(2024)第28期 | C34: 330100201498 | D34: 机柜 | E34: 机柜 | F34: 17263.06 | G34: 517.89 | H34: 16745.17 | I34: 1 | J34: 个 | L34: 一体化机柜（风扇型） | M34: 无 | N34: 杭州海景城 | O34: 330104908000000619 | Q34: 无*一体化机柜（风扇型）**杭州海景城*330104908000000619**330100201498*批*废旧 | S34: 一体化机柜（风扇型） | T34: 机柜 | W34: 直接套用单价 | X34: 个
A35: 34 | B35: 杭州市分公司2024年第二十六次党委会纪要-杭州铁塔党委会纪要(2024)第28期 | C35: 330100159937 | D35: 机柜 | E35: 机柜 | F35: 7842.9 | G35: 235.29 | H35: 7607.61 | I35: 1 | J35: 个 | L35: 一体化机柜（风扇型） | M35: 无 | N35: 杭州上城铁路驾校培训基地 | O35: 330102908000000231 | Q35: 无*一体化机柜（风扇型）**杭州上城铁路驾校培训基地*330102908000000231**330100159937*批*废旧 | S35: 一体化机柜（风扇型） | T35: 机柜 | W35: 直接套用单价 | X35: 个
A36: 35 | B36: 杭州市分公司2024年第二十一次党委会纪要-杭州铁塔党委会纪要(2024)第23期 | C36: 330100213303 | D36: 机柜 | E36: 机柜 | F36: 36360.78 | G36: 1090.82 | H36: 35269.96 | I36: 1 | J36: 个 | L36: 一体化机柜（空调型） | M36: 无 | N36: 余家畈村 | O36: 330106500000000659 | Q36: 无*一体化机柜（空调型）**余家畈村*330106500000000659**330100213303*批*废旧 | S36: 一体化机柜（空调型） | T36: 机柜 | W36: 直接套用单价 | X36: 个
A37: 36 | B37: 杭州市分公司2024年第二十一次党委会纪要-杭州铁塔党委会纪要(2024)第23期 | C37: 330100176936 | D37: 机柜 | E37: 机柜 | F37: 12724.53 | G37: 381.74 | H37: 12342.79 | I37: 1 | J37: 个 | L37: 一体化机柜（空调型） | M37: 无 | N37: 新塘路艮山西路口 | O37: 330104500000000128 | Q37: 无*一体化机柜（空调型）**新塘路艮山西路口*330104500000000128**330100176936*批*废旧 | S37: 一体化机柜（空调型） | T37: 机柜 | W37: 直接套用单价 | X37: 个
A38: 37 | B38: 杭州市分公司2024年第二十六次党委会纪要-杭州铁塔党委会纪要(2024)第28期 | C38: 330100193556 | D38: 机柜 | E38: 机柜 | F38: 17842.76 | G38: 535.28 | H38: 17307.48 | I38: 1 | J38: 个 | L38: 一体化机柜（空调型） | M38: 无 | N38: 杭州江干大世界五金城二期 | O38: 330104500000000313 | P38: 拼装机柜已拆散 | Q38: 无*一体化机柜（空调型）*拼装机柜已拆散*杭州江干大世界五金城二期*330104500000000313**330100193556*批*废旧 | S38: 一体化机柜（空调型） | T38: 机柜 | W38: 直接套用单价 | X38: 个
A39: 38 | B39: 杭州市分公司2024年第二十一次党委会纪要-杭州铁塔党委会纪要(2024)第23期 | C39: 330100208267 | D39: 机柜 | E39: 机柜 | F39: 24052.47 | G39: 721.57 | H39: 23330.9 | I39: 1 | J39: 个 | L39: 一体化机柜（空调型） | M39: 中恒 | N39: 建德梅岭西 | O39: 330182500000000111 | P39: 含嵌入式开关电源，3块模块 | Q39: 中恒*一体化机柜（空调型）*含嵌入式开关电源，3块模块*建德梅岭西*330182500000000111*153kg*330100208267*批*废旧 | S39: 机柜（内含嵌入式开关电源与模块） | T39: 机柜 | U39: 153.000 | V39: 完整度25% | W39: 称重及完整度计量后套用价格 | X39: 个
A40: 39 | B40: 杭州市分公司2024年第四次党委会纪要-杭州铁塔党委会纪要(2024)第6期 | C40: 330100208650 | D40: 机柜 | E40: 机柜 | F40: 20896.02 | G40: 626.88 | H40: 20269.14 | I40: 1 | J40: 个 | L40: 一体化机柜（无风扇无空调） | M40: 无 | N40: 富阳东洲移动富春民丰 | O40: 330183500000000260 | Q40: 无*一体化机柜（无风扇无空调）**富阳东洲移动富春民丰*330183500000000260**330100208650*批*废旧 | S40: 一体化机柜（空调型） | T40: 机柜 | W40: 直接套用单价 | X40: 个 | Y40: 合并空调组件按一体化机柜（空调型）处置
A41: 40 | B41: 杭州市分公司2024年第二十一次党委会纪要-杭州铁塔党委会纪要(2024)第23期 | C41: 330100183703 | D41: 机柜 | E41: 机柜 | F41: 20498.04 | G41: 614.94 | H41: 19883.1 | I41: 1 | J41: 个 | L41: 一体化机柜（无风扇无空调） | M41: 无 | N41: 临安湍口大溪滩 | O41: 330185500000000063 | Q41: 无*一体化机柜（无风扇无空调）**临安湍口大溪滩*330185500000000063**330100183703*批*废旧 | S41: 一体化机柜（空调型） | T41: 机柜 | W41: 直接套用单价 | X41: 个 | Y41: 合并空调组件按一体化机柜（空调型）处置
A42: 41 | B42: 杭州市分公司2024年第二十六次党委会纪要-杭州铁塔党委会纪要(2024)第28期 | C42: 330100204335_1 | D42: 机柜 | E42: 机柜 | F42: 6464.73 | G42: 193.94 | H42: 6270.79 | I42: 1 | J42: 个 | L42: 一体化机柜（无风扇无空调） | M42: 无 | N42: 恒富特种纸业有限公司 | O42: 330183010000000267 | Q42: 无*一体化机柜（无风扇无空调）**恒富特种纸业有限公司*330183010000000267**330100204335_1*批*废旧 | S42: 一体化机柜（无空调无风扇） | T42: 机柜 | W42: 直接套用单价 | X42: 个
A43: 42 | B43: 杭州市分公司2024年第二十一次党委会纪要-杭州铁塔党委会纪要(2024)第23期 | C43: 330100200048 | D43: 机柜 | E43: 机柜 | F43: 1179.94 | G43: 35.4 | H43: 1144.54 | I43: 1 | J43: 个 | L43: 综合柜 | M43: 无 | N43: 杭州西湖转塘小俞家 | O43: 330106500000000510 | Q43: 无*综合柜**杭州西湖转塘小俞家*330106500000000510**330100200048*批*废旧 | S43: 综合柜 | T43: 机柜 | W43: 直接套用单价 | X43: 个
A44: 43 | B44: 杭州市分公司2024年第四次党委会纪要-杭州铁塔党委会纪要(2024)第6期 | C44: 330100208646 | D44: 监控 | E44: 监控 | F44: 4878.27 | G44: 146.35 | H44: 4731.92 | I44: 1 | J44: 个 | L44: 动环监控 | M44: 无 | N44: 富阳东洲移动富春民丰 | O44: 330183500000000260 | P44: 纯主机，无辅材 | Q44: 无*动环监控*纯主机，无辅材*富阳东洲移动富春民丰*330183500000000260**330100208646*批*废旧 | S44: 动环监控 | T44: 动环监控 | W44: 直接套用单价 | X44: 个
A45: 44 | B45: 杭州市分公司2024年第二十一次党委会纪要-杭州铁塔党委会纪要(2024)第23期 | C45: 330100200050 | D45: 监控 | E45: 监控 | F45: 3756.56 | G45: 112.7 | H45: 3643.86 | I45: 1 | J45: 个 | L45: 动环监控 | M45: 无 | N45: 杭州西湖转塘小俞家 | O45: 330106500000000510 | P45: 纯主机无辅材 | Q45: 无*动环监控*纯主机无辅材*杭州西湖转塘小俞家*330106500000000510**330100200050*批*废旧 | S45: 动环监控 | T45: 动环监控 | W45: 直接套用单价 | X45: 个
A46: 45 | B46: 杭州市分公司2024年第二十一次党委会纪要-杭州铁塔党委会纪要(2024)第23期 | C46: 330100213302 | D46: 监控 | E46: 监控 | F46: 3477.09 | G46: 104.31 | H46: 3372.78 | I46: 1 | J46: 个 | L46: 动环监控 | M46: 无 | N46: 余家畈村 | O46: 330106500000000659 | P46: 纯主机无辅材 | Q46: 无*动环监控*纯主机无辅材*余家畈村*330106500000000659**330100213302*批*废旧 | S46: 动环监控 | T46: 动环监控 | W46: 直接套用单价 | X46: 个
A47: 46 | B47: 杭州市分公司2024年第十四次党委会纪要-杭州铁塔党委会纪要(2024)第16期 | C47: 330100198182 | D47: 监控 | E47: 监控 | F47: 4853.14 | G47: 145.59 | H47: 4707.55 | I47: 1 | J47: 个 | L47: 动环监控 | M47: 无 | N47: 萧山成人中专 | O47: 330109908000000370 | P47: 纯主机无辅材 | Q47: 无*动环监控*纯主机无辅材*萧山成人中专*330109908000000370**330100198182*批*废旧 | S47: 动环监控 | T47: 动环监控 | W47: 直接套用单价 | X47: 个
A48: 47 | B48: 杭州市分公司2024年第十四次党委会纪要-杭州铁塔党委会纪要(2024)第16期 | C48: 330100142676 | D48: 监控 | E48: 监控 | F48: 1436.84 | G48: 43.11 | H48: 1393.73 | I48: 1 | J48: 个 | L48: 动环监控BASS-230 | M48: 无 | N48: 萧山丰乐-2 | O48: 330109908000000361 | P48: 纯主机无辅材 | Q48: 无*动环监控BASS-230*纯主机无辅材*萧山丰乐-2*330109908000000361**330100142676*批*废旧 | S48: 动环监控 | T48: 动环监控 | W48: 直接套用单价 | X48: 个
A49: 48 | B49: 杭州市分公司2024年第二十六次党委会纪要-杭州铁塔党委会纪要(2024)第28期 | C49: 330100130205 | D49: 监控 | E49: 监控 | F49: 1659.54 | G49: 49.79 | H49: 1609.75 | I49: 1 | J49: 个 | M49: 无 | N49: 杭州东篱会所 | O49: 330102908000000138 | P49: 纯主机，无辅材 | Q49: 无**纯主机，无辅材*杭州东篱会所*330102908000000138**330100130205*批*废旧 | S49: 动环监控 | T49: 动环监控 | W49: 直接套用单价 | X49: 个
A50: 49 | B50: 杭州市分公司2024年第二十六次党委会纪要-杭州铁塔党委会纪要(2024)第28期 | C50: 330100223802 | D50: 监控 | E50: 监控 | F50: 2913.67 | G50: 87.41 | H50: 2826.26 | I50: 1 | J50: 个 | M50: 无 | N50: 杭州海景城 | O50: 330104908000000619 | P50: 纯主机，无辅材 | Q50: 无**纯主机，无辅材*杭州海景城*330104908000000619**330100223802*批*废旧 | S50: 动环监控 | T50: 动环监控 | W50: 直接套用单价 | X50: 个
A51: 50 | B51: 杭州市分公司2024年第二十六次党委会纪要-杭州铁塔党委会纪要(2024)第28期 | C51: 330100229696 | D51: 监控 | E51: 监控 | F51: 2840.17 | G51: 85.21 | H51: 2754.96 | I51: 1 | J51: 个 | M51: 无 | N51: 杭州横塘村十组 | O51: 330103908000000376 | P51: 纯主机，无辅材 | Q51: 无**纯主机，无辅材*杭州横塘村十组*330103908000000376**330100229696*批*废旧 | S51: 动环监控 | T51: 动环监控 | W51: 直接套用单价 | X51: 个
A52: 51 | B52: 杭州市分公司2024年第二十六次党委会纪要-杭州铁塔党委会纪要(2024)第28期 | C52: 330100212498 | D52: 监控 | E52: 监控 | F52: 2937.64 | G52: 88.13 | H52: 2849.51 | I52: 1 | J52: 个 | M52: 无 | N52: 杭州江干石桥装饰材料中心 | O52: 330103908000000264 | P52: 纯主机，无辅材 | Q52: 无**纯主机，无辅材*杭州江干石桥装饰材料中心*330103908000000264**330100212498*批*废旧 | S52: 动环监控 | T52: 动环监控 | W52: 直接套用单价 | X52: 个
A53: 52 | B53: 杭州市分公司2024年第二十六次党委会纪要-杭州铁塔党委会纪要(2024)第28期 | C53: 330100217082 | D53: 监控 | E53: 监控 | F53: 2825.61 | G53: 84.77 | H53: 2740.84 | I53: 1 | J53: 个 | M53: 无 | N53: 杭州上城铁路驾校培训基地 | O53: 330102908000000231 | P53: 纯主机，无辅材 | Q53: 无**纯主机，无辅材*杭州上城铁路驾校培训基地*330102908000000231**330100217082*批*废旧 | S53: 动环监控 | T53: 动环监控 | W53: 直接套用单价 | X53: 个
A54: 53 | B54: 杭州市分公司2024年第二十一次党委会纪要-杭州铁塔党委会纪要(2024)第23期 | C54: 330100197457 | D54: 监控 | E54: 监控 | F54: 2690.61 | G54: 80.72 | H54: 2609.89 | I54: 1 | J54: 个 | M54: 无 | N54: 新塘路艮山西路口 | O54: 330104500000000128 | P54: 纯主机，无辅材 | Q54: 无**纯主机，无辅材*新塘路艮山西路口*330104500000000128**330100197457*批*废旧 | S54: 动环监控 | T54: 动环监控 | W54: 直接套用单价 | X54: 个
A55: 54 | B55: 杭州市分公司2023年第三次党委会纪要-杭州铁塔党委会纪要〔2023〕第3期 | C55: 330100234491 | D55: 监控模块 | E55: 监控模块 | F55: 424.78 | G55: 115.79 | H55: 308.99 | I55: 1 | J55: 个 | L55: 位置通信模块 | M55: 无 | N55: 杭州康桥焊接基站 | O55: 330105908000000416 | Q55: 无*位置通信模块**杭州康桥焊接基站*330105908000000416*0.173kg*330100234491*批*废旧 | S55: 位置模块 | T55: 位置模块 | U55: 0.173 | W55: 称重计量后套用价格 | X55: 个
A56: 55 | B56: 杭州市分公司2023年第三次党委会纪要-杭州铁塔党委会纪要〔2023〕第3期 | C56: 330100227094 | D56: 监控模块 | E56: 监控模块 | F56: 424.78 | G56: 98.61 | H56: 326.17 | I56: 1 | J56: 个 | L56: 位置通信模块 | M56: 无 | N56: 七间头 | O56: 330109500000000388 | Q56: 无*位置通信模块**七间头*330109500000000388*0.207kg*330100227094*批*废旧 | S56: 位置模块 | T56: 位置模块 | U56: 0.207 | W56: 称重计量后套用价格 | X56: 个
A57: 56 | B57: 杭州市分公司2024年第四次党委会纪要-杭州铁塔党委会纪要(2024)第6期 | C57: 330100208649 | D57: 交流计量箱 | E57: 交流计量箱 | F57: 758.65 | G57: 22.76 | H57: 735.89 | I57: 1 | J57: 个 | M57: 无 | N57: 富阳东洲移动富春民丰 | O57: 330183500000000260 | Q57: 无***富阳东洲移动富春民丰*330183500000000260*34kg*330100208649*批*废旧 | S57: 交流计量箱 | T57: 配电箱类 | U57: 34.000 | W57: 直接套用单价 | X57: 个
A58: 57 | B58: 杭州市分公司2024年第二十一次党委会纪要-杭州铁塔党委会纪要(2024)第23期 | C58: 330100213307 | D58: 交流计量箱 | E58: 交流计量箱 | F58: 682.58 | G58: 20.48 | H58: 662.1 | I58: 1 | J58: 个 | M58: 无 | N58: 余家畈村 | O58: 330106500000000659 | Q58: 无***余家畈村*330106500000000659*3.5kg*330100213307*批*废旧 | S58: 交流计量箱 | T58: 配电箱类 | U58: 3.500 | W58: 直接套用单价 | X58: 个
A59: 58 | B59: 杭州市分公司2024年第二十一次党委会纪要-杭州铁塔党委会纪要(2024)第23期 | C59: 330100200047 | D59: 交流配电箱 | E59: 交流配电箱 | F59: 2407.21 | G59: 72.22 | H59: 2334.99 | I59: 1 | J59: 个 | M59: 无 | N59: 杭州西湖转塘小俞家 | O59: 330106500000000510 | Q59: 无***杭州西湖转塘小俞家*330106500000000510**330100200047*批*废旧 | S59: 交流配电箱 | T59: 配电箱类 | W59: 直接套用单价 | X59: 个
A60: 59 | B60: 杭州市分公司2024年第二十六次党委会纪要-杭州铁塔党委会纪要(2024)第28期 | C60: 330100156620 | D60: 交流配电箱 | E60: 交流配电箱 | F60: 3584.63 | G60: 107.54 | H60: 3477.09 | I60: 1 | J60: 个 | M60: 无 | N60: 杭州杭报印务 | O60: 330104908000000502 | Q60: 无***杭州杭报印务*330104908000000502**330100156620*批*废旧 | S60: 交流配电箱 | T60: 配电箱类 | W60: 直接套用单价 | X60: 个
A61: 60 | B61: 杭州市分公司2024年第二十一次党委会纪要-杭州铁塔党委会纪要(2024)第23期 | C61: 330100162152 | D61: 开关电源 | E61: 开关电源 | F61: 9087.18 | G61: 272.62 | H61: 8814.56 | I61: 1 | J61: 架 | L61: 嵌入式 | M61: 无 | N61: 临安锦北街道民主电信模块机房 | O61: 330185906000014258 | P61: 含1个模块 | Q61: 无*嵌入式*含1个模块*临安锦北街道民主电信模块机房*330185906000014258*12.5kg*330100162152*批*废旧 | S61: 嵌入式开关电源 | T61: 嵌入式开关电源 | U61: 12.500 | W61: 称重计量后套用价格 | X61: 架
A62: 61 | B62: 杭州市分公司2024年第二十一次党委会纪要-杭州铁塔党委会纪要(2024)第23期 | C62: 330100257251 | D62: 开关电源 | E62: 开关电源 | F62: 10488.27 | G62: 1727.8 | H62: 8760.47 | I62: 1 | J62: 架 | L62: 嵌入式 | M62: 无 | N62: 临安青山湖街道杭叉集团东 | O62: 330185906000014059 | P62: 含1个模块 | Q62: 无*嵌入式*含1个模块*临安青山湖街道杭叉集团东*330185906000014059*11.5kg*330100257251*批*废旧 | S62: 嵌入式开关电源 | T62: 嵌入式开关电源 | U62: 11.500 | W62: 称重计量后套用价格 | X62: 架
A63: 62 | B63: 杭州市分公司2024年第二十一次党委会纪要-杭州铁塔党委会纪要(2024)第23期 | C63: 330100217170_2 | D63: 开关电源 | E63: 开关电源 | F63: 2179.11 | G63: 65.37 | H63: 2113.74 | I63: 1 | J63: 架 | L63: 嵌入式 | M63: 无 | N63: 萧山鸿达路与高新七路交叉口凯达文具周边区域 | O63: 330109500000000347 | P63: 一个模块 | Q63: 无*嵌入式*一个模块*萧山鸿达路与高新七路交叉口凯达文具周边区域*330109500000000347*19.5kg*330100217170_2*批*废旧 | S63: 嵌入式开关电源 | T63: 嵌入式开关电源 | U63: 19.500 | W63: 称重计量后套用价格 | X63: 架
A64: 63 | B64: 杭州市分公司2024年第二十一次党委会纪要-杭州铁塔党委会纪要(2024)第23期 | C64: 330100008337_1 | D64: 开关电源 | E64: 开关电源 | F64: 1272.51 | G64: 38.17 | H64: 1234.34 | I64: 1 | J64: 架 | L64: 嵌入式 | M64: 无 | N64: 萧山金城路东南网架大楼 | O64: 330109500000000281 | P64: 一个模块 | Q64: 无*嵌入式*一个模块*萧山金城路东南网架大楼*330109500000000281*14kg*330100008337_1*批*废旧 | S64: 嵌入式开关电源 | T64: 嵌入式开关电源 | U64: 14.000 | W64: 称重计量后套用价格 | X64: 架
A65: 64 | B65: 杭州市分公司2024年第二十一次党委会纪要-杭州铁塔党委会纪要(2024)第23期 | C65: 330100196473_2 | D65: 开关电源 | E65: 开关电源 | F65: 1597.02 | G65: 47.91 | H65: 1549.11 | I65: 1 | J65: 架 | L65: 嵌入式 | M65: 无 | N65: 萧山童家里 | O65: 330109908000000839 | P65: 一个模块 | Q65: 无*嵌入式*一个模块*萧山童家里*330109908000000839*17.5kg*330100196473_2*批*废旧 | S65: 嵌入式开关电源 | T65: 嵌入式开关电源 | U65: 17.500 | W65: 称重计量后套用价格 | X65: 架
A66: 65 | B66: 杭州市分公司2024年第二十一次党委会纪要-杭州铁塔党委会纪要(2024)第23期 | C66: 330100178850_2 | D66: 开关电源 | E66: 开关电源 | F66: 2613.08 | G66: 78.4 | H66: 2534.68 | I66: 1 | J66: 架 | L66: 嵌入式 | M66: 无 | N66: 富阳中水花苑 | O66: 330183908000001121 | Q66: 无*嵌入式**富阳中水花苑*330183908000001121*24kg*330100178850_2*批*废旧 | S66: 嵌入式开关电源 | T66: 嵌入式开关电源 | U66: 24.000 | W66: 称重计量后套用价格 | X66: 架
A67: 66 | B67: 杭州市分公司2024年第二十一次党委会纪要-杭州铁塔党委会纪要(2024)第23期 | C67: 330100217256_2 | D67: 开关电源 | E67: 开关电源 | F67: 2956.13 | G67: 88.68 | H67: 2867.45 | I67: 1 | J67: 架 | L67: 嵌入式 | M67: 无 | N67: 居仁管家坞 | O67: 330183500000000234 | Q67: 无*嵌入式**居仁管家坞*330183500000000234*11.5kg*330100217256_2*批*废旧 | S67: 嵌入式开关电源 | T67: 嵌入式开关电源 | U67: 11.500 | W67: 称重计量后套用价格 | X67: 架
A68: 67 | B68: 杭州市分公司2024年第二十一次党委会纪要-杭州铁塔党委会纪要(2024)第23期 | C68: 330100200052 | D68: 开关电源 | E68: 开关电源 | F68: 4503.25 | G68: 135.1 | H68: 4368.15 | I68: 1 | J68: 架 | L68: 嵌入式 | M68: 无 | N68: 杭州西湖转塘小俞家 | O68: 330106500000000510 | P68: 含1个模块 | Q68: 无*嵌入式*含1个模块*杭州西湖转塘小俞家*330106500000000510*23.5kg*330100200052*批*废旧 | S68: 嵌入式开关电源 | T68: 嵌入式开关电源 | U68: 23.500 | W68: 称重计量后套用价格 | X68: 架
A69: 68 | B69: 杭州市分公司2024年第二十六次党委会纪要-杭州铁塔党委会纪要(2024)第28期 | C69: 330100169887_2 | D69: 开关电源 | E69: 开关电源 | F69: 2074.71 | G69: 62.24 | H69: 2012.47 | I69: 1 | J69: 架 | L69: 嵌入式 | M69: 无 | N69: 临安高虹镇 | O69: 330185908000000103 | P69: 1个模块 | Q69: 无*嵌入式*1个模块*临安高虹镇*330185908000000103*13kg*330100169887_2*批*废旧 | S69: 嵌入式开关电源 | T69: 嵌入式开关电源 | U69: 13.000 | W69: 称重计量后套用价格 | X69: 架
A70: 69 | B70: 杭州市分公司2024年第二十六次党委会纪要-杭州铁塔党委会纪要(2024)第28期 | C70: 330100193072_2 | D70: 开关电源 | E70: 开关电源 | F70: 3617.85 | G70: 108.53 | H70: 3509.32 | I70: 1 | J70: 架 | L70: 嵌入式 | M70: 无 | N70: 临安青山湖管委会西北LT | O70: 330185500000000329 | P70: 1个模块 | Q70: 无*嵌入式*1个模块*临安青山湖管委会西北LT*330185500000000329*16kg*330100193072_2*批*废旧 | S70: 嵌入式开关电源 | T70: 嵌入式开关电源 | U70: 16.000 | W70: 称重计量后套用价格 | X70: 架
A71: 70 | B71: 杭州市分公司2024年第十一次党委会纪要-杭州铁塔党委会纪要(2024)第13期 | C71: 330100265417 | D71: 开关电源 | E71: 开关电源 | F71: 8026.22 | G71: 2091.83 | H71: 5934.39 | I71: 1 | J71: 架 | L71: 嵌入式 | M71: 无 | N71: 萧山双圩5组 | O71: 330109908000000401 | P71: 无模块 | Q71: 无*嵌入式*无模块*萧山双圩5组*330109908000000401*24kg*330100265417*批*废旧 | S71: 嵌入式开关电源 | T71: 嵌入式开关电源 | U71: 24.000 | W71: 称重计量后套用价格 | X71: 架
A72: 71 | B72: 杭州市分公司2024年第二十一次党委会纪要-杭州铁塔党委会纪要(2024)第23期 | C72: 330100193555 | D72: 开关电源 | E72: 开关电源 | F72: 7717.24 | G72: 231.52 | H72: 7485.72 | I72: 1 | J72: 架 | L72: 嵌入式 | M72: 无 | N72: 杭州江干大世界五金城二期 | O72: 330104500000000313 | P72: 无模块 | Q72: 无*嵌入式*无模块*杭州江干大世界五金城二期*330104500000000313*14.5kg*330100193555*批*废旧 | S72: 嵌入式开关电源 | T72: 嵌入式开关电源 | U72: 14.500 | W72: 称重计量后套用价格 | X72: 架
A73: 72 | B73: 杭州市分公司2024年第二十一次党委会纪要-杭州铁塔党委会纪要(2024)第23期 | C73: 330100181653_2 | D73: 开关电源 | E73: 开关电源 | F73: 2725.83 | G73: 81.77 | H73: 2644.06 | I73: 1 | J73: 架 | L73: 嵌入式 | M73: 无 | N73: 杭州江干金色黎明二期 | O73: 330104500000000314 | P73: 无模块 | Q73: 无*嵌入式*无模块*杭州江干金色黎明二期*330104500000000314*15kg*330100181653_2*批*废旧 | S73: 嵌入式开关电源 | T73: 嵌入式开关电源 | U73: 15.000 | W73: 称重计量后套用价格 | X73: 架
A74: 73 | B74: 杭州市分公司2024年第二十一次党委会纪要-杭州铁塔党委会纪要(2024)第23期 | C74: 330100119787 | D74: 开关电源 | E74: 开关电源 | F74: 5143.45 | G74: 154.3 | H74: 4989.15 | I74: 1 | J74: 架 | L74: 嵌入式 | M74: 无 | N74: 杭州吴山花鸟城街道站 | O74: 330102908000000019 | P74: 无模块 | Q74: 无*嵌入式*无模块*杭州吴山花鸟城街道站*330102908000000019*10.5kg*330100119787*批*废旧 | S74: 嵌入式开关电源 | T74: 嵌入式开关电源 | U74: 10.500 | W74: 称重计量后套用价格 | X74: 架
A75: 74 | B75: 杭州市分公司2024年第二十六次党委会纪要-杭州铁塔党委会纪要(2024)第28期 | C75: 330100278067 | D75: 开关电源 | E75: 开关电源 | F75: 14816.92 | G75: 3648.54 | H75: 11168.38 | I75: 1 | J75: 架 | L75: 嵌入式 | M75: 无 | N75: 杭州元和之星江城店 | O75: 330102908000000243 | P75: 无模块 | Q75: 无*嵌入式*无模块*杭州元和之星江城店*330102908000000243*13.5kg*330100278067*批*废旧 | S75: 嵌入式开关电源 | T75: 嵌入式开关电源 | U75: 13.500 | W75: 称重计量后套用价格 | X75: 架
A76: 75 | B76: 杭州市分公司2024年第二十一次党委会纪要-杭州铁塔党委会纪要(2024)第23期 | C76: 330100145380 | D76: 开关电源 | E76: 开关电源 | F76: 1559.13 | G76: 46.77 | H76: 1512.36 | I76: 1 | J76: 架 | L76: 组合式 | M76: 无 | N76: 富阳环山新畈 | O76: 330183908000001199 | P76: 2个模块，铜线铜牌铝牌等内部器件完成整度40% | Q76: 无*组合式*2个模块，铜线铜牌铝牌等内部器件完成整度40%*富阳环山新畈*330183908000001199**330100145380*批*废旧 | S76: 组合式开关电源 | T76: 组合式开关电源 | V76: 完整度40% | W76: 完整度计量后套用价格 | X76: 架
A77: 76 | B77: 杭州市分公司2024年第十四次党委会纪要-杭州铁塔党委会纪要(2024)第16期 | C77: 330100110787 | D77: 开关电源 | E77: 开关电源 | F77: 978.55 | G77: 29.36 | H77: 949.19 | I77: 1 | J77: 架 | L77: 组合式 | M77: 艾默生 | N77: 淳安里商乡江村 | O77: 330127908000000727 | P77: 无模块，铜线铜牌铝牌等内部器件完整度40% | Q77: 艾默生*组合式*无模块，铜线铜牌铝牌等内部器件完整度40%*淳安里商乡江村*330127908000000727*完整度40%*330100110787*批*废旧 | S77: 组合式开关电源 | T77: 组合式开关电源 | V77: 完整度40% | W77: 完整度计量后套用价格 | X77: 架
A78: 77 | B78: 杭州市分公司2024年第二十一次党委会纪要-杭州铁塔党委会纪要(2024)第23期 | C78: 330100145497 | D78: 开关电源 | E78: 开关电源 | F78: 3583.38 | G78: 107.5 | H78: 3475.88 | I78: 1 | J78: 架 | L78: 组合式 | M78: 无 | N78: 临安横畈白水涧 | O78: 330185908000000215 | P78: 1个模块，铜线铜牌铝牌等内部器件完整度20% | Q78: 无*组合式*1个模块，铜线铜牌铝牌等内部器件完整度20%*临安横畈白水涧*330185908000000215*完整度20%*330100145497*批*废旧 | S78: 组合式开关电源 | T78: 组合式开关电源 | V78: 完整度20% | W78: 完整度计量后套用价格 | X78: 架
A79: 78 | B79: 杭州市分公司2024年第二十一次党委会纪要-杭州铁塔党委会纪要(2024)第23期 | C79: 330100149504 | D79: 开关电源 | E79: 开关电源 | F79: 8788.36 | G79: 263.65 | H79: 8524.71 | I79: 1 | J79: 架 | L79: 组合式 | M79: 无 | N79: 临安收费站石佛西 | O79: 330185908000000219 | P79: 1个模块，铜线铜牌铝牌等内部器件完整度20% | Q79: 无*组合式*1个模块，铜线铜牌铝牌等内部器件完整度20%*临安收费站石佛西*330185908000000219*完整度20%*330100149504*批*废旧 | S79: 组合式开关电源 | T79: 组合式开关电源 | V79: 完整度20% | W79: 完整度计量后套用价格 | X79: 架
A80: 79 | B80: 杭州市分公司2024年第二十一次党委会纪要-杭州铁塔党委会纪要(2024)第23期 | C80: 330100123969 | D80: 开关电源 | E80: 开关电源 | F80: 1174.75 | G80: 35.24 | H80: 1139.51 | I80: 1 | J80: 架 | L80: 组合式 | M80: 无 | N80: 临安三口镇秋口 | O80: 330185908000000659 | P80: 1个模块，铜线铜牌铝牌等内部器件完整度45% | Q80: 无*组合式*1个模块，铜线铜牌铝牌等内部器件完整度45%*临安三口镇秋口*330185908000000659*完整度45%*330100123969*批*废旧 | S80: 组合式开关电源 | T80: 组合式开关电源 | V80: 完整度45% | W80: 完整度计量后套用价格 | X80: 架
A81: 80 | B81: 杭州市分公司2024年第二十六次党委会纪要-杭州铁塔党委会纪要(2024)第28期 | C81: 330100122895 | D81: 开关电源 | E81: 开关电源 | F81: 5549.58 | G81: 166.49 | H81: 5383.09 | I81: 1 | J81: 架 | L81: 组合式 | M81: 无 | N81: 杭州东篱会所 | O81: 330102908000000138 | P81: 2个模块，铜线铜牌铝牌等内部器件完整度40% | Q81: 无*组合式*2个模块，铜线铜牌铝牌等内部器件完整度40%*杭州东篱会所*330102908000000138*完整度40%*330100122895*批*废旧 | S81: 组合式开关电源 | T81: 组合式开关电源 | V81: 完整度40% | W81: 完整度计量后套用价格 | X81: 架
A82: 81 | B82: 杭州市分公司2024年第二十六次党委会纪要-杭州铁塔党委会纪要(2024)第28期 | C82: 330100122947 | D82: 开关电源 | E82: 开关电源 | F82: 3880.17 | G82: 116.41 | H82: 3763.76 | I82: 1 | J82: 架 | L82: 组合式 | M82: 无 | N82: 杭州横塘村十组 | O82: 330103908000000376 | P82: 2个模块，铜线铜牌铝牌等内部器件完整度40% | Q82: 无*组合式*2个模块，铜线铜牌铝牌等内部器件完整度40%*杭州横塘村十组*330103908000000376*完整度40%*330100122947*批*废旧 | S82: 组合式开关电源 | T82: 组合式开关电源 | V82: 完整度40% | W82: 完整度计量后套用价格 | X82: 架
A83: 82 | B83: 杭州市分公司2024年第二十六次党委会纪要-杭州铁塔党委会纪要(2024)第28期 | C83: 330100120804 | D83: 开关电源 | E83: 开关电源 | F83: 2853.07 | G83: 85.59 | H83: 2767.48 | I83: 1 | J83: 架 | L83: 组合式 | M83: 无 | N83: 杭州杭报印务 | O83: 330104908000000502 | P83: 4个模块，铜线铜牌铝牌等内部器件完整度50% | Q83: 无*组合式*4个模块，铜线铜牌铝牌等内部器件完整度50%*杭州杭报印务*330104908000000502*完整度50%*330100120804*批*废旧 | S83: 组合式开关电源 | T83: 组合式开关电源 | V83: 完整度50% | W83: 完整度计量后套用价格 | X83: 架
A84: 83 | B84: 杭州市分公司2024年第二十六次党委会纪要-杭州铁塔党委会纪要(2024)第28期 | C84: 330100109276 | D84: 开关电源 | E84: 开关电源 | F84: 8332.24 | G84: 249.97 | H84: 8082.27 | I84: 1 | J84: 架 | L84: 组合式 | M84: 无 | N84: 杭州同心村 | O84: 330104908000000675 | P84: 无模块，铜线铜牌铝牌等内部器件完整度20% | Q84: 无*组合式*无模块，铜线铜牌铝牌等内部器件完整度20%*杭州同心村*330104908000000675*完整度20%*330100109276*批*废旧 | S84: 组合式开关电源 | T84: 组合式开关电源 | V84: 完整度20% | W84: 完整度计量后套用价格 | X84: 架
A85: 84 | B85: 杭州市分公司2024年第二十六次党委会纪要-杭州铁塔党委会纪要(2024)第28期 | C85: 330100120668 | D85: 开关电源 | E85: 开关电源 | F85: 7948.05 | G85: 238.44 | H85: 7709.61 | I85: 1 | J85: 架 | L85: 组合式 | M85: 艾默生 | N85: 建德大同镇源 | O85: 330182908000000897 | P85: 2块模块,铜线铜牌铝牌等内部器件完整度50% | Q85: 艾默生*组合式*2块模块,铜线铜牌铝牌等内部器件完整度50%*建德大同镇源*330182908000000897*完整度50%*330100120668*批*废旧 | S85: 组合式开关电源 | T85: 组合式开关电源 | V85: 完整度50% | W85: 完整度计量后套用价格 | X85: 架
A86: 85 | B86: 杭州市分公司2024年第二十一次党委会纪要-杭州铁塔党委会纪要(2024)第23期 | C86: 330100200051 | D86: 空调 | E86: 空调 | F86: 3882.65 | G86: 116.48 | H86: 3766.17 | I86: 1 | J86: 台 | L86: 2P | M86: 无 | N86: 杭州西湖转塘小俞家 | O86: 330106500000000510 | Q86: 无*2P**杭州西湖转塘小俞家*330106500000000510**330100200051*批*废旧 | S86: 空调2匹内外机 | T86: 空调 | W86: 直接套用单价 | X86: 台
A87: 86 | B87: 杭州市分公司2024年第二十一次党委会纪要-杭州铁塔党委会纪要(2024)第23期 | C87: 330100126861 | D87: 空调 | E87: 空调 | F87: 1728 | G87: 51.84 | H87: 1676.16 | I87: 1 | J87: 台 | L87: 2P | M87: 大金 | N87: 淳安审峰村 | O87: 330127908000001088 | P87: 配件铜管另行申请入库 | Q87: 大金*2P*配件铜管另行申请入库*淳安审峰村*330127908000001088**330100126861*批*废旧 | S87: 空调2匹内外机 | T87: 空调 | W87: 直接套用单价 | X87: 台
A88: 87 | B88: 杭州市分公司2024年第二十一次党委会纪要-杭州铁塔党委会纪要(2024)第23期 | C88: 330100147578 | D88: 空调 | E88: 空调 | F88: 5315.1 | G88: 159.45 | H88: 5155.65 | I88: 1 | J88: 台 | L88: 2P | M88: 大金 | N88: 淳安王阜乡新畈村 | O88: 330127908000000746 | P88: 配件铜管另行申请入库 | Q88: 大金*2P*配件铜管另行申请入库*淳安王阜乡新畈村*330127908000000746**330100147578*批*废旧 | S88: 空调2匹内外机 | T88: 空调 | W88: 直接套用单价 | X88: 台
A89: 88 | B89: 杭州市分公司2024年第二十一次党委会纪要-杭州铁塔党委会纪要(2024)第23期 | C89: 330100146303 | D89: 空调 | E89: 空调 | F89: 684 | G89: 20.52 | H89: 663.48 | I89: 1 | J89: 台 | L89: 2P | M89: 大金 | N89: 淳安向阳 | O89: 330127908000000685 | P89: 配件铜管另行申请入库 | Q89: 大金*2P*配件铜管另行申请入库*淳安向阳*330127908000000685**330100146303*批*废旧 | S89: 空调2匹内外机 | T89: 空调 | W89: 直接套用单价 | X89: 台
A90: 89 | B90: 杭州市分公司2024年第二十一次党委会纪要-杭州铁塔党委会纪要(2024)第23期 | C90: 330100146037 | D90: 空调 | E90: 空调 | F90: 3572 | G90: 107.16 | H90: 3464.84 | I90: 1 | J90: 台 | L90: 2P | M90: 美的 | N90: 淳安铜山 | O90: 330127908000000877 | P90: 配件铜管另行申请入库 | Q90: 美的*2P*配件铜管另行申请入库*淳安铜山*330127908000000877**330100146037*批*废旧 | S90: 空调2匹内外机 | T90: 空调 | W90: 直接套用单价 | X90: 台
A91: 90 | B91: 杭州市分公司2024年第二十一次党委会纪要-杭州铁塔党委会纪要(2024)第23期 | C91: 330100204985 | D91: 空调 | E91: 空调 | F91: 3868.82 | G91: 116.06 | H91: 3752.76 | I91: 1 | J91: 台 | L91: 2P | M91: 美的 | N91: 淳安铜山口 | O91: 330127908000000993 | P91: 配件铜管另行申请入库 | Q91: 美的*2P*配件铜管另行申请入库*淳安铜山口*330127908000000993**330100204985*批*废旧 | S91: 空调2匹内外机 | T91: 空调 | W91: 直接套用单价 | X91: 台
A92: 91 | B92: 杭州市分公司2024年第二十一次党委会纪要-杭州铁塔党委会纪要(2024)第23期 | C92: 330100125092 | D92: 空调 | E92: 空调 | F92: 864 | G92: 25.92 | H92: 838.08 | I92: 1 | J92: 台 | L92: 2P | M92: 大金 | N92: 临安闽坞 | O92: 330185908000000692 | P92: 铜管配件另行入库 | Q92: 大金*2P*铜管配件另行入库*临安闽坞*330185908000000692**330100125092*批*废旧 | S92: 空调2匹内外机 | T92: 空调 | W92: 直接套用单价 | X92: 台
A93: 92 | B93: 杭州市分公司2024年第二十一次党委会纪要-杭州铁塔党委会纪要(2024)第23期 | C93: 330100229265 | D93: 空调 | E93: 空调 | F93: 3605.45 | G93: 108.16 | H93: 3497.29 | I93: 1 | J93: 台 | L93: 2P | M93: 海信 | N93: 临安桥川 | O93: 330185908000001039 | P93: 铜管配件另行入库 | Q93: 海信*2P*铜管配件另行入库*临安桥川*330185908000001039**330100229265*批*废旧 | S93: 空调2匹内外机 | T93: 空调 | W93: 直接套用单价 | X93: 台
A94: 93 | B94: 杭州市分公司2024年第十四次党委会纪要-杭州铁塔党委会纪要(2024)第16期 | C94: 330100125370 | D94: 空调 | E94: 空调 | F94: 864 | G94: 25.92 | H94: 838.08 | I94: 1 | J94: 台 | L94: 2P | M94: 无 | N94: 萧山靖港工业区六号 | O94: 330109908000000620 | P94: 无铜管 | Q94: 无*2P*无铜管*萧山靖港工业区六号*330109908000000620**330100125370*批*废旧 | S94: 空调2匹内外机 | T94: 空调 | W94: 直接套用单价 | X94: 台
A95: 94 | B95: 杭州市分公司2024年第二十六次党委会纪要-杭州铁塔党委会纪要(2024)第28期 | C95: 330100205219 | D95: 空调 | E95: 空调 | F95: 10704.79 | G95: 321.14 | H95: 10383.65 | I95: 1 | J95: 台 | L95: 2P | M95: 美的 | N95: 淳安大市镇岭干村 | O95: 330127908000001076 | P95: 配件铜管另行申请入库 | Q95: 美的*2P*配件铜管另行申请入库*淳安大市镇岭干村*330127908000001076**330100205219*批*废旧 | S95: 空调2匹内外机 | T95: 空调 | W95: 直接套用单价 | X95: 台
A96: 95 | B96: 杭州市分公司2024年第二十六次党委会纪要-杭州铁塔党委会纪要(2024)第28期 | C96: 330100157338 | D96: 空调 | E96: 空调 | F96: 103 | G96: 3.09 | H96: 99.91 | I96: 1 | J96: 台 | L96: 2P | M96: 美的 | N96: 淳安姜家双溪口 | O96: 330127908000000104 | P96: 配件铜管另行申请入库 | Q96: 美的*2P*配件铜管另行申请入库*淳安姜家双溪口*330127908000000104**330100157338*批*废旧 | S96: 空调2匹内外机 | T96: 空调 | W96: 直接套用单价 | X96: 台
A97: 96 | B97: 杭州市分公司2024年第二十六次党委会纪要-杭州铁塔党委会纪要(2024)第28期 | C97: 330100185794 | D97: 空调 | E97: 空调 | F97: 3858.25 | G97: 115.75 | H97: 3742.5 | I97: 1 | J97: 台 | L97: 2P | M97: 美的 | N97: 淳安窄坑村 | O97: 330127908000000652 | P97: 配件铜管另行申请入库 | Q97: 美的*2P*配件铜管另行申请入库*淳安窄坑村*330127908000000652**330100185794*批*废旧 | S97: 空调2匹内外机 | T97: 空调 | W97: 直接套用单价 | X97: 台
A98: 97 | B98: 杭州市分公司2024年第二十一次党委会纪要-杭州铁塔党委会纪要(2024)第23期 | C98: 330100127781 | D98: 空调 | E98: 空调 | F98: 288 | G98: 8.64 | H98: 279.36 | I98: 1 | J98: 台 | L98: 3P | M98: 大金 | N98: 临安碧淙 | O98: 330185908000001029 | P98: 铜管配件另行入库 | Q98: 大金*3P*铜管配件另行入库*临安碧淙*330185908000001029**330100127781*批*废旧 | S98: 空调3匹内外机 | T98: 空调 | W98: 直接套用单价 | X98: 台
A99: 98 | B99: 杭州市分公司2024年第二十一次党委会纪要-杭州铁塔党委会纪要(2024)第23期 | C99: 330100146746 | D99: 空调 | E99: 空调 | F99: 864 | G99: 25.92 | H99: 838.08 | I99: 1 | J99: 台 | L99: 3P | M99: 大金 | N99: 临安黄岗 | O99: 330185908000000873 | P99: 铜管配件另行入库 | Q99: 大金*3P*铜管配件另行入库*临安黄岗*330185908000000873**330100146746*批*废旧 | S99: 空调3匹内外机 | T99: 空调 | W99: 直接套用单价 | X99: 台
A100: 99 | B100: 杭州市分公司2024年第二十一次党委会纪要-杭州铁塔党委会纪要(2024)第23期 | C100: 330100185451 | D100: 空调 | E100: 空调 | F100: 6024.55 | G100: 180.74 | H100: 5843.81 | I100: 1 | J100: 台 | L100: 3P | M100: 美的 | N100: 临安青山轩轩沃专营店LT | O100: 330185500000000143 | P100: 铜管配件另行入库 | Q100: 美的*3P*铜管配件另行入库*临安青山轩轩沃专营店LT*330185500000000143**330100185451*批*废旧 | S100: 空调3匹内外机 | T100: 空调 | W100: 直接套用单价 | X100: 台
A101: 100 | B101: 杭州市分公司2024年第二十一次党委会纪要-杭州铁塔党委会纪要(2024)第23期 | C101: 330100218785 | D101: 空调 | E101: 空调 | F101: 7084.91 | G101: 212.55 | H101: 6872.36 | I101: 1 | J101: 台 | L101: 3P | M101: 美的 | N101: 临安青山轩轩沃专营店LT | O101: 330185500000000143 | P101: 铜管配件另行入库 | Q101: 美的*3P*铜管配件另行入库*临安青山轩轩沃专营店LT*330185500000000143**330100218785*批*废旧 | S101: 空调3匹内外机 | T101: 空调 | U101: 0.000 | W101: 直接套用单价 | X101: 台
A102: 101 | B102: 杭州市分公司2024年第二十一次党委会纪要-杭州铁塔党委会纪要(2024)第23期 | C102: 330100186320 | D102: 空调 | E102: 空调 | F102: 6458.63 | G102: 193.76 | H102: 6264.87 | I102: 1 | J102: 台 | L102: 3P | M102: 美的 | N102: 临安人民医院-2 | O102: 330185908000000086 | P102: 铜管配件另行入库 | Q102: 美的*3P*铜管配件另行入库*临安人民医院-2*330185908000000086**330100186320*批*废旧 | S102: 空调3匹内外机 | T102: 空调 | U102: 0.000 | W102: 直接套用单价 | X102: 台
A103: 102 | B103: 杭州市分公司2024年第二十一次党委会纪要-杭州铁塔党委会纪要(2024)第23期 | C103: 330100003963 | D103: 空调 | E103: 空调 | F103: 8683.73 | G103: 260.51 | H103: 8423.22 | I103: 1 | J103: 台 | L103: 3P | M103: 美的 | N103: 临安上塘楼 | O103: 330185010000000170 | P103: 铜管配件另行入库 | Q103: 美的*3P*铜管配件另行入库*临安上塘楼*330185010000000170**330100003963*批*废旧 | S103: 空调3匹内外机 | T103: 空调 | U103: 0.000 | W103: 直接套用单价 | X103: 台
A104: 103 | B104: 杭州市分公司2024年第二十一次党委会纪要-杭州铁塔党委会纪要(2024)第23期 | C104: 330100005098 | D104: 空调 | E104: 空调 | F104: 6787.1 | G104: 203.61 | H104: 6583.49 | I104: 1 | J104: 台 | L104: 3P | M104: 美的 | N104: 平渡村 | O104: 330185500000000059 | P104: 铜管配件另行入库 | Q104: 美的*3P*铜管配件另行入库*平渡村*330185500000000059**330100005098*批*废旧 | S104: 空调3匹内外机 | T104: 空调 | U104: 0.000 | W104: 直接套用单价 | X104: 台
A105: 104 | B105: 杭州市分公司2024年第二十一次党委会纪要-杭州铁塔党委会纪要(2024)第23期 | C105: 330100178663 | D105: 空调 | E105: 空调 | F105: 10142.8 | G105: 304.28 | H105: 9838.52 | I105: 1 | J105: 台 | L105: 3P | M105: 美的 | N105: 中国坚果城 | O105: 330185500000000209 | P105: 铜管配件另行入库 | Q105: 美的*3P*铜管配件另行入库*中国坚果城*330185500000000209**330100178663*批*废旧 | S105: 空调3匹内外机 | T105: 空调 | U105: 0.000 | W105: 直接套用单价 | X105: 台
A106: 105 | B106: 杭州市分公司2024年第二十一次党委会纪要-杭州铁塔党委会纪要(2024)第23期 | C106: 330100127397 | D106: 空调 | E106: 空调 | F106: 371.13 | G106: 11.13 | H106: 360 | I106: 1 | J106: 台 | L106: 3P | M106: 无 | N106: 富阳高桥塘家坞 | O106: 330183908000001194 | P106: 配件铜管另行申请退库 | Q106: 无*3P*配件铜管另行申请退库*富阳高桥塘家坞*330183908000001194**330100127397*批*废旧 | S106: 空调3匹内外机 | T106: 空调 | U106: 0.000 | W106: 直接套用单价 | X106: 台
A107: 106 | B107: 杭州市分公司2024年第二十一次党委会纪要-杭州铁塔党委会纪要(2024)第23期 | C107: 330100145985 | D107: 空调 | E107: 空调 | F107: 5486.49 | G107: 164.59 | H107: 5321.9 | I107: 1 | J107: 台 | L107: 3P | M107: 无 | N107: 富阳乐和村 | O107: 330183908000000454 | P107: 配件铜管另行申请退库 | Q107: 无*3P*配件铜管另行申请退库*富阳乐和村*330183908000000454**330100145985*批*废旧 | S107: 空调3匹内外机 | T107: 空调 | U107: 0.000 | W107: 直接套用单价 | X107: 台
A108: 107 | B108: 杭州市分公司2024年第二十一次党委会纪要-杭州铁塔党委会纪要(2024)第23期 | C108: 330100146834 | D108: 空调 | E108: 空调 | F108: 4720.34 | G108: 141.61 | H108: 4578.73 | I108: 1 | J108: 台 | L108: 3P | M108: 无 | N108: 富阳里山工业区 | O108: 330183908000000526 | P108: 配件铜管另行申请退库 | Q108: 无*3P*配件铜管另行申请退库*富阳里山工业区*330183908000000526**330100146834*批*废旧 | S108: 空调3匹内外机 | T108: 空调 | U108: 0.000 | W108: 直接套用单价 | X108: 台
A109: 108 | B109: 杭州市分公司2024年第二十一次党委会纪要-杭州铁塔党委会纪要(2024)第23期 | C109: 330100125344 | D109: 空调 | E109: 空调 | F109: 7765.03 | G109: 232.95 | H109: 7532.08 | I109: 1 | J109: 台 | L109: 3P | M109: 无 | N109: 富阳人和宾馆 | O109: 330183908000000353 | P109: 配件铜管另行申请退库 | Q109: 无*3P*配件铜管另行申请退库*富阳人和宾馆*330183908000000353**330100125344*批*废旧 | S109: 空调3匹内外机 | T109: 空调 | U109: 0.000 | W109: 直接套用单价 | X109: 台
A110: 109 | B110: 杭州市分公司2024年第二十一次党委会纪要-杭州铁塔党委会纪要(2024)第23期 | C110: 330100113536 | D110: 空调 | E110: 空调 | F110: 215.12 | G110: 6.45 | H110: 208.67 | I110: 1 | J110: 台 | L110: 3P | M110: 无 | N110: 富阳新登制罐厂 | O110: 330183908000000532 | P110: 配件铜管另行申请退库 | Q110: 无*3P*配件铜管另行申请退库*富阳新登制罐厂*330183908000000532**330100113536*批*废旧 | S110: 空调3匹内外机 | T110: 空调 | U110: 0.000 | W110: 直接套用单价 | X110: 台
A111: 110 | B111: 杭州市分公司2024年第二十一次党委会纪要-杭州铁塔党委会纪要(2024)第23期 | C111: 330100124775 | D111: 空调 | E111: 空调 | F111: 3529.93 | G111: 105.9 | H111: 3424.03 | I111: 1 | J111: 台 | L111: 3P | M111: 无 | N111: 富阳新殿 | O111: 330183908000000496 | P111: 配件铜管另行申请退库 | Q111: 无*3P*配件铜管另行申请退库*富阳新殿*330183908000000496**330100124775*批*废旧 | S111: 空调3匹内外机 | T111: 空调 | U111: 0.000 | W111: 直接套用单价 | X111: 台
A112: 111 | B112: 杭州市分公司2024年第十四次党委会纪要-杭州铁塔党委会纪要(2024)第16期 | C112: 330100125507 | D112: 空调 | E112: 空调 | F112: 288 | G112: 8.64 | H112: 279.36 | I112: 1 | J112: 台 | L112: 3P | M112: 大金 | N112: 淳安枫树岭镇枫香埂村 | O112: 330127908000001183 | P112: 配件铜管另行申请入库 | Q112: 大金*3P*配件铜管另行申请入库*淳安枫树岭镇枫香埂村*330127908000001183**330100125507*批*废旧 | S112: 空调3匹内外机 | T112: 空调 | U112: 0.000 | W112: 直接套用单价 | X112: 台
A113: 112 | B113: 杭州市分公司2024年第二十一次党委会纪要-杭州铁塔党委会纪要(2024)第23期 | C113: 330100126864 | D113: 空调 | E113: 空调 | F113: 1728 | G113: 51.84 | H113: 1676.16 | I113: 1 | J113: 台 | L113: 3P | M113: 大金 | N113: 淳安中坑 | O113: 330127908000001237 | P113: 配件铜管另行申请入库 | Q113: 大金*3P*配件铜管另行申请入库*淳安中坑*330127908000001237**330100126864*批*废旧 | S113: 空调3匹内外机 | T113: 空调 | U113: 0.000 | W113: 直接套用单价 | X113: 台
A114: 113 | B114: 杭州市分公司2024年第二十六次党委会纪要-杭州铁塔党委会纪要(2024)第28期 | C114: 330100223370 | D114: 空调 | E114: 空调 | F114: 6344.97 | G114: 190.35 | H114: 6154.62 | I114: 1 | J114: 台 | L114: 3P | M114: 海信 | N114: 桐庐滨江花园搬迁 | O114: 330122500010001729 | P114: 配件铜管另行申请退库 | Q114: 海信*3P*配件铜管另行申请退库*桐庐滨江花园搬迁*330122500010001729**330100223370*批*废旧 | S114: 空调3匹内外机 | T114: 空调 | U114: 0.000 | W114: 直接套用单价 | X114: 台
A115: 114 | B115: 杭州市分公司2024年第二十六次党委会纪要-杭州铁塔党委会纪要(2024)第28期 | C115: 330100112924 | D115: 空调 | E115: 空调 | F115: 864 | G115: 25.92 | H115: 838.08 | I115: 1 | J115: 台 | L115: 3P | M115: 海信 | N115: 桐庐广电 | O115: 330122908000000811 | P115: 配件铜管另行申请退库 | Q115: 海信*3P*配件铜管另行申请退库*桐庐广电*330122908000000811**330100112924*批*废旧 | S115: 空调3匹内外机 | T115: 空调 | U115: 0.000 | W115: 直接套用单价 | X115: 台
A116: 115 | B116: 杭州市分公司2024年第二十六次党委会纪要-杭州铁塔党委会纪要(2024)第28期 | C116: 330100127317 | D116: 空调 | E116: 空调 | F116: 496 | G116: 14.88 | H116: 481.12 | I116: 1 | J116: 台 | L116: 3P | M116: 海信 | N116: 桐庐桐君高家村 | O116: 330122908000000800 | P116: 配件铜管另行申请退库 | Q116: 海信*3P*配件铜管另行申请退库*桐庐桐君高家村*330122908000000800**330100127317*批*废旧 | S116: 空调3匹内外机 | T116: 空调 | U116: 0.000 | W116: 直接套用单价 | X116: 台
A117: 116 | B117: 杭州市分公司2024年第二十六次党委会纪要-杭州铁塔党委会纪要(2024)第28期 | C117: 330100183767 | D117: 空调 | E117: 空调 | F117: 7465.74 | G117: 223.97 | H117: 7241.77 | I117: 1 | J117: 台 | L117: 3P | M117: 科龙 | N117: 桐庐文化中心 | O117: 330122908000000058 | P117: 配件铜管另行申请退库 | Q117: 科龙*3P*配件铜管另行申请退库*桐庐文化中心*330122908000000058**330100183767*批*废旧 | S117: 空调3匹内外机 | T117: 空调 | U117: 0.000 | W117: 直接套用单价 | X117: 台
A118: 117 | B118: 杭州市分公司2024年第二十六次党委会纪要-杭州铁塔党委会纪要(2024)第28期 | C118: 330100247259 | D118: 空调 | E118: 空调 | F118: 7203.95 | G118: 410.15 | H118: 6793.8 | I118: 1 | J118: 台 | L118: 3P | M118: 科龙 | N118: 桐庐邮政局 | O118: 330122908000000163 | P118: 配件铜管另行申请退库 | Q118: 科龙*3P*配件铜管另行申请退库*桐庐邮政局*330122908000000163**330100247259*批*废旧 | S118: 空调3匹内外机 | T118: 空调 | U118: 0.000 | W118: 直接套用单价 | X118: 台
A119: 118 | B119: 杭州市分公司2024年第二十六次党委会纪要-杭州铁塔党委会纪要(2024)第28期 | C119: 330100218092 | D119: 空调 | E119: 空调 | F119: 10931.25 | G119: 327.94 | H119: 10603.31 | I119: 1 | J119: 台 | L119: 3P | M119: 科龙 | N119: 西武山大桥 | O119: 33012200000096 | P119: 配件铜管另行申请退库 | Q119: 科龙*3P*配件铜管另行申请退库*西武山大桥*33012200000096**330100218092*批*废旧 | S119: 空调3匹内外机 | T119: 空调 | U119: 0.000 | W119: 直接套用单价 | X119: 台
A120: 119 | B120: 杭州市分公司2024年第二十六次党委会纪要-杭州铁塔党委会纪要(2024)第28期 | C120: 330100215718 | D120: 空调 | E120: 空调 | F120: 7043.15 | G120: 211.29 | H120: 6831.86 | I120: 1 | J120: 台 | L120: 3P | M120: 美的 | N120: 桐庐隆隆商务宾馆 | O120: 330122908000000884 | P120: 配件铜管另行申请退库 | Q120: 美的*3P*配件铜管另行申请退库*桐庐隆隆商务宾馆*330122908000000884**330100215718*批*废旧 | S120: 空调3匹内外机 | T120: 空调 | U120: 0.000 | W120: 直接套用单价 | X120: 台
A121: 120 | B121: 杭州市分公司2024年第二十六次党委会纪要-杭州铁塔党委会纪要(2024)第28期 | C121: 330100213372 | D121: 空调 | E121: 空调 | F121: 7043.15 | G121: 211.29 | H121: 6831.86 | I121: 1 | J121: 台 | L121: 3P | M121: 美的 | N121: 桐庐明光假日酒店 | O121: 330122908000000898 | P121: 配件铜管另行申请退库 | Q121: 美的*3P*配件铜管另行申请退库*桐庐明光假日酒店*330122908000000898**330100213372*批*废旧 | S121: 空调3匹内外机 | T121: 空调 | U121: 0.000 | W121: 直接套用单价 | X121: 台
A122: 121 | B122: 杭州市分公司2024年第二十六次党委会纪要-杭州铁塔党委会纪要(2024)第28期 | C122: 330100157258 | D122: 空调 | E122: 空调 | F122: 496 | G122: 14.88 | H122: 481.12 | I122: 1 | J122: 台 | L122: 3P | M122: 美的 | N122: 桐庐石阜镇东南 | O122: 330122908000000900 | P122: 配件铜管另行申请退库 | Q122: 美的*3P*配件铜管另行申请退库*桐庐石阜镇东南*330122908000000900**330100157258*批*废旧 | S122: 空调3匹内外机 | T122: 空调 | U122: 0.000 | W122: 直接套用单价 | X122: 台
A123: 122 | B123: 杭州市分公司2024年第二十一次党委会纪要-杭州铁塔党委会纪要(2024)第23期 | C123: 330100125094 | D123: 空调 | E123: 空调 | F123: 3296 | G123: 98.88 | H123: 3197.12 | I123: 1 | J123: 台 | L123: 3P | M123: 大金 | N123: 临安赤坞水库 | O123: 330185908000000845 | P123: 铜管配件另行入库 | Q123: 大金*3P*铜管配件另行入库*临安赤坞水库*330185908000000845**330100125094*批*废旧 | S123: 空调3匹内外机 | T123: 空调 | U123: 0.000 | W123: 直接套用单价 | X123: 台
A124: 123 | B124: 杭州市分公司2024年第二十一次党委会纪要-杭州铁塔党委会纪要(2024)第23期 | C124: 330100113407 | D124: 空调 | E124: 空调 | F124: 398.77 | G124: 11.96 | H124: 386.81 | I124: 1 | J124: 台 | L124: 3P | M124: 大金 | N124: 临安颊口 | O124: 330185908000000863 | P124: 铜管配件另行入库 | Q124: 大金*3P*铜管配件另行入库*临安颊口*330185908000000863**330100113407*批*废旧 | S124: 空调3匹内外机 | T124: 空调 | U124: 0.000 | W124: 直接套用单价 | X124: 台
A125: 124 | B125: 杭州市分公司2024年第二十一次党委会纪要-杭州铁塔党委会纪要(2024)第23期 | C125: 330100147642 | D125: 空调 | E125: 空调 | F125: 4059.43 | G125: 121.78 | H125: 3937.65 | I125: 1 | J125: 台 | L125: 3P | M125: 大金 | N125: 临安浪口 | O125: 330185908000000714 | P125: 铜管配件另行入库 | Q125: 大金*3P*铜管配件另行入库*临安浪口*330185908000000714**330100147642*批*废旧 | S125: 空调3匹内外机 | T125: 空调 | U125: 0.000 | W125: 直接套用单价 | X125: 台
A126: 125 | B126: 杭州市分公司2024年第二十一次党委会纪要-杭州铁塔党委会纪要(2024)第23期 | C126: 330100146186 | D126: 空调 | E126: 空调 | F126: 864 | G126: 25.92 | H126: 838.08 | I126: 1 | J126: 台 | L126: 3P | M126: 大金 | N126: 临安炼川 | O126: 330185908000000761 | P126: 铜管配件另行入库 | Q126: 大金*3P*铜管配件另行入库*临安炼川*330185908000000761**330100146186*批*废旧 | S126: 空调3匹内外机 | T126: 空调 | U126: 0.000 | W126: 直接套用单价 | X126: 台
A127: 126 | B127: 杭州市分公司2024年第二十一次党委会纪要-杭州铁塔党委会纪要(2024)第23期 | C127: 330100125091 | D127: 空调 | E127: 空调 | F127: 864 | G127: 25.92 | H127: 838.08 | I127: 1 | J127: 台 | L127: 3P | M127: 大金 | N127: 临安上尤 | O127: 330185908000000738 | P127: 铜管配件另行入库 | Q127: 大金*3P*铜管配件另行入库*临安上尤*330185908000000738**330100125091*批*废旧 | S127: 空调3匹内外机 | T127: 空调 | U127: 0.000 | W127: 直接套用单价 | X127: 台
A128: 127 | B128: 杭州市分公司2024年第二十一次党委会纪要-杭州铁塔党委会纪要(2024)第23期 | C128: 330100157397 | D128: 空调 | E128: 空调 | F128: 4512 | G128: 135.36 | H128: 4376.64 | I128: 1 | J128: 台 | L128: 3P | M128: 大金 | N128: 临安天伦实业 | O128: 330185908000000874 | P128: 铜管配件另行入库 | Q128: 大金*3P*铜管配件另行入库*临安天伦实业*330185908000000874**330100157397*批*废旧 | S128: 空调3匹内外机 | T128: 空调 | U128: 0.000 | W128: 直接套用单价 | X128: 台
A129: 128 | B129: 杭州市分公司2024年第二十一次党委会纪要-杭州铁塔党委会纪要(2024)第23期 | C129: 330100126317 | D129: 空调 | E129: 空调 | F129: 864 | G129: 25.92 | H129: 838.08 | I129: 1 | J129: 台 | L129: 3P | M129: 大金 | N129: 临安银球坞 | O129: 330185908000000938 | P129: 铜管配件另行入库 | Q129: 大金*3P*铜管配件另行入库*临安银球坞*330185908000000938**330100126317*批*废旧 | S129: 空调3匹内外机 | T129: 空调 | U129: 0.000 | W129: 直接套用单价 | X129: 台
A130: 129 | B130: 杭州市分公司2024年第二十一次党委会纪要-杭州铁塔党委会纪要(2024)第23期 | C130: 330100126381 | D130: 空调 | E130: 空调 | F130: 6645.71 | G130: 199.37 | H130: 6446.34 | I130: 1 | J130: 台 | L130: 3P | M130: 海信 | N130: 临安锦城街道长桥 | O130: 330185908000000681 | P130: 铜管配件另行入库 | Q130: 海信*3P*铜管配件另行入库*临安锦城街道长桥*330185908000000681**330100126381*批*废旧 | S130: 空调3匹内外机 | T130: 空调 | U130: 0.000 | W130: 直接套用单价 | X130: 台
A131: 130 | B131: 杭州市分公司2024年第二十一次党委会纪要-杭州铁塔党委会纪要(2024)第23期 | C131: 330100126316 | D131: 空调 | E131: 空调 | F131: 257.5 | G131: 7.73 | H131: 249.77 | I131: 1 | J131: 台 | L131: 3P | M131: 海信 | N131: 临安钱童-2 | O131: 330185908000000693 | P131: 铜管配件另行入库 | Q131: 海信*3P*铜管配件另行入库*临安钱童-2*330185908000000693**330100126316*批*废旧 | S131: 空调3匹内外机 | T131: 空调 | U131: 0.000 | W131: 直接套用单价 | X131: 台
A132: 131 | B132: 杭州市分公司2024年第二十一次党委会纪要-杭州铁塔党委会纪要(2024)第23期 | C132: 330100157185 | D132: 空调 | E132: 空调 | F132: 154.5 | G132: 4.64 | H132: 149.86 | I132: 1 | J132: 台 | L132: 3P | M132: 海信 | N132: 中胜东 | O132: 330185906000014364 | P132: 铜管配件另行入库 | Q132: 海信*3P*铜管配件另行入库*中胜东*330185906000014364**330100157185*批*废旧 | S132: 空调3匹内外机 | T132: 空调 | U132: 0.000 | W132: 直接套用单价 | X132: 台
A133: 132 | B133: 杭州市分公司2024年第二十一次党委会纪要-杭州铁塔党委会纪要(2024)第23期 | C133: 330100157135 | D133: 空调 | E133: 空调 | F133: 5945.14 | G133: 178.35 | H133: 5766.79 | I133: 1 | J133: 台 | L133: 3P | M133: 海信 | N133: 临安锦城街道吴越大街悦豪酒店 | O133: 330185906000014254 | P133: 铜管配件另行入库,内机无内风机 | Q133: 海信*3P*铜管配件另行入库,内机无内风机*临安锦城街道吴越大街悦豪酒店*330185906000014254**330100157135*批*废旧 | S133: 空调3匹内外机 | T133: 空调 | U133: 0.000 | W133: 直接套用单价 | X133: 台
A134: 133 | B134: 杭州市分公司2024年第二十一次党委会纪要-杭州铁塔党委会纪要(2024)第23期 | C134: 330100157378 | D134: 空调 | E134: 空调 | F134: 4049.66 | G134: 121.49 | H134: 3928.17 | I134: 1 | J134: 台 | L134: 3P | M134: 海信 | N134: 临安龙岗丁家坞 | O134: 330185908000000134 | P134: 铜管配件另行入库,内机无内风机 | Q134: 海信*3P*铜管配件另行入库,内机无内风机*临安龙岗丁家坞*330185908000000134**330100157378*批*废旧 | S134: 空调3匹内外机 | T134: 空调 | U134: 0.000 | W134: 直接套用单价 | X134: 台
A135: 134 | B135: 杭州市分公司2024年第二十一次党委会纪要-杭州铁塔党委会纪要(2024)第23期 | C135: 330100147414 | D135: 空调 | E135: 空调 | F135: 257.5 | G135: 7.73 | H135: 249.77 | I135: 1 | J135: 台 | L135: 3P | M135: 科龙 | N135: 临安玲珑街道桥里村 | O135: 330185010000000172 | P135: 铜管配件另行入库 | Q135: 科龙*3P*铜管配件另行入库*临安玲珑街道桥里村*330185010000000172**330100147414*批*废旧 | S135: 空调3匹内外机 | T135: 空调 | U135: 0.000 | W135: 直接套用单价 | X135: 台
A136: 135 | B136: 杭州市分公司2024年第二十一次党委会纪要-杭州铁塔党委会纪要(2024)第23期 | C136: 330100126379 | D136: 空调 | E136: 空调 | F136: 2089.62 | G136: 62.69 | H136: 2026.93 | I136: 1 | J136: 台 | L136: 3P | M136: 科龙 | N136: 临安石宝坞 | O136: 330185908000000856 | P136: 铜管配件另行入库 | Q136: 科龙*3P*铜管配件另行入库*临安石宝坞*330185908000000856**330100126379*批*废旧 | S136: 空调3匹内外机 | T136: 空调 | U136: 0.000 | W136: 直接套用单价 | X136: 台
A137: 136 | B137: 杭州市分公司2024年第二十一次党委会纪要-杭州铁塔党委会纪要(2024)第23期 | C137: 330100146875 | D137: 空调 | E137: 空调 | F137: 864 | G137: 25.92 | H137: 838.08 | I137: 1 | J137: 台 | L137: 3P | M137: 美的 | N137: 临安齐农 | O137: 330185908000000737 | P137: 铜管配件另行入库 | Q137: 美的*3P*铜管配件另行入库*临安齐农*330185908000000737**330100146875*批*废旧 | S137: 空调3匹内外机 | T137: 空调 | U137: 0.000 | W137: 直接套用单价 | X137: 台
A138: 137 | B138: 杭州市分公司2024年第二十一次党委会纪要-杭州铁塔党委会纪要(2024)第23期 | C138: 330100146871 | D138: 空调 | E138: 空调 | F138: 864 | G138: 25.92 | H138: 838.08 | I138: 1 | J138: 台 | L138: 3P | M138: 美的 | N138: 临安新桥黄坦村 | O138: 330185908000000894 | P138: 铜管配件另行入库 | Q138: 美的*3P*铜管配件另行入库*临安新桥黄坦村*330185908000000894**330100146871*批*废旧 | S138: 空调3匹内外机 | T138: 空调 | U138: 0.000 | W138: 直接套用单价 | X138: 台
A139: 138 | B139: 杭州市分公司2024年第二十一次党委会纪要-杭州铁塔党委会纪要(2024)第23期 | C139: 330100125075 | D139: 空调 | E139: 空调 | F139: 864 | G139: 25.92 | H139: 838.08 | I139: 1 | J139: 台 | L139: 3P | M139: 美的 | N139: 临安鱼潭村 | O139: 330185908000000848 | P139: 铜管配件另行入库 | Q139: 美的*3P*铜管配件另行入库*临安鱼潭村*330185908000000848**330100125075*批*废旧 | S139: 空调3匹内外机 | T139: 空调 | U139: 0.000 | W139: 直接套用单价 | X139: 台
A140: 139 | B140: 杭州市分公司2024年第十四次党委会纪要-杭州铁塔党委会纪要(2024)第16期 | C140: 330100147128 | D140: 空调 | E140: 空调 | F140: 2876.2 | G140: 86.29 | H140: 2789.91 | I140: 1 | J140: 台 | L140: 3P | M140: 无 | N140: 萧山丰乐-2 | O140: 330109908000000361 | P140: 无铜管 | Q140: 无*3P*无铜管*萧山丰乐-2*330109908000000361**330100147128*批*废旧 | S140: 空调3匹内外机 | T140: 空调 | U140: 0.000 | W140: 直接套用单价 | X140: 台
A141: 140 | B141: 杭州市分公司2024年第二十六次党委会纪要-杭州铁塔党委会纪要(2024)第28期 | C141: 330100222618 | D141: 空调 | E141: 空调 | F141: 2736 | G141: 82.08 | H141: 2653.92 | I141: 1 | J141: 台 | L141: 3P | M141: 大金 | N141: 淳安汾口栗园 | O141: 33012700000073 | P141: 配件铜管另行申请入库 | Q141: 大金*3P*配件铜管另行申请入库*淳安汾口栗园*33012700000073**330100222618*批*废旧 | S141: 空调3匹内外机 | T141: 空调 | U141: 0.000 | W141: 直接套用单价 | X141: 台
A142: 141 | B142: 杭州市分公司2024年第二十六次党委会纪要-杭州铁塔党委会纪要(2024)第28期 | C142: 330100125506 | D142: 空调 | E142: 空调 | F142: 288 | G142: 8.64 | H142: 279.36 | I142: 1 | J142: 台 | L142: 3P | M142: 大金 | N142: 淳安鸠坑乡树山村 | O142: 330127908000001050 | P142: 配件铜管另行申请入库 | Q142: 大金*3P*配件铜管另行申请入库*淳安鸠坑乡树山村*330127908000001050**330100125506*批*废旧 | S142: 空调3匹内外机 | T142: 空调 | U142: 0.000 | W142: 直接套用单价 | X142: 台
A143: 142 | B143: 杭州市分公司2024年第二十六次党委会纪要-杭州铁塔党委会纪要(2024)第28期 | C143: 330100127068 | D143: 空调 | E143: 空调 | F143: 864 | G143: 25.92 | H143: 838.08 | I143: 1 | J143: 台 | L143: 3P | M143: 大金 | N143: 淳安青苗村 | O143: 330127908000000732 | P143: 配件铜管另行申请入库 | Q143: 大金*3P*配件铜管另行申请入库*淳安青苗村*330127908000000732**330100127068*批*废旧 | S143: 空调3匹内外机 | T143: 空调 | U143: 0.000 | W143: 直接套用单价 | X143: 台
A144: 143 | B144: 杭州市分公司2024年第二十六次党委会纪要-杭州铁塔党委会纪要(2024)第28期 | C144: 330100146127 | D144: 空调 | E144: 空调 | F144: 4512 | G144: 135.36 | H144: 4376.64 | I144: 1 | J144: 台 | L144: 3P | M144: 大金 | N144: 淳安上梧 | O144: 330127908000000597 | P144: 配件铜管另行申请入库 | Q144: 大金*3P*配件铜管另行申请入库*淳安上梧*330127908000000597**330100146127*批*废旧 | S144: 空调3匹内外机 | T144: 空调 | U144: 0.000 | W144: 直接套用单价 | X144: 台
A145: 144 | B145: 杭州市分公司2024年第二十六次党委会纪要-杭州铁塔党委会纪要(2024)第28期 | C145: 330100146531 | D145: 空调 | E145: 空调 | F145: 2262.86 | G145: 67.89 | H145: 2194.97 | I145: 1 | J145: 台 | L145: 3P | M145: 大金 | N145: 淳安宋京村 | O145: 330127908000001192 | P145: 配件铜管另行申请入库 | Q145: 大金*3P*配件铜管另行申请入库*淳安宋京村*330127908000001192**330100146531*批*废旧 | S145: 空调3匹内外机 | T145: 空调 | U145: 0.000 | W145: 直接套用单价 | X145: 台
A146: 145 | B146: 杭州市分公司2024年第二十六次党委会纪要-杭州铁塔党委会纪要(2024)第28期 | C146: 330100147083 | D146: 空调 | E146: 空调 | F146: 4512 | G146: 135.36 | H146: 4376.64 | I146: 1 | J146: 台 | L146: 3P | M146: 大金 | N146: 淳安威坪镇考川村 | O146: 330127908000000986 | P146: 配件铜管另行申请入库 | Q146: 大金*3P*配件铜管另行申请入库*淳安威坪镇考川村*330127908000000986**330100147083*批*废旧 | S146: 空调3匹内外机 | T146: 空调 | U146: 0.000 | W146: 直接套用单价 | X146: 台
A147: 146 | B147: 杭州市分公司2024年第二十六次党委会纪要-杭州铁塔党委会纪要(2024)第28期 | C147: 330100125462 | D147: 空调 | E147: 空调 | F147: 1619.48 | G147: 48.58 | H147: 1570.9 | I147: 1 | J147: 台 | L147: 3P | M147: 大金 | N147: 淳安威坪镇徐家坞村 | O147: 330127908000001039 | P147: 配件铜管另行申请入库 | Q147: 大金*3P*配件铜管另行申请入库*淳安威坪镇徐家坞村*330127908000001039**330100125462*批*废旧 | S147: 空调3匹内外机 | T147: 空调 | U147: 0.000 | W147: 直接套用单价 | X147: 台
A148: 147 | B148: 杭州市分公司2024年第二十六次党委会纪要-杭州铁塔党委会纪要(2024)第28期 | C148: 330100125115 | D148: 空调 | E148: 空调 | F148: 864 | G148: 25.92 | H148: 838.08 | I148: 1 | J148: 台 | L148: 3P | M148: 大金 | N148: 淳安文昌镇殿边村 | O148: 330127908000000722 | P148: 配件铜管另行申请入库 | Q148: 大金*3P*配件铜管另行申请入库*淳安文昌镇殿边村*330127908000000722**330100125115*批*废旧 | S148: 空调3匹内外机 | T148: 空调 | U148: 0.000 | W148: 直接套用单价 | X148: 台
A149: 148 | B149: 杭州市分公司2024年第二十六次党委会纪要-杭州铁塔党委会纪要(2024)第28期 | C149: 330100146030 | D149: 空调 | E149: 空调 | F149: 864 | G149: 25.92 | H149: 838.08 | I149: 1 | J149: 台 | L149: 3P | M149: 大金 | N149: 淳安文昌镇西河村 | O149: 330127908000000710 | P149: 配件铜管另行申请入库 | Q149: 大金*3P*配件铜管另行申请入库*淳安文昌镇西河村*330127908000000710**330100146030*批*废旧 | S149: 空调3匹内外机 | T149: 空调 | U149: 0.000 | W149: 直接套用单价 | X149: 台
A150: 149 | B150: 杭州市分公司2024年第二十六次党委会纪要-杭州铁塔党委会纪要(2024)第28期 | C150: 330100127584 | D150: 空调 | E150: 空调 | F150: 6713.81 | G150: 201.41 | H150: 6512.4 | I150: 1 | J150: 台 | L150: 3P | M150: 大金 | N150: 淳安杏坡村 | O150: 330127908000000969 | P150: 配件铜管另行申请入库 | Q150: 大金*3P*配件铜管另行申请入库*淳安杏坡村*330127908000000969**330100127584*批*废旧 | S150: 空调3匹内外机 | T150: 空调 | U150: 0.000 | W150: 直接套用单价 | X150: 台
A151: 150 | B151: 杭州市分公司2024年第二十六次党委会纪要-杭州铁塔党委会纪要(2024)第28期 | C151: 330100146522 | D151: 空调 | E151: 空调 | F151: 2370.21 | G151: 71.11 | H151: 2299.1 | I151: 1 | J151: 台 | L151: 3P | M151: 大金 | N151: 淳安阵头山村 | O151: 330127908000001199 | P151: 配件铜管另行申请入库 | Q151: 大金*3P*配件铜管另行申请入库*淳安阵头山村*330127908000001199**330100146522*批*废旧 | S151: 空调3匹内外机 | T151: 空调 | U151: 0.000 | W151: 直接套用单价 | X151: 台
A152: 151 | B152: 杭州市分公司2024年第二十六次党委会纪要-杭州铁塔党委会纪要(2024)第28期 | C152: 330100125256 | D152: 空调 | E152: 空调 | F152: 1993.85 | G152: 59.82 | H152: 1934.03 | I152: 1 | J152: 台 | L152: 3P | M152: 大金 | N152: 淳安左口乡-2 | O152: 330127908000000490 | P152: 配件铜管另行申请入库 | Q152: 大金*3P*配件铜管另行申请入库*淳安左口乡-2*330127908000000490**330100125256*批*废旧 | S152: 空调3匹内外机 | T152: 空调 | U152: 0.000 | W152: 直接套用单价 | X152: 台
A153: 152 | B153: 杭州市分公司2024年第二十六次党委会纪要-杭州铁塔党委会纪要(2024)第28期 | C153: 330100113528 | D153: 空调 | E153: 空调 | F153: 358.54 | G153: 10.76 | H153: 347.78 | I153: 1 | J153: 台 | L153: 3P | M153: 海信 | N153: 淳安大市镇孙家畈村 | O153: 330127700000039051 | P153: 配件铜管另行申请入库 | Q153: 海信*3P*配件铜管另行申请入库*淳安大市镇孙家畈村*330127700000039051**330100113528*批*废旧 | S153: 空调3匹内外机 | T153: 空调 | U153: 0.000 | W153: 直接套用单价 | X153: 台
A154: 153 | B154: 杭州市分公司2024年第二十六次党委会纪要-杭州铁塔党委会纪要(2024)第28期 | C154: 330100146884 | D154: 空调 | E154: 空调 | F154: 4869.24 | G154: 146.08 | H154: 4723.16 | I154: 1 | J154: 台 | L154: 3P | M154: 海信 | N154: 淳安三台 | O154: 330127908000000617 | P154: 配件铜管另行申请入库 | Q154: 海信*3P*配件铜管另行申请入库*淳安三台*330127908000000617**330100146884*批*废旧 | S154: 空调3匹内外机 | T154: 空调 | U154: 0.000 | W154: 直接套用单价 | X154: 台
A155: 154 | B155: 杭州市分公司2024年第二十六次党委会纪要-杭州铁塔党委会纪要(2024)第28期 | C155: 330100146064 | D155: 空调 | E155: 空调 | F155: 4677.03 | G155: 140.31 | H155: 4536.72 | I155: 1 | J155: 台 | L155: 3P | M155: 海信 | N155: 淳安梓桐慈溪村 | O155: 330127908000000611 | P155: 配件铜管另行申请入库 | Q155: 海信*3P*配件铜管另行申请入库*淳安梓桐慈溪村*330127908000000611**330100146064*批*废旧 | S155: 空调3匹内外机 | T155: 空调 | U155: 0.000 | W155: 直接套用单价 | X155: 台
A156: 155 | B156: 杭州市分公司2024年第二十六次党委会纪要-杭州铁塔党委会纪要(2024)第28期 | C156: 330100126821 | D156: 空调 | E156: 空调 | F156: 1597.89 | G156: 47.94 | H156: 1549.95 | I156: 1 | J156: 台 | L156: 3P | M156: 海信 | N156: 淳安梓桐洋峰村 | O156: 330127908000001104 | P156: 配件铜管另行申请入库 | Q156: 海信*3P*配件铜管另行申请入库*淳安梓桐洋峰村*330127908000001104**330100126821*批*废旧 | S156: 空调3匹内外机 | T156: 空调 | U156: 0.000 | W156: 直接套用单价 | X156: 台
A157: 156 | B157: 杭州市分公司2024年第二十六次党委会纪要-杭州铁塔党委会纪要(2024)第28期 | C157: 330100127857 | D157: 空调 | E157: 空调 | F157: 4674.52 | G157: 140.24 | H157: 4534.28 | I157: 1 | J157: 台 | L157: 3P | M157: 海信 | N157: 千岛湖镇汪村陀社 | O157: 330127010000000217 | P157: 配件铜管另行申请入库 | Q157: 海信*3P*配件铜管另行申请入库*千岛湖镇汪村陀社*330127010000000217**330100127857*批*废旧 | S157: 空调3匹内外机 | T157: 空调 | U157: 0.000 | W157: 直接套用单价 | X157: 台
A158: 157 | B158: 杭州市分公司2024年第二十六次党委会纪要-杭州铁塔党委会纪要(2024)第28期 | C158: 330100186270 | D158: 空调 | E158: 空调 | F158: 7465.74 | G158: 223.97 | H158: 7241.77 | I158: 1 | J158: 台 | L158: 3P | M158: 美的 | N158: 淳安临岐仰韩 | O158: 330127908000000040 | P158: 配件铜管另行申请入库 | Q158: 美的*3P*配件铜管另行申请入库*淳安临岐仰韩*330127908000000040**330100186270*批*废旧 | S158: 空调3匹内外机 | T158: 空调 | U158: 0.000 | W158: 直接套用单价 | X158: 台
A159: 158 | B159: 杭州市分公司2024年第二十六次党委会纪要-杭州铁塔党委会纪要(2024)第28期 | C159: 330100125389 | D159: 空调 | E159: 空调 | F159: 633.6 | G159: 19.01 | H159: 614.59 | I159: 1 | J159: 台 | L159: 3P | M159: 无 | N159: 杭州东篱会所 | O159: 330102908000000138 | P159: 配件铜管另行申请退库 | Q159: 无*3P*配件铜管另行申请退库*杭州东篱会所*330102908000000138**330100125389*批*废旧 | S159: 空调3匹内外机 | T159: 空调 | U159: 0.000 | W159: 直接套用单价 | X159: 台
A160: 159 | B160: 杭州市分公司2024年第二十六次党委会纪要-杭州铁塔党委会纪要(2024)第28期 | C160: 330100213202 | D160: 空调 | E160: 空调 | F160: 6959.13 | G160: 208.77 | H160: 6750.36 | I160: 1 | J160: 台 | L160: 3P | M160: 无 | N160: 杭州横塘村十组 | O160: 330103908000000376 | P160: 配件铜管另行申请退库 | Q160: 无*3P*配件铜管另行申请退库*杭州横塘村十组*330103908000000376**330100213202*批*废旧 | S160: 空调3匹内外机 | T160: 空调 | U160: 0.000 | W160: 直接套用单价 | X160: 台
A161: 160 | B161: 杭州市分公司2024年第二十六次党委会纪要-杭州铁塔党委会纪要(2024)第28期 | C161: 330100229752 | D161: 空调 | E161: 空调 | F161: 6918.47 | G161: 207.55 | H161: 6710.92 | I161: 1 | J161: 台 | L161: 3P | M161: 无 | N161: 杭州宏丽宾馆D | O161: 330104908000000543 | P161: 配件铜管另行申请退库 | Q161: 无*3P*配件铜管另行申请退库*杭州宏丽宾馆D*330104908000000543**330100229752*批*废旧 | S161: 空调3匹内外机 | T161: 空调 | U161: 0.000 | W161: 直接套用单价 | X161: 台
A162: 161 | B162: 杭州市分公司2024年第二十六次党委会纪要-杭州铁塔党委会纪要(2024)第28期 | C162: 330100127710 | D162: 空调 | E162: 空调 | F162: 846 | G162: 25.38 | H162: 820.62 | I162: 1 | J162: 台 | L162: 3P | M162: 无 | N162: 杭州笕桥黄家村 | O162: 330104908000001022 | P162: 配件铜管另行申请退库 | Q162: 无*3P*配件铜管另行申请退库*杭州笕桥黄家村*330104908000001022**330100127710*批*废旧 | S162: 空调3匹内外机 | T162: 空调 | U162: 0.000 | W162: 直接套用单价 | X162: 台
A163: 162 | B163: 杭州市分公司2024年第二十六次党委会纪要-杭州铁塔党委会纪要(2024)第28期 | C163: 330100288956 | D163: 空调 | E163: 空调 | F163: 6449.85 | G163: 1844.5 | H163: 4605.35 | I163: 1 | J163: 台 | L163: 3P | M163: 无 | N163: 杭州笕桥镇黄家村 | O163: 330104908000000604 | P163: 配件铜管另行申请退库 | Q163: 无*3P*配件铜管另行申请退库*杭州笕桥镇黄家村*330104908000000604**330100288956*批*废旧 | S163: 空调3匹内外机 | T163: 空调 | U163: 0.000 | W163: 直接套用单价 | X163: 台
A164: 163 | B164: 杭州市分公司2024年第二十六次党委会纪要-杭州铁塔党委会纪要(2024)第28期 | C164: 330100113564 | D164: 空调 | E164: 空调 | F164: 303.23 | G164: 9.1 | H164: 294.13 | I164: 1 | J164: 台 | L164: 3P | M164: 无 | N164: 杭州教育学院 | O164: 330102908000000020 | P164: 配件铜管另行申请退库 | Q164: 无*3P*配件铜管另行申请退库*杭州教育学院*330102908000000020**330100113564*批*废旧 | S164: 空调3匹内外机 | T164: 空调 | U164: 0.000 | W164: 直接套用单价 | X164: 台
A165: 164 | B165: 杭州市分公司2024年第二十六次党委会纪要-杭州铁塔党委会纪要(2024)第28期 | C165: 330100298163 | D165: 空调 | E165: 空调 | F165: 6404.3 | G165: 1827.74 | H165: 4576.56 | I165: 1 | J165: 台 | L165: 3P | M165: 无 | N165: 杭州锦波假日酒店 | O165: 330102908000000209 | P165: 配件铜管另行申请退库 | Q165: 无*3P*配件铜管另行申请退库*杭州锦波假日酒店*330102908000000209**330100298163*批*废旧 | S165: 空调3匹内外机 | T165: 空调 | U165: 0.000 | W165: 直接套用单价 | X165: 台
A166: 165 | B166: 杭州市分公司2024年第二十六次党委会纪要-杭州铁塔党委会纪要(2024)第28期 | C166: 330100126644 | D166: 空调 | E166: 空调 | F166: 1819.38 | G166: 54.58 | H166: 1764.8 | I166: 1 | J166: 台 | L166: 3P | M166: 无 | N166: 杭州吴山花鸟城街道站 | O166: 330102908000000019 | P166: 配件铜管另行申请退库 | Q166: 无*3P*配件铜管另行申请退库*杭州吴山花鸟城街道站*330102908000000019**330100126644*批*废旧 | S166: 空调3匹内外机 | T166: 空调 | U166: 0.000 | W166: 直接套用单价 | X166: 台
A167: 166 | B167: 杭州市分公司2024年第二十六次党委会纪要-杭州铁塔党委会纪要(2024)第28期 | C167: 330100229375 | D167: 空调 | E167: 空调 | F167: 6795.83 | G167: 203.87 | H167: 6591.96 | I167: 1 | J167: 台 | L167: 3P | M167: 无 | N167: 杭州小营巷 | O167: 330102908000000315 | P167: 配件铜管另行申请退库 | Q167: 无*3P*配件铜管另行申请退库*杭州小营巷*330102908000000315**330100229375*批*废旧 | S167: 空调3匹内外机 | T167: 空调 | U167: 0.000 | W167: 直接套用单价 | X167: 台
A168: 167 | B168: 杭州市分公司2024年第二十六次党委会纪要-杭州铁塔党委会纪要(2024)第28期 | C168: 330100125409 | D168: 空调 | E168: 空调 | F168: 288 | G168: 8.64 | H168: 279.36 | I168: 1 | J168: 台 | L168: 3P | M168: 无 | N168: 杭州针织城 | O168: 330102908000000183 | P168: 配件铜管另行申请退库 | Q168: 无*3P*配件铜管另行申请退库*杭州针织城*330102908000000183**330100125409*批*废旧 | S168: 空调3匹内外机 | T168: 空调 | U168: 0.000 | W168: 直接套用单价 | X168: 台
A169: 168 | B169: 杭州市分公司2024年第二十六次党委会纪要-杭州铁塔党委会纪要(2024)第28期 | C169: 330100193634 | D169: 空调 | E169: 空调 | F169: 6468.77 | G169: 194.06 | H169: 6274.71 | I169: 1 | J169: 台 | L169: 3P | M169: 无 | N169: 始板桥花园 | O169: 330102500000000114 | P169: 配件铜管另行申请退库 | Q169: 无*3P*配件铜管另行申请退库*始板桥花园*330102500000000114**330100193634*批*废旧 | S169: 空调3匹内外机 | T169: 空调 | U169: 0.000 | W169: 直接套用单价 | X169: 台
A170: 169 | B170: 杭州市分公司2024年第二十六次党委会纪要-杭州铁塔党委会纪要(2024)第28期 | C170: 330100125182 | D170: 空调 | E170: 空调 | F170: 864 | G170: 25.92 | H170: 838.08 | I170: 1 | J170: 台 | L170: 3P | M170: 无 | N170: 富阳大源虹赤-3 | O170: 330183908000000632 | P170: 配件铜管另行申请退库 | Q170: 无*3P*配件铜管另行申请退库*富阳大源虹赤-3*330183908000000632**330100125182*批*废旧 | S170: 空调3匹内外机 | T170: 空调 | U170: 0.000 | W170: 直接套用单价 | X170: 台
A171: 170 | B171: 杭州市分公司2024年第二十六次党委会纪要-杭州铁塔党委会纪要(2024)第28期 | C171: 330100214459 | D171: 空调 | E171: 空调 | F171: 7073.43 | G171: 212.2 | H171: 6861.23 | I171: 1 | J171: 台 | L171: 3P | M171: 无 | N171: 富阳东洲紫铜-2 | O171: 330183908000000525 | P171: 配件铜管另行申请退库 | Q171: 无*3P*配件铜管另行申请退库*富阳东洲紫铜-2*330183908000000525**330100214459*批*废旧 | S171: 空调3匹内外机 | T171: 空调 | U171: 0.000 | W171: 直接套用单价 | X171: 台
A172: 171 | B172: 杭州市分公司2024年第二十六次党委会纪要-杭州铁塔党委会纪要(2024)第28期 | C172: 330100234863 | D172: 空调 | E172: 空调 | F172: 6795.83 | G172: 203.87 | H172: 6591.96 | I172: 1 | J172: 台 | L172: 3P | M172: 无 | N172: 富阳灵桥黄泥沙 | O172: 330183908000000920 | P172: 配件铜管另行申请退库 | Q172: 无*3P*配件铜管另行申请退库*富阳灵桥黄泥沙*330183908000000920**330100234863*批*废旧 | S172: 空调3匹内外机 | T172: 空调 | U172: 0.000 | W172: 直接套用单价 | X172: 台
A173: 172 | B173: 杭州市分公司2024年第二十六次党委会纪要-杭州铁塔党委会纪要(2024)第28期 | C173: 330100152527 | D173: 空调 | E173: 空调 | F173: 154.5 | G173: 4.64 | H173: 149.86 | I173: 1 | J173: 台 | L173: 3P | M173: 无 | N173: 富阳三方集团 | O173: 330183908000000994 | P173: 配件铜管另行申请退库 | Q173: 无*3P*配件铜管另行申请退库*富阳三方集团*330183908000000994**330100152527*批*废旧 | S173: 空调3匹内外机 | T173: 空调 | U173: 0.000 | W173: 直接套用单价 | X173: 台
A174: 173 | B174: 杭州市分公司2024年第二十六次党委会纪要-杭州铁塔党委会纪要(2024)第28期 | C174: 330100125452 | D174: 空调 | E174: 空调 | F174: 4788 | G174: 143.64 | H174: 4644.36 | I174: 1 | J174: 台 | L174: 3P | M174: 无 | N174: 富阳下浒村 | O174: 330183908000000334 | P174: 配件铜管另行申请退库 | Q174: 无*3P*配件铜管另行申请退库*富阳下浒村*330183908000000334**330100125452*批*废旧 | S174: 空调3匹内外机 | T174: 空调 | U174: 0.000 | W174: 直接套用单价 | X174: 台
A175: 174 | B175: 杭州市分公司2024年第二十六次党委会纪要-杭州铁塔党委会纪要(2024)第28期 | C175: 330100165167 | D175: 空调 | E175: 空调 | F175: 6280.11 | G175: 188.4 | H175: 6091.71 | I175: 1 | J175: 台 | L175: 3P | M175: 无 | N175: 富阳新登七板桥 | O175: 330183500000000041 | P175: 配件铜管另行申请退库 | Q175: 无*3P*配件铜管另行申请退库*富阳新登七板桥*330183500000000041**330100165167*批*废旧 | S175: 空调3匹内外机 | T175: 空调 | U175: 0.000 | W175: 直接套用单价 | X175: 台
A176: 175 | B176: 杭州市分公司2024年第二十六次党委会纪要-杭州铁塔党委会纪要(2024)第28期 | C176: 330100146840 | D176: 空调 | E176: 空调 | F176: 5904.66 | G176: 177.14 | H176: 5727.52 | I176: 1 | J176: 台 | L176: 3P | M176: 无 | N176: 富阳渔山黎明 | O176: 330183908000000560 | P176: 配件铜管另行申请退库 | Q176: 无*3P*配件铜管另行申请退库*富阳渔山黎明*330183908000000560**330100146840*批*废旧 | S176: 空调3匹内外机 | T176: 空调 | U176: 0.000 | W176: 直接套用单价 | X176: 台
A177: 176 | B177: 杭州市分公司2024年第二十六次党委会纪要-杭州铁塔党委会纪要(2024)第28期 | C177: 330100186308 | D177: 空调 | E177: 空调 | F177: 7023.92 | G177: 210.72 | H177: 6813.2 | I177: 1 | J177: 台 | L177: 3P | M177: 无 | N177: 高桥勤丰铁塔 | O177: 330183906000014080 | P177: 配件铜管另行申请退库 | Q177: 无*3P*配件铜管另行申请退库*高桥勤丰铁塔*330183906000014080**330100186308*批*废旧 | S177: 空调3匹内外机 | T177: 空调 | U177: 0.000 | W177: 直接套用单价 | X177: 台
A178: 177 | B178: 杭州市分公司2024年第二十六次党委会纪要-杭州铁塔党委会纪要(2024)第28期 | C178: 330100207910 | D178: 空调 | E178: 空调 | F178: 6733.79 | G178: 202.01 | H178: 6531.78 | I178: 1 | J178: 台 | L178: 3P | M178: 无 | N178: 野生动物园北 | O178: 330183500000000250 | P178: 配件铜管另行申请退库 | Q178: 无*3P*配件铜管另行申请退库*野生动物园北*330183500000000250**330100207910*批*废旧 | S178: 空调3匹内外机 | T178: 空调 | U178: 0.000 | W178: 直接套用单价 | X178: 台
A179: 178 | B179: 杭州市分公司2024年第二十六次党委会纪要-杭州铁塔党委会纪要(2024)第28期 | C179: 330100281899_1_2 | D179: 空调 | E179: 空调 | F179: 761.69 | G179: 176.67 | H179: 585.02 | I179: 1 | J179: 台 | L179: 一体化机柜（空调型）-资产编码拆分-空调组件 | M179: 无 | N179: 滨江狮子山休闲山庄 | O179: 330108500000000050 | Q179: 无*一体化机柜（空调型）-资产编码拆分-空调组件**滨江狮子山休闲山庄*330108500000000050**330100281899_1_2*批*废旧 | U179: 0.000 | X179: 台 | Y179: 合并一体化机柜（无风扇无空调）按一体化机柜（空调型）处置
A180: 179 | B180: 杭州市分公司2024年第十四次党委会纪要-杭州铁塔党委会纪要(2024)第16期 | C180: 330100193177_2 | D180: 空调 | E180: 空调 | F180: 3826.98 | G180: 114.81 | H180: 3712.17 | I180: 1 | J180: 台 | L180: 一体化机柜（空调型）-资产编码拆分-空调组件 | M180: 无 | N180: 龙虎四组 | O180: 330109500000000592 | Q180: 无*一体化机柜（空调型）-资产编码拆分-空调组件**龙虎四组*330109500000000592**330100193177_2*批*废旧 | U180: 0.000 | X180: 台 | Y180: 合并一体化机柜（无风扇无空调）按一体化机柜（空调型）处置
A181: 180 | B181: 杭州市分公司2022年第二十次党委会纪要-杭州铁塔党委会纪要〔2022〕第19期 | C181: 330100316547 | D181: 空调控制器 | E181: 空调控制器 | F181: 366.48 | G181: 282.5 | H181: 83.98 | I181: 1 | J181: 个 | M181: 无 | N181: 杭州杭钢电炉厂 | O181: 330105908000000261 | Q181: 无***杭州杭钢电炉厂*330105908000000261*0.233kg*330100316547*批*废旧 | S181: 空调控制器 | T181: 空调控制器 | U181: 0.233 | W181: 称重计量后套用价格 | X181: 个
A182: 181 | B182: 杭州市分公司2023年第三次党委会纪要-杭州铁塔党委会纪要〔2023〕第3期 | C182: 330100250206 | D182: 空调控制器 | E182: 空调控制器 | F182: 399.78 | G182: 135.84 | H182: 263.94 | I182: 1 | J182: 个 | M182: 无 | N182: 杭州横塘村九组 | O182: 330104908000001322 | Q182: 无***杭州横塘村九组*330104908000001322*1kg*330100250206*批*废旧 | S182: 空调控制器 | T182: 空调控制器 | U182: 1.000 | W182: 称重计量后套用价格 | X182: 个
A183: 182 | B183: 杭州市分公司2024年第四次党委会纪要-杭州铁塔党委会纪要(2024)第6期 | C183: 330100246120 | D183: 空调控制器 | E183: 空调控制器 | F183: 592.56 | G183: 105.61 | H183: 486.95 | I183: 1 | J183: 个 | M183: 无 | N183: 杭州湖墅嘉园-2 | O183: 330105908000000417 | Q183: 无***杭州湖墅嘉园-2*330105908000000417*0.272kg*330100246120*批*废旧 | S183: 空调控制器 | T183: 空调控制器 | U183: 0.272 | W183: 称重计量后套用价格 | X183: 个
A184: 183 | B184: 杭州市分公司2024年第二十一次党委会纪要-杭州铁塔党委会纪要(2024)第23期 | C184: 330100145941 | D184: 空调通风系统 | E184: 空调通风系统 | F184: 2307.87 | G184: 69.24 | H184: 2238.63 | I184: 1 | J184: 个 | L184: 智能通风设备 | M184: 无 | N184: 临安锦城平山 | O184: 330185908000000104 | Q184: 无*智能通风设备**临安锦城平山*330185908000000104*11kg*330100145941*批*废旧 | S184: 智能通风设备 | T184: 智能通风设备 | U184: 11.000 | W184: 称重计量后套用价格 | X184: 个
A185: 184 | B185: 杭州市分公司2024年第二十一次党委会纪要-杭州铁塔党委会纪要(2024)第23期 | C185: 330100146362 | D185: 空调通风系统 | E185: 空调通风系统 | F185: 596.54 | G185: 17.9 | H185: 578.64 | I185: 1 | J185: 个 | L185: 智能通风设备SJF-20GB | M185: 无 | N185: 临安湍口 | O185: 330185908000000180 | Q185: 无*智能通风设备SJF-20GB**临安湍口*330185908000000180*7kg*330100146362*批*废旧 | S185: 智能通风设备 | T185: 智能通风设备 | U185: 7.000 | W185: 称重计量后套用价格 | X185: 个
A186: 185 | B186: 杭州市分公司2024年第二十六次党委会纪要-杭州铁塔党委会纪要(2024)第28期 | C186: 330100127315 | D186: 空调通风系统 | E186: 空调通风系统 | F186: 371.13 | G186: 11.13 | H186: 360 | I186: 1 | J186: 个 | L186: 智能通风系统 | M186: 无 | N186: 桐庐桐君高家村 | O186: 330122908000000800 | P186: 配件铜管另行申请退库 | Q186: 无*智能通风系统*配件铜管另行申请退库*桐庐桐君高家村*330122908000000800*6.5kg*330100127315*批*废旧 | S186: 智能通风设备 | T186: 智能通风设备 | U186: 6.500 | W186: 称重计量后套用价格 | X186: 个
A187: 186 | C187: 配件 | D187: 连接条 | E187: 连接条 | I187: 27.5 | J187: 千克 | L187: 连接条 | M187: 无 | N187: 十方-萧山 | O187: 无 | Q187: 无*连接条**十方-萧山*无*27.5kg*330100234867等17个资产配件*批*废旧 | S187: 连接条 | T187: 连接条 | U187: 27.500 | V187: 出铜率70% | W187: 称重及出铜率计量后套用价格 | X187: 千克
A188: 187 | C188: 配件 | D188: 连接条 | E188: 连接条 | I188: 61 | J188: 千克 | L188: 连接条 | M188: 无 | N188: 方大-西湖余杭 | O188: 无 | Q188: 无*连接条**方大-西湖余杭*无*61kg*330100219924等34个资产配件*批*废旧 | S188: 连接条 | T188: 连接条 | U188: 61.000 | V188: 出铜率70% | W188: 称重及出铜率计量后套用价格 | X188: 千克
A189: 188 | C189: 配件 | D189: 连接条 | E189: 连接条 | I189: 26 | J189: 千克 | L189: 连接条 | M189: 无 | N189: 十方-拱墅钱塘 | O189: 无 | Q189: 无*连接条**十方-拱墅钱塘*无*26kg*330100193218等18个资产配件*批*废旧 | S189: 连接条 | T189: 连接条 | U189: 26.000 | V189: 出铜率70% | W189: 称重及出铜率计量后套用价格 | X189: 千克
A190: 189 | C190: 配件 | D190: 连接条 | E190: 连接条 | I190: 30 | J190: 千克 | L190: 连接条 | M190: 无 | N190: 十方-上城 | O190: 无 | Q190: 无*连接条**十方-上城*无*30kg*330100137845等18个资产配件*批*废旧 | S190: 连接条 | T190: 连接条 | U190: 30.000 | V190: 出铜率70% | W190: 称重及出铜率计量后套用价格 | X190: 千克
A191: 190 | C191: 配件 | D191: 连接条 | E191: 连接条 | I191: 94 | J191: 千克 | L191: 连接条 | M191: 无 | N191: 十方-萧山配件 | O191: 无 | Q191: 无*连接条**十方-萧山配件*无*94kg*330100209688等41个资产配件*批*废旧 | S191: 连接条 | T191: 连接条 | U191: 94.000 | V191: 出铜率70% | W191: 称重及出铜率计量后套用价格 | X191: 千克
A192: 191 | C192: 配件 | D192: 连接条 | E192: 连接条 | I192: 48 | J192: 千克 | L192: 连接条 | M192: 无 | N192: 依网-淳安 | O192: 无 | Q192: 无*连接条**依网-淳安*无*48kg*330100161701等26个资产配件*批*废旧 | S192: 连接条 | T192: 连接条 | U192: 48.000 | V192: 出铜率70% | W192: 称重及出铜率计量后套用价格 | X192: 千克
A193: 192 | C193: 配件 | D193: 连接条 | E193: 连接条 | I193: 32 | J193: 千克 | L193: 连接条 | M193: 无 | N193: 依网-建德 | O193: 无 | Q193: 无*连接条**依网-建德*无*32kg*330100168032等12个资产配件*批*废旧 | S193: 连接条 | T193: 连接条 | U193: 32.000 | V193: 出铜率70% | W193: 称重及出铜率计量后套用价格 | X193: 千克
A194: 193 | B194: 杭州市分公司2023年第三次党委会纪要-杭州铁塔党委会纪要〔2023〕第3期 | C194: 330100240078 | D194: 门锁 | E194: 门锁 | F194: 410 | G194: 122.8 | H194: 287.2 | I194: 1 | J194: 个 | L194: 电控锁 | M194: 无 | N194: 范家小区南 | O194: 330104500000000059 | Q194: 无*电控锁**范家小区南*330104500000000059*2.5kg*330100240078*批*废旧 | S194: 电控锁 | T194: 电控锁 | U194: 2.500 | W194: 称重计量后套用价格 | X194: 个
A195: 194 | B195: 杭州市分公司2023年第三次党委会纪要-杭州铁塔党委会纪要〔2023〕第3期 | C195: 330100241417 | D195: 门锁 | E195: 门锁 | F195: 205 | G195: 61.45 | H195: 143.55 | I195: 1 | J195: 个 | L195: 电控锁 | M195: 无 | N195: 杭州康桥焊接基站 | O195: 330105908000000416 | Q195: 无*电控锁**杭州康桥焊接基站*330105908000000416*2.5kg*330100241417*批*废旧 | S195: 电控锁 | T195: 电控锁 | U195: 2.500 | W195: 称重计量后套用价格 | X195: 个
A196: 195 | B196: 杭州市分公司2024年第二十六次党委会纪要-杭州铁塔党委会纪要(2024)第28期 | C196: 330100441147 | D196: 门锁 | E196: 门锁 | F196: 649.28 | G196: 617.78 | H196: 31.5 | I196: 1 | J196: 个 | L196: 电控锁 | M196: 无 | N196: 杭州横塘村十组 | O196: 330103908000000376 | Q196: 无*电控锁**杭州横塘村十组*330103908000000376*1.5kg*330100441147*批*废旧 | S196: 电控锁 | T196: 电控锁 | U196: 1.500 | W196: 称重计量后套用价格 | X196: 个
A197: 196 | B197: 杭州市分公司2023年第三次党委会纪要-杭州铁塔党委会纪要〔2023〕第3期 | C197: 330100263420 | D197: 模块 | E197: 模块 | F197: 291.35 | G197: 130.41 | H197: 160.94 | I197: 1 | J197: 个 | L197: 电源转换模块 | M197: 无 | N197: 杭州宏利石材 | O197: 330104908000000607 | Q197: 无*电源转换模块**杭州宏利石材*330104908000000607*2.5kg*330100263420*批*废旧 | S197: 电源转换模块 | T197: 电源转换模块 | U197: 2.500 | W197: 称重计量后套用价格 | X197: 个
A198: 197 | B198: 杭州市分公司2023年第三次党委会纪要-杭州铁塔党委会纪要〔2023〕第3期 | C198: 330100317566 | D198: 模块 | E198: 模块 | F198: 1581.11 | G198: 1133.81 | H198: 447.3 | I198: 1 | J198: 个 | L198: 整流模块 | M198: 无 | N198: 杭州宏利石材 | O198: 330104908000000607 | Q198: 无*整流模块**杭州宏利石材*330104908000000607*2.5kg*330100317566*批*废旧 | S198: 整流模块 | T198: 整流模块 | U198: 2.500 | W198: 称重计量后套用价格 | X198: 个
A199: 198 | B199: 杭州市分公司2023年第三次党委会纪要-杭州铁塔党委会纪要〔2023〕第3期 | C199: 330100285553 | D199: 模块 | E199: 模块 | F199: 2062.43 | G199: 1035.35 | H199: 1027.08 | I199: 1 | J199: 个 | L199: 整流模块 | M199: 无 | N199: 杭州下沙斯莱特泵业 | O199: 330104906000014161 | Q199: 无*整流模块**杭州下沙斯莱特泵业*330104906000014161*2.5kg*330100285553*批*废旧 | S199: 整流模块 | T199: 整流模块 | U199: 2.500 | W199: 称重计量后套用价格 | X199: 个
A200: 199 | B200: 杭州市分公司2024年第四次党委会纪要-杭州铁塔党委会纪要(2024)第6期 | C200: 330100339343 | D200: 模块 | E200: 模块 | F200: 530.38 | G200: 370.81 | H200: 159.57 | I200: 1 | J200: 个 | L200: 整流模块 | M200: 无 | N200: 江汉路文化公园单管塔NR | O200: 330108500000001838 | Q200: 无*整流模块**江汉路文化公园单管塔NR*330108500000001838*2.5kg*330100339343*批*废旧 | S200: 整流模块 | T200: 整流模块 | U200: 2.500 | W200: 称重计量后套用价格 | X200: 个
... 13 more rows
